Workbook

Sheet Mode Emploi
B1: Document d'appui à la déclaration première partie de conformité à la norme ISO 9001:2015 | J1: Enregistrement qualité : A4 100% vertical
B2: Autodiagnostic selon la norme ISO 9001:2015
B6: Mode d'emploi
B7: OBJECTIF: Cet outil permet aux différents utilisateurs, et en particulier aux responsables qualité d'un organisme, d'évaluer la conformité du système de management de la qualité selon les exigences de la norme ISO 9001:2015. Il sert aussi de tableau de bord pour votre système de management de la qualité avec lequel vous pouvez commenter et évaluer la progression de votre SMQ. Ainsi, il vous donnera plus de visibilité afin d'élaborer des actions d'amélioration continue. (NB : Cet outil ne garantit pas une certification) PRESENTATION DES ELEMENTS: La grille se présente sous format Excel constitué de cinq (7) onglets : - Mode d'emploi : * Explicite le fonctionnement de l'outil et les critères d'évaluation définis - Exigences : * Des critères d'évaluation par article et sous article sont définis * Des commentaires explicitent les critères aux utilisateurs - Résultats et Actions : * Tous les résultats sont réunis sur cet onglet avec une cartographie globale du SMQ - Résultats par article : * Taux de CONFORMITÉ sous forme radar * Les plans d'action prioritaires à mettre en œuvre et à déployer (Quoi, Qui, Quand...) - - Conseils : * Expliquent globalement l'objet de chaque article de la norme - Plans d'action détaillés * Suivre et tracer les plans d'action définis - Déclaration de conformité * Usage de l'ISO 17050 pour déclarer ses résultats s'ils sont considérés comme probants et communicables
M9: Utilitaires pour l'Autodiagnostic
M10: Paramétrage des affectations selon le N° du choix
M11: Utilisé pour {Exigences} : affectation d'un N° selon le choix réalisé
B12: Niveaux de VÉRACITÉ quant à la RÉALISATION des actions associées aux exigences de la norme | F12: LIBELLÉS des niveaux de CONFORMITÉ des ARTICLES de la norme | M12: Choix proposé | N12: A faire en manuel N° du choix croissant selon son Ordre Alphabétique : 1 à …
B13: Libellés explicites des niveaux de VÉRACITÉ | D13: Choix de VÉRACITÉ | E13: Taux de VÉRACITÉ | F13: Taux moyen Minimal | G13: Taux moyen Maximal | H13: Niveaux de CONFORMITÉ | I13: Libellés explicites des niveaux de CONFORMITÉ | M13: =D13 -> Choix de VÉRACITÉ | N13: 1
B14: Niveau 1 : L'action n'est pas réalisée ou alors de manière très aléatoire. | D14: Faux | E14: 0 | F14: 0 | G14: =F15-0.01 -> 0.09 | H14: Insuffisant | I14: Conformité de niveau 1 : Il est nécessaire de formaliser les activités réalisées. | M14: =D14 -> Faux | N14: 2
B15: Niveau 2 : L'action est réalisée quelques fois de manière informelle. | D15: Plutôt Faux | E15: =(F15+G15)/2 -> 0.295 | F15: 0.1 | G15: =F16-0.01 -> 0.49 | H15: Informel | I15: Conformité de niveau 2 : Il est nécessaire de pérenniser la bonne exécution des activités. | M15: =D15 -> Plutôt Faux | N15: 3
B16: Niveau 3 : L'action est formalisée et réalisée. | D16: Plutôt Vrai | E16: =(F16+G16)/2 -> 0.695 | F16: 0.5 | G16: =F17-0.01 -> 0.89 | H16: Convaincant | I16: Conformité de niveau 3 : Il est nécessaire de tracer et d'améliorer les activités. | M16: =D16 -> Plutôt Vrai | N16: 4
B17: Niveau 4 : L'action est formalisée, réalisée, tracée et améliorée. | D17: Vrai | E17: 1 | F17: 0.9 | G17: 1 | H17: Conforme | I17: Conformité de niveau 4 : BRAVO ! Maintenez et communiquez vos résultats. | M17: =D17 -> Vrai | N17: 5
B18: NB : Vous pouvez modifier les limites minimales ci-dessus des intervalles de conformité

Sheet Exigences
A1: ='Mode Emploi'!B1 -> Document d'appui à la déclaration première partie de conformité à la norme ISO 9001:2015 | H1: Impression sur pages A4 100% en format horizontal
A2: Autodiagnostic sur les exigences de l'ISO 9001:2015 | S2: Somme des pondérations des Articles | T2: Taux moyen de conformité sur la Norme | U2: Niveau de RESPECT pour la norme
A4: Réf. 2015 | B4: Réf. 2008 | C4: C-L 4.5 | D4: Critères d'exigence des articles de la norme | E4: Evaluations | F4: Taux % | G4: Libellés des évaluations | H4: Modes de preuve et commentaires | X4: Choix proposé | Y4: A faire en manuel N° du choix croissant selon son Ordre Alphabétique : 1 à …
A5: Art. 4 | B5: Art 4 | C5: 1-2-3 | D5: Contexte de l'organisme | E5: =R5 -> Insuffisant | F5: =Q5 -> 0 | G5: =IFERROR(IF(F5<='Mode Emploi'!$G$14,'Mode Emploi'!$I$14,IF(F5<='Mode Emploi'!$G$15,'Mode Emploi'!$I$15,IF(F5<='Mode Emploi'!$G$16,'Mode Emploi'!$I$16,'Mode Emploi'!$I$17))),"") -> Conformité de niveau 1 : Il est nécessaire de formaliser les activités réalisées. | J5: Article | O5: vérifier si Somme = 1 => | P5: =SUM(P6:P26) -> 1 | Q5: =IFERROR(SUM(Q6:Q26),"") -> 0 | R5: =IFERROR(IF(Q5<='Mode Emploi'!$G$14,'Mode Emploi'!$H$14,IF(Q5<='Mode Emploi'!$G$15,'Mode Emploi'!$H$15,IF(Q5<='Mode Emploi'!$G$16,'Mode Emploi'!$H$16,'Mode Emploi'!$H$17))),"") -> Insuffisant | S5: =1/7 -> 0.1428571429 | T5: =Q5*S5 -> 0 | X5: Choix de VÉRACITÉ | Y5: 1
A6: 4.1 | B6: 4.1 | C6: 1.1.1.1 1.4.1.1 3.2.1.1 | D6: Compréhension de l'organisme et de son contexte | E6: =O6 -> Insuffisant | F6: =N6 -> 0 | G6: =IFERROR(IF(F6<='Mode Emploi'!$G$14,'Mode Emploi'!$I$14,IF(F6<='Mode Emploi'!$G$15,'Mode Emploi'!$I$15,IF(F6<='Mode Emploi'!$G$16,'Mode Emploi'!$I$16,'Mode Emploi'!$I$17))),"") -> Conformité de niveau 1 : Il est nécessaire de formaliser les activités réalisées. | I6: Nb critères | J6: Sous-Article | L6: vérifier si Somme = 1 => | M6: =SUM(M7:M9) -> 1 | N6: =IFERROR(SUM(N7:N9),"") -> 0 | O6: =IFERROR(IF(N6<='Mode Emploi'!$G$14,'Mode Emploi'!$H$14,IF(N6<='Mode Emploi'!$G$15,'Mode Emploi'!$H$15,IF(N6<='Mode Emploi'!$G$16,'Mode Emploi'!$H$16,'Mode Emploi'!$H$17))),"") -> Insuffisant | P6: =1/COUNTA($O$6:$O$26) -> 0.25 | Q6: =P6*N6 -> 0 | X6: Faux | Y6: 2 | AE6: Légende
A7: cr 1 | D7: Les enjeux internes et externes sont déterminés relativement à la finalité et l'orientation stratégique de l'organisme influant sur sa capacité à atteindre le/les objectif(s) | E7: Choix de VÉRACITÉ | F7: =L7 ->  | G7: =CHOOSE(K7,"Libellé du critère quand il sera choisi",'Mode Emploi'!$B$14,'Mode Emploi'!$B$15,'Mode Emploi'!$B$16,'Mode Emploi'!$B$17,,) -> Libellé du critère quand il sera choisi | I7: 1 | J7: =E7 -> Choix de VÉRACITÉ | K7: =IFERROR((VLOOKUP(E7,'Mode Emploi'!$M$13:$N$17,2)),"") -> 1 | L7: =IFERROR(CHOOSE(K7,"",'Mode Emploi'!$E$14,'Mode Emploi'!$E$15,'Mode Emploi'!$E$16,'Mode Emploi'!$E$17,),"") ->  | M7: =1/COUNTA($D$7:$D$9) -> 0.3333333333 | N7: =IFERROR(L7*M7,"") ->  | X7: Plutôt Faux | Y7: 3 | AF7: Evolutions sans impact ou à impact limité
A8: =CONCATENATE("cr ",MID(A7,3,4)+1) -> cr 2 | D8: Les informations relatives aux enjeux externes et internes sont surveillées et revues périodiquement | E8: Choix de VÉRACITÉ | F8: =L8 ->  | G8: =CHOOSE(K8,"Libellé du critère quand il sera choisi",'Mode Emploi'!$B$14,'Mode Emploi'!$B$15,'Mode Emploi'!$B$16,'Mode Emploi'!$B$17,,) -> Libellé du critère quand il sera choisi | I8: =I7+1 -> 2 | J8: =E8 -> Choix de VÉRACITÉ | K8: =IFERROR((VLOOKUP(E8,'Mode Emploi'!$M$13:$N$17,2)),"") -> 1 | L8: =IFERROR(CHOOSE(K8,"",'Mode Emploi'!$E$14,'Mode Emploi'!$E$15,'Mode Emploi'!$E$16,'Mode Emploi'!$E$17,),"") ->  | M8: =1/COUNTA($D$7:$D$9) -> 0.3333333333 | N8: =IFERROR(L8*M8,"") ->  | X8: Plutôt Vrai | Y8: 4 | AF8: Evolutions à impact moyen
A9: =CONCATENATE("cr ",MID(A8,3,4)+1) -> cr 3 | D9: Les facteurs d'influence sur l'efficacté du Système de Management de la Qualité (SMQ) sont identifiés | E9: Choix de VÉRACITÉ | F9: =L9 ->  | G9: =CHOOSE(K9,"Libellé du critère quand il sera choisi",'Mode Emploi'!$B$14,'Mode Emploi'!$B$15,'Mode Emploi'!$B$16,'Mode Emploi'!$B$17,,) -> Libellé du critère quand il sera choisi | I9: =I8+1 -> 3 | J9: =E9 -> Choix de VÉRACITÉ | K9: =IFERROR((VLOOKUP(E9,'Mode Emploi'!$M$13:$N$17,2)),"") -> 1 | L9: =IFERROR(CHOOSE(K9,"",'Mode Emploi'!$E$14,'Mode Emploi'!$E$15,'Mode Emploi'!$E$16,'Mode Emploi'!$E$17,),"") ->  | M9: =1/COUNTA($D$7:$D$9) -> 0.3333333333 | N9: =IFERROR(L9*M9,"") ->  | X9: Vrai | Y9: 5 | AF9: Evolutions à fort impact
A10: 4.2 | B10: 4.2 | C10: 1.1.1.1 2.1.3.1 3.2.1.1 | D10: Compréhension des besoins et des attentes des parties intéressées | E10: =O10 -> Insuffisant | F10: =N10 -> 0 | G10: =IFERROR(IF(F10<='Mode Emploi'!$G$14,'Mode Emploi'!$I$14,IF(F10<='Mode Emploi'!$G$15,'Mode Emploi'!$I$15,IF(F10<='Mode Emploi'!$G$16,'Mode Emploi'!$I$16,'Mode Emploi'!$I$17))),"") -> Conformité de niveau 1 : Il est nécessaire de formaliser les activités réalisées. | J10: Sous-Article | L10: vérifier si Somme = 1 => | M10: =SUM(M11:M13) -> 1 | N10: =IFERROR(SUM(N11:N13),"") -> 0 | O10: =IFERROR(IF(N10<='Mode Emploi'!$G$14,'Mode Emploi'!$H$14,IF(N10<='Mode Emploi'!$G$15,'Mode Emploi'!$H$15,IF(N10<='Mode Emploi'!$G$16,'Mode Emploi'!$H$16,'Mode Emploi'!$H$17))),"") -> Insuffisant | P10: =1/COUNTA($O$6:$O$26) -> 0.25 | Q10: =P10*N10 -> 0
A11: =CONCATENATE("cr ",MID(A9,3,4)+1) -> cr 4 | D11: Les parties intéressées pertinentes sont identifiées dans la cadre du SMQ | E11: Choix de VÉRACITÉ | F11: =L11 ->  | G11: =CHOOSE(K11,"Libellé du critère quand il sera choisi",'Mode Emploi'!$B$14,'Mode Emploi'!$B$15,'Mode Emploi'!$B$16,'Mode Emploi'!$B$17,,) -> Libellé du critère quand il sera choisi | I11: =I9+1 -> 4 | J11: =E11 -> Choix de VÉRACITÉ | K11: =IFERROR((VLOOKUP(E11,'Mode Emploi'!$M$13:$N$17,2)),"") -> 1 | L11: =IFERROR(CHOOSE(K11,"",'Mode Emploi'!$E$14,'Mode Emploi'!$E$15,'Mode Emploi'!$E$16,'Mode Emploi'!$E$17,),"") ->  | M11: =1/COUNTA($D$11:$D$13) -> 0.3333333333 | N11: =IFERROR(L11*M11,"") -> 
A12: =CONCATENATE("cr ",MID(A11,3,4)+1) -> cr 5 | D12: Les exigences des clients ainsi que celles légales et réglementaires sont prises en considération dans le SMQ | E12: Choix de VÉRACITÉ | F12: =L12 ->  | G12: =CHOOSE(K12,"Libellé du critère quand il sera choisi",'Mode Emploi'!$B$14,'Mode Emploi'!$B$15,'Mode Emploi'!$B$16,'Mode Emploi'!$B$17,,) -> Libellé du critère quand il sera choisi | I12: =I11+1 -> 5 | J12: =E12 -> Choix de VÉRACITÉ | K12: =IFERROR((VLOOKUP(E12,'Mode Emploi'!$M$13:$N$17,2)),"") -> 1 | L12: =IFERROR(CHOOSE(K12,"",'Mode Emploi'!$E$14,'Mode Emploi'!$E$15,'Mode Emploi'!$E$16,'Mode Emploi'!$E$17,),"") ->  | M12: =1/COUNTA($D$11:$D$13) -> 0.3333333333 | N12: =IFERROR(L12*M12,"") -> 
A13: =CONCATENATE("cr ",MID(A12,3,4)+1) -> cr 6 | D13: Les informations sur les parties intéressées et leurs exigences sont surveillées et revues périodiquement | E13: Choix de VÉRACITÉ | F13: =L13 ->  | G13: =CHOOSE(K13,"Libellé du critère quand il sera choisi",'Mode Emploi'!$B$14,'Mode Emploi'!$B$15,'Mode Emploi'!$B$16,'Mode Emploi'!$B$17,,) -> Libellé du critère quand il sera choisi | I13: =I12+1 -> 6 | J13: =E13 -> Choix de VÉRACITÉ | K13: =IFERROR((VLOOKUP(E13,'Mode Emploi'!$M$13:$N$17,2)),"") -> 1 | L13: =IFERROR(CHOOSE(K13,"",'Mode Emploi'!$E$14,'Mode Emploi'!$E$15,'Mode Emploi'!$E$16,'Mode Emploi'!$E$17,),"") ->  | M13: =1/COUNTA($D$11:$D$13) -> 0.3333333333 | N13: =IFERROR(L13*M13,"") -> 
A14: 4.3 | B14: 4.2.2 | C14: 1.2.1.1 | D14: Détermination du domaine d'application du système de management de la qualité | E14: =O14 -> Insuffisant | F14: =N14 -> 0 | G14: =IFERROR(IF(F14<='Mode Emploi'!$G$14,'Mode Emploi'!$I$14,IF(F14<='Mode Emploi'!$G$15,'Mode Emploi'!$I$15,IF(F14<='Mode Emploi'!$G$16,'Mode Emploi'!$I$16,'Mode Emploi'!$I$17))),"") -> Conformité de niveau 1 : Il est nécessaire de formaliser les activités réalisées. | J14: Sous-Article | L14: vérifier si Somme = 1 => | M14: =SUM(M15:M18) -> 1 | N14: =IFERROR(SUM(N15:N18),"") -> 0 | O14: =IFERROR(IF(N14<='Mode Emploi'!$G$14,'Mode Emploi'!$H$14,IF(N14<='Mode Emploi'!$G$15,'Mode Emploi'!$H$15,IF(N14<='Mode Emploi'!$G$16,'Mode Emploi'!$H$16,'Mode Emploi'!$H$17))),"") -> Insuffisant | P14: =1/COUNTA($O$6:$O$26) -> 0.25 | Q14: =P14*N14 -> 0
A15: =CONCATENATE("cr ",MID(A13,3,4)+1) -> cr 7 | D15: Le domaine d'application du SMQ est établi en déterminant ses limites et son applicabilité | E15: Choix de VÉRACITÉ | F15: =L15 ->  | G15: =CHOOSE(K15,"Libellé du critère quand il sera choisi",'Mode Emploi'!$B$14,'Mode Emploi'!$B$15,'Mode Emploi'!$B$16,'Mode Emploi'!$B$17,,) -> Libellé du critère quand il sera choisi | I15: =I13+1 -> 7 | J15: =E15 -> Choix de VÉRACITÉ | K15: =IFERROR((VLOOKUP(E15,'Mode Emploi'!$M$13:$N$17,2)),"") -> 1 | L15: =IFERROR(CHOOSE(K15,"",'Mode Emploi'!$E$14,'Mode Emploi'!$E$15,'Mode Emploi'!$E$16,'Mode Emploi'!$E$17,),"") ->  | M15: =1/COUNTA($D$15:$D$18) -> 0.25 | N15: =IFERROR(L15*M15,"") -> 
A16: =CONCATENATE("cr ",MID(A15,3,4)+1) -> cr 8 | D16: Le domaine d'application du SMQ prend en compte les enjeux externes et internes, les exigences des parties intéressées pertinentes et les produits et services de l'organisme | E16: Choix de VÉRACITÉ | F16: =L16 ->  | G16: =CHOOSE(K16,"Libellé du critère quand il sera choisi",'Mode Emploi'!$B$14,'Mode Emploi'!$B$15,'Mode Emploi'!$B$16,'Mode Emploi'!$B$17,,) -> Libellé du critère quand il sera choisi | I16: =I15+1 -> 8 | J16: =E16 -> Choix de VÉRACITÉ | K16: =IFERROR((VLOOKUP(E16,'Mode Emploi'!$M$13:$N$17,2)),"") -> 1 | L16: =IFERROR(CHOOSE(K16,"",'Mode Emploi'!$E$14,'Mode Emploi'!$E$15,'Mode Emploi'!$E$16,'Mode Emploi'!$E$17,),"") ->  | M16: =1/COUNTA($D$15:$D$18) -> 0.25 | N16: =IFERROR(L16*M16,"") -> 
A17: =CONCATENATE("cr ",MID(A16,3,4)+1) -> cr 9 | D17: Une information documentée est disponible et tenue à jour sur le domaine d'application du SMQ | E17: Choix de VÉRACITÉ | F17: =L17 ->  | G17: =CHOOSE(K17,"Libellé du critère quand il sera choisi",'Mode Emploi'!$B$14,'Mode Emploi'!$B$15,'Mode Emploi'!$B$16,'Mode Emploi'!$B$17,,) -> Libellé du critère quand il sera choisi | I17: =I16+1 -> 9 | J17: =E17 -> Choix de VÉRACITÉ | K17: =IFERROR((VLOOKUP(E17,'Mode Emploi'!$M$13:$N$17,2)),"") -> 1 | L17: =IFERROR(CHOOSE(K17,"",'Mode Emploi'!$E$14,'Mode Emploi'!$E$15,'Mode Emploi'!$E$16,'Mode Emploi'!$E$17,),"") ->  | M17: =1/COUNTA($D$15:$D$18) -> 0.25 | N17: =IFERROR(L17*M17,"") -> 
A18: =CONCATENATE("cr ",MID(A17,3,4)+1) -> cr 10 | D18: Les exigences non applicables sont justifiées et n'impactent ni la conformité des produits et services ni l'amélioration de la satisfaction des clients | E18: Choix de VÉRACITÉ | F18: =L18 ->  | G18: =CHOOSE(K18,"Libellé du critère quand il sera choisi",'Mode Emploi'!$B$14,'Mode Emploi'!$B$15,'Mode Emploi'!$B$16,'Mode Emploi'!$B$17,,) -> Libellé du critère quand il sera choisi | I18: =I17+1 -> 10 | J18: =E18 -> Choix de VÉRACITÉ | K18: =IFERROR((VLOOKUP(E18,'Mode Emploi'!$M$13:$N$17,2)),"") -> 1 | L18: =IFERROR(CHOOSE(K18,"",'Mode Emploi'!$E$14,'Mode Emploi'!$E$15,'Mode Emploi'!$E$16,'Mode Emploi'!$E$17,),"") ->  | M18: =1/COUNTA($D$15:$D$18) -> 0.25 | N18: =IFERROR(L18*M18,"") -> 
A19: 4.4 | B19: 4.1 | C19: 1.2.1.1 | D19: Système de management de la qualité et ses processus | E19: =O19 -> Insuffisant | F19: =N19 -> 0 | G19: =IFERROR(IF(F19<='Mode Emploi'!$G$14,'Mode Emploi'!$I$14,IF(F19<='Mode Emploi'!$G$15,'Mode Emploi'!$I$15,IF(F19<='Mode Emploi'!$G$16,'Mode Emploi'!$I$16,'Mode Emploi'!$I$17))),"") -> Conformité de niveau 1 : Il est nécessaire de formaliser les activités réalisées. | J19: Sous-Article | L19: vérifier si Somme = 1 => | M19: =SUM(M20:M26) -> 1 | N19: =IFERROR(SUM(N20:N26),"") -> 0 | O19: =IFERROR(IF(N19<='Mode Emploi'!$G$14,'Mode Emploi'!$H$14,IF(N19<='Mode Emploi'!$G$15,'Mode Emploi'!$H$15,IF(N19<='Mode Emploi'!$G$16,'Mode Emploi'!$H$16,'Mode Emploi'!$H$17))),"") -> Insuffisant | P19: =1/COUNTA($O$6:$O$26) -> 0.25 | Q19: =P19*N19 -> 0
A20: =CONCATENATE("cr ",MID(A18,3,4)+1) -> cr 11 | D20: Le SMQ est établi, mis en oeuvre, tenu à jour et amélioré en continu, y compris les processus et leurs interactions | E20: Choix de VÉRACITÉ | F20: =L20 ->  | G20: =CHOOSE(K20,"Libellé du critère quand il sera choisi",'Mode Emploi'!$B$14,'Mode Emploi'!$B$15,'Mode Emploi'!$B$16,'Mode Emploi'!$B$17,,) -> Libellé du critère quand il sera choisi | I20: =I18+1 -> 11 | J20: =E20 -> Choix de VÉRACITÉ | K20: =IFERROR((VLOOKUP(E20,'Mode Emploi'!$M$13:$N$17,2)),"") -> 1 | L20: =IFERROR(CHOOSE(K20,"",'Mode Emploi'!$E$14,'Mode Emploi'!$E$15,'Mode Emploi'!$E$16,'Mode Emploi'!$E$17,),"") ->  | M20: =1/COUNTA($D$20:$D$26) -> 0.1428571429 | N20: =IFERROR(L20*M20,"") -> 
A21: =CONCATENATE("cr ",MID(A20,3,4)+1) -> cr 12 | D21: Les élements d'entrée requis et de sortie attendus ainsi que la séquence de l'interaction sont déterminés | E21: Choix de VÉRACITÉ | G21: =CHOOSE(K21,"Libellé du critère quand il sera choisi",'Mode Emploi'!$B$14,'Mode Emploi'!$B$15,'Mode Emploi'!$B$16,'Mode Emploi'!$B$17,,) -> Libellé du critère quand il sera choisi | I21: =I20+1 -> 12 | J21: Choix de VÉRACITÉ | K21: =IFERROR((VLOOKUP(E21,'Mode Emploi'!$M$13:$N$17,2)),"") -> 1 | L21: =IFERROR(CHOOSE(K21,"",'Mode Emploi'!$E$14,'Mode Emploi'!$E$15,'Mode Emploi'!$E$16,'Mode Emploi'!$E$17,),"") ->  | M21: 0.1428571429
A22: cr 13 | D22: Les ressources nécessaires sont déterminées et leurs disponibilités sont assurées | E22: Choix de VÉRACITÉ | G22: =CHOOSE(K22,"Libellé du critère quand il sera choisi",'Mode Emploi'!$B$14,'Mode Emploi'!$B$15,'Mode Emploi'!$B$16,'Mode Emploi'!$B$17,,) -> Libellé du critère quand il sera choisi | I22: 13 | J22: Choix de VÉRACITÉ | K22: =IFERROR((VLOOKUP(E22,'Mode Emploi'!$M$13:$N$17,2)),"") -> 1 | L22: =IFERROR(CHOOSE(K22,"",'Mode Emploi'!$E$14,'Mode Emploi'!$E$15,'Mode Emploi'!$E$16,'Mode Emploi'!$E$17,),"") ->  | M22: 0.1428571429
A23: cr 14 | D23: Les méthodes et critères de surveillance et de mesure de la performance des processus sont déterminées et appliquées | E23: Choix de VÉRACITÉ | G23: =CHOOSE(K23,"Libellé du critère quand il sera choisi",'Mode Emploi'!$B$14,'Mode Emploi'!$B$15,'Mode Emploi'!$B$16,'Mode Emploi'!$B$17,,) -> Libellé du critère quand il sera choisi | I23: 14 | J23: Choix de VÉRACITÉ | K23: =IFERROR((VLOOKUP(E23,'Mode Emploi'!$M$13:$N$17,2)),"") -> 1 | L23: =IFERROR(CHOOSE(K23,"",'Mode Emploi'!$E$14,'Mode Emploi'!$E$15,'Mode Emploi'!$E$16,'Mode Emploi'!$E$17,),"") ->  | M23: 0.1428571429
A24: cr 15 | D24: Les responsabilités et autorités pour le pilotage des processus sont attribuées | E24: Choix de VÉRACITÉ | F24: =L24 ->  | G24: =CHOOSE(K24,"Libellé du critère quand il sera choisi",'Mode Emploi'!$B$14,'Mode Emploi'!$B$15,'Mode Emploi'!$B$16,'Mode Emploi'!$B$17,,) -> Libellé du critère quand il sera choisi | I24: 15 | J24: =E24 -> Choix de VÉRACITÉ | K24: =IFERROR((VLOOKUP(E24,'Mode Emploi'!$M$13:$N$17,2)),"") -> 1 | L24: =IFERROR(CHOOSE(K24,"",'Mode Emploi'!$E$14,'Mode Emploi'!$E$15,'Mode Emploi'!$E$16,'Mode Emploi'!$E$17,),"") ->  | M24: 0.1428571429
A25: cr 16 | D25: Les risques et opportunités pour l'organisme (cf 6.1) sont pris en compte par le SMQ | E25: Choix de VÉRACITÉ | G25: =CHOOSE(K25,"Libellé du critère quand il sera choisi",'Mode Emploi'!$B$14,'Mode Emploi'!$B$15,'Mode Emploi'!$B$16,'Mode Emploi'!$B$17,,) -> Libellé du critère quand il sera choisi | I25: 16 | J25: Choix de VÉRACITÉ | K25: =IFERROR((VLOOKUP(E25,'Mode Emploi'!$M$13:$N$17,2)),"") -> 1 | L25: =IFERROR(CHOOSE(K25,"",'Mode Emploi'!$E$14,'Mode Emploi'!$E$15,'Mode Emploi'!$E$16,'Mode Emploi'!$E$17,),"") ->  | M25: 0.1428571429
A26: cr 17 | D26: Les informations documentées nécessaires au bon fonctionnement des processus sont tenues à jour et conservées | E26: Choix de VÉRACITÉ | G26: =CHOOSE(K26,"Libellé du critère quand il sera choisi",'Mode Emploi'!$B$14,'Mode Emploi'!$B$15,'Mode Emploi'!$B$16,'Mode Emploi'!$B$17,,) -> Libellé du critère quand il sera choisi | I26: 17 | J26: Choix de VÉRACITÉ | K26: =IFERROR((VLOOKUP(E26,'Mode Emploi'!$M$13:$N$17,2)),"") -> 1 | L26: =IFERROR(CHOOSE(K26,"",'Mode Emploi'!$E$14,'Mode Emploi'!$E$15,'Mode Emploi'!$E$16,'Mode Emploi'!$E$17,),"") ->  | M26: 0.1428571429
A27: Art. 5 | B27: Art. 5 | C27: 1-2-3 | D27: Leadership | E27: =R27 -> Insuffisant | F27: =Q27 -> 0 | G27: =IFERROR(IF(F27<='Mode Emploi'!$G$14,'Mode Emploi'!$I$14,IF(F27<='Mode Emploi'!$G$15,'Mode Emploi'!$I$15,IF(F27<='Mode Emploi'!$G$16,'Mode Emploi'!$I$16,'Mode Emploi'!$I$17))),"") -> Conformité de niveau 1 : Il est nécessaire de formaliser les activités réalisées. | J27: Article | O27: vérifier si Somme = 1 => | P27: =SUM(P28:P39) -> 1 | Q27: =IFERROR(SUM(Q28:Q41),"") -> 0 | R27: =IFERROR(IF(Q27<='Mode Emploi'!$G$14,'Mode Emploi'!$H$14,IF(Q27<='Mode Emploi'!$G$15,'Mode Emploi'!$H$15,IF(Q27<='Mode Emploi'!$G$16,'Mode Emploi'!$H$16,'Mode Emploi'!$H$17))),"") -> Insuffisant | S27: =1/7 -> 0.1428571429 | T27: =Q27*S27 -> 0
A28: 5.1 | B28: 5.1-5.2 | C28: 1.2.1.2 3.2.1.1 | D28: Leadership et engagement | E28: =O28 -> Insuffisant | F28: =N28 -> 0 | G28: =IFERROR(IF(F28<='Mode Emploi'!$G$14,'Mode Emploi'!$I$14,IF(F28<='Mode Emploi'!$G$15,'Mode Emploi'!$I$15,IF(F28<='Mode Emploi'!$G$16,'Mode Emploi'!$I$16,'Mode Emploi'!$I$17))),"") -> Conformité de niveau 1 : Il est nécessaire de formaliser les activités réalisées. | J28: Sous-Article | L28: vérifier si Somme = 1 => | M28: =SUM(M29:M33) -> 1 | N28: =IFERROR(SUM(N29:N33),"") -> 0 | O28: =IFERROR(IF(N28<='Mode Emploi'!$G$14,'Mode Emploi'!$H$14,IF(N28<='Mode Emploi'!$G$15,'Mode Emploi'!$H$15,IF(N28<='Mode Emploi'!$G$16,'Mode Emploi'!$H$16,'Mode Emploi'!$H$17))),"") -> Insuffisant | P28: =1/COUNTA($O$28:$O$39) -> 0.3333333333 | Q28: =P28*N28 -> 0
A29: =CONCATENATE("cr ",MID(A26,3,4)+1) -> cr 18 | D29: La direction assume la responsabilité de l'efficacité du SMQ, son intégration avec les processus métiers et l'information nécessaire à la bonne implication du personnel | E29: Choix de VÉRACITÉ | F29: =L29 ->  | G29: =CHOOSE(K29,"Libellé du critère quand il sera choisi",'Mode Emploi'!$B$14,'Mode Emploi'!$B$15,'Mode Emploi'!$B$16,'Mode Emploi'!$B$17,,) -> Libellé du critère quand il sera choisi | I29: =I26+1 -> 18 | J29: =E29 -> Choix de VÉRACITÉ | K29: =IFERROR((VLOOKUP(E29,'Mode Emploi'!$M$13:$N$17,2)),"") -> 1 | L29: =IFERROR(CHOOSE(K29,"",'Mode Emploi'!$E$14,'Mode Emploi'!$E$15,'Mode Emploi'!$E$16,'Mode Emploi'!$E$17,),"") ->  | M29: =1/COUNTA($D$29:$D$33) -> 0.2 | N29: =IFERROR(L29*M29,"") -> 
A30: =CONCATENATE("cr ",MID(A29,3,4)+1) -> cr 19 | D30: La direction promeut l'amélioration, incite, oriente et soutient toutes les personnes pouvant contribuer à l'efficacité du SMQ | E30: Choix de VÉRACITÉ | F30: =L30 ->  | G30: =CHOOSE(K30,"Libellé du critère quand il sera choisi",'Mode Emploi'!$B$14,'Mode Emploi'!$B$15,'Mode Emploi'!$B$16,'Mode Emploi'!$B$17,,) -> Libellé du critère quand il sera choisi | I30: =I29+1 -> 19 | J30: =E30 -> Choix de VÉRACITÉ | K30: =IFERROR((VLOOKUP(E30,'Mode Emploi'!$M$13:$N$17,2)),"") -> 1 | L30: =IFERROR(CHOOSE(K30,"",'Mode Emploi'!$E$14,'Mode Emploi'!$E$15,'Mode Emploi'!$E$16,'Mode Emploi'!$E$17,),"") ->  | M30: =1/COUNTA($D$29:$D$33) -> 0.2 | N30: =IFERROR(L30*M30,"") -> 
A31: =CONCATENATE("cr ",MID(A30,3,4)+1) -> cr 20 | D31: La direction s'assure que les exigences clients et légales et réglementaires sont maitrisées en permanence | E31: Choix de VÉRACITÉ | F31: =L31 ->  | G31: =CHOOSE(K31,"Libellé du critère quand il sera choisi",'Mode Emploi'!$B$14,'Mode Emploi'!$B$15,'Mode Emploi'!$B$16,'Mode Emploi'!$B$17,,) -> Libellé du critère quand il sera choisi | I31: =I30+1 -> 20 | J31: =E31 -> Choix de VÉRACITÉ | K31: =IFERROR((VLOOKUP(E31,'Mode Emploi'!$M$13:$N$17,2)),"") -> 1 | L31: =IFERROR(CHOOSE(K31,"",'Mode Emploi'!$E$14,'Mode Emploi'!$E$15,'Mode Emploi'!$E$16,'Mode Emploi'!$E$17,),"") ->  | M31: =1/COUNTA($D$29:$D$33) -> 0.2 | N31: =IFERROR(L31*M31,"") -> 
A32: =CONCATENATE("cr ",MID(A31,3,4)+1) -> cr 21 | D32: La direction s'assure que les risques et les opportunités affectant la qualité ou la satisfaction du client sont maitrisés | E32: Choix de VÉRACITÉ | F32: =L32 ->  | G32: =CHOOSE(K32,"Libellé du critère quand il sera choisi",'Mode Emploi'!$B$14,'Mode Emploi'!$B$15,'Mode Emploi'!$B$16,'Mode Emploi'!$B$17,,) -> Libellé du critère quand il sera choisi | I32: =I31+1 -> 21 | J32: =E32 -> Choix de VÉRACITÉ | K32: =IFERROR((VLOOKUP(E32,'Mode Emploi'!$M$13:$N$17,2)),"") -> 1 | L32: =IFERROR(CHOOSE(K32,"",'Mode Emploi'!$E$14,'Mode Emploi'!$E$15,'Mode Emploi'!$E$16,'Mode Emploi'!$E$17,),"") ->  | M32: =1/COUNTA($D$29:$D$33) -> 0.2 | N32: =IFERROR(L32*M32,"") -> 
A33: =CONCATENATE("cr ",MID(A32,3,4)+1) -> cr 22 | D33: La direction démontre son engagement à l'orientation client en donnant la priorité à l'accroissement de sa satisfaction | E33: Choix de VÉRACITÉ | F33: =L33 ->  | G33: =CHOOSE(K33,"Libellé du critère quand il sera choisi",'Mode Emploi'!$B$14,'Mode Emploi'!$B$15,'Mode Emploi'!$B$16,'Mode Emploi'!$B$17,,) -> Libellé du critère quand il sera choisi | I33: =I32+1 -> 22 | J33: =E33 -> Choix de VÉRACITÉ | K33: =IFERROR((VLOOKUP(E33,'Mode Emploi'!$M$13:$N$17,2)),"") -> 1 | L33: =IFERROR(CHOOSE(K33,"",'Mode Emploi'!$E$14,'Mode Emploi'!$E$15,'Mode Emploi'!$E$16,'Mode Emploi'!$E$17,),"") ->  | M33: =1/COUNTA($D$29:$D$33) -> 0.2 | N33: =IFERROR(L33*M33,"") -> 
A34: 5.2 | B34: 5.3 | C34: 1.1.1.1 | D34: Politique | E34: =O34 -> Insuffisant | F34: =N34 -> 0 | G34: =IFERROR(IF(F34<='Mode Emploi'!$G$14,'Mode Emploi'!$I$14,IF(F34<='Mode Emploi'!$G$15,'Mode Emploi'!$I$15,IF(F34<='Mode Emploi'!$G$16,'Mode Emploi'!$I$16,'Mode Emploi'!$I$17))),"") -> Conformité de niveau 1 : Il est nécessaire de formaliser les activités réalisées. | J34: Sous-Article | L34: vérifier si Somme = 1 => | M34: =SUM(M35:M37) -> 1 | N34: =IFERROR(SUM(N35:N37),"") -> 0 | O34: =IFERROR(IF(N34<='Mode Emploi'!$G$14,'Mode Emploi'!$H$14,IF(N34<='Mode Emploi'!$G$15,'Mode Emploi'!$H$15,IF(N34<='Mode Emploi'!$G$16,'Mode Emploi'!$H$16,'Mode Emploi'!$H$17))),"") -> Insuffisant | P34: =1/COUNTA($O$28:$O$39) -> 0.3333333333 | Q34: =P34*N34 -> 0
A35: =CONCATENATE("cr ",MID(A33,3,4)+1) -> cr 23 | D35: La direction établit, revoit et met à jour périodiquement sa politique qualité en accord avec le contexte et son orientation stratégique | E35: Choix de VÉRACITÉ | F35: =L35 ->  | G35: =CHOOSE(K35,"Libellé du critère quand il sera choisi",'Mode Emploi'!$B$14,'Mode Emploi'!$B$15,'Mode Emploi'!$B$16,'Mode Emploi'!$B$17,,) -> Libellé du critère quand il sera choisi | I35: =I33+1 -> 23 | J35: =E35 -> Choix de VÉRACITÉ | K35: =IFERROR((VLOOKUP(E35,'Mode Emploi'!$M$13:$N$17,2)),"") -> 1 | L35: =IFERROR(CHOOSE(K35,"",'Mode Emploi'!$E$14,'Mode Emploi'!$E$15,'Mode Emploi'!$E$16,'Mode Emploi'!$E$17,),"") ->  | M35: =1/COUNTA($D$35:$D$37) -> 0.3333333333 | N35: =IFERROR(L35*M35,"") -> 
A36: =CONCATENATE("cr ",MID(A35,3,4)+1) -> cr 24 | D36: La politique qualité est disponible et tenue à jour sous forme d'une information documentée | E36: Choix de VÉRACITÉ | F36: =L36 ->  | G36: =CHOOSE(K36,"Libellé du critère quand il sera choisi",'Mode Emploi'!$B$14,'Mode Emploi'!$B$15,'Mode Emploi'!$B$16,'Mode Emploi'!$B$17,,) -> Libellé du critère quand il sera choisi | I36: =I35+1 -> 24 | J36: =E36 -> Choix de VÉRACITÉ | K36: =IFERROR((VLOOKUP(E36,'Mode Emploi'!$M$13:$N$17,2)),"") -> 1 | L36: =IFERROR(CHOOSE(K36,"",'Mode Emploi'!$E$14,'Mode Emploi'!$E$15,'Mode Emploi'!$E$16,'Mode Emploi'!$E$17,),"") ->  | M36: =1/COUNTA($D$35:$D$37) -> 0.3333333333 | N36: =IFERROR(L36*M36,"") -> 
A37: =CONCATENATE("cr ",MID(A36,3,4)+1) -> cr 25 | D37: La politique qualité est communiquée, comprise et appliquée au sein de l'organisme | E37: Choix de VÉRACITÉ | F37: =L37 ->  | G37: =CHOOSE(K37,"Libellé du critère quand il sera choisi",'Mode Emploi'!$B$14,'Mode Emploi'!$B$15,'Mode Emploi'!$B$16,'Mode Emploi'!$B$17,,) -> Libellé du critère quand il sera choisi | I37: =I36+1 -> 25 | J37: =E37 -> Choix de VÉRACITÉ | K37: =IFERROR((VLOOKUP(E37,'Mode Emploi'!$M$13:$N$17,2)),"") -> 1 | L37: =IFERROR(CHOOSE(K37,"",'Mode Emploi'!$E$14,'Mode Emploi'!$E$15,'Mode Emploi'!$E$16,'Mode Emploi'!$E$17,),"") ->  | M37: =1/COUNTA($D$35:$D$37) -> 0.3333333333 | N37: =IFERROR(L37*M37,"") -> 
A38: 5.3 | B38: 5.5.1-5.5.2 | C38: 1.2.1.2 | D38: Rôles, responsabilités et autorités au sein de l'organisme | E38: =O38 -> Insuffisant | F38: =N38 -> 0 | G38: =IFERROR(IF(F38<='Mode Emploi'!$G$14,'Mode Emploi'!$I$14,IF(F38<='Mode Emploi'!$G$15,'Mode Emploi'!$I$15,IF(F38<='Mode Emploi'!$G$16,'Mode Emploi'!$I$16,'Mode Emploi'!$I$17))),"") -> Conformité de niveau 1 : Il est nécessaire de formaliser les activités réalisées. | J38: Sous-Article | L38: vérifier si Somme = 1 => | M38: =SUM(M39:M41) -> 1 | N38: =IFERROR(SUM(N39:N41),"") -> 0 | O38: =IFERROR(IF(N38<='Mode Emploi'!$G$14,'Mode Emploi'!$H$14,IF(N38<='Mode Emploi'!$G$15,'Mode Emploi'!$H$15,IF(N38<='Mode Emploi'!$G$16,'Mode Emploi'!$H$16,'Mode Emploi'!$H$17))),"") -> Insuffisant | P38: =1/COUNTA($O$28:$O$39) -> 0.3333333333 | Q38: =P38*N38 -> 0
A39: =CONCATENATE("cr ",MID(A37,3,4)+1) -> cr 26 | D39: La direction s'assure que les responsabilités et autorités sont attribuées, communiquées et comprises pour les fonctions pertinentes (pilotes de processus critiques par exemple) | E39: Choix de VÉRACITÉ | F39: =L39 ->  | G39: =CHOOSE(K39,"Libellé du critère quand il sera choisi",'Mode Emploi'!$B$14,'Mode Emploi'!$B$15,'Mode Emploi'!$B$16,'Mode Emploi'!$B$17,,) -> Libellé du critère quand il sera choisi | I39: =I37+1 -> 26 | J39: =E39 -> Choix de VÉRACITÉ | K39: =IFERROR((VLOOKUP(E39,'Mode Emploi'!$M$13:$N$17,2)),"") -> 1 | L39: =IFERROR(CHOOSE(K39,"",'Mode Emploi'!$E$14,'Mode Emploi'!$E$15,'Mode Emploi'!$E$16,'Mode Emploi'!$E$17,),"") ->  | M39: =1/COUNTA($D$39:$D$41) -> 0.3333333333 | N39: =IFERROR(L39*M39,"") -> 
A40: =CONCATENATE("cr ",MID(A39,3,4)+1) -> cr 27 | D40: Les responsabilités et autorités associées à la performance du SMQ et son évolution sont attribuées | E40: Choix de VÉRACITÉ | F40: =L40 ->  | G40: =CHOOSE(K40,"Libellé du critère quand il sera choisi",'Mode Emploi'!$B$14,'Mode Emploi'!$B$15,'Mode Emploi'!$B$16,'Mode Emploi'!$B$17,,) -> Libellé du critère quand il sera choisi | I40: =I39+1 -> 27 | J40: =E40 -> Choix de VÉRACITÉ | K40: =IFERROR((VLOOKUP(E40,'Mode Emploi'!$M$13:$N$17,2)),"") -> 1 | L40: =IFERROR(CHOOSE(K40,"",'Mode Emploi'!$E$14,'Mode Emploi'!$E$15,'Mode Emploi'!$E$16,'Mode Emploi'!$E$17,),"") ->  | M40: =1/COUNTA($D$39:$D$41) -> 0.3333333333 | N40: =IFERROR(L40*M40,"") -> 
A41: =CONCATENATE("cr ",MID(A40,3,4)+1) -> cr 28 | D41: Les responsabilités et autorités associées à la promotion de l'orientation client au sein de l'organisme sont attribuées | E41: Choix de VÉRACITÉ | F41: =L41 ->  | G41: =CHOOSE(K41,"Libellé du critère quand il sera choisi",'Mode Emploi'!$B$14,'Mode Emploi'!$B$15,'Mode Emploi'!$B$16,'Mode Emploi'!$B$17,,) -> Libellé du critère quand il sera choisi | I41: =I40+1 -> 28 | J41: =E41 -> Choix de VÉRACITÉ | K41: =IFERROR((VLOOKUP(E41,'Mode Emploi'!$M$13:$N$17,2)),"") -> 1 | L41: =IFERROR(CHOOSE(K41,"",'Mode Emploi'!$E$14,'Mode Emploi'!$E$15,'Mode Emploi'!$E$16,'Mode Emploi'!$E$17,),"") ->  | M41: =1/COUNTA($D$39:$D$41) -> 0.3333333333 | N41: =IFERROR(L41*M41,"") -> 
A42: Art. 6 | B42: 5.4 | C42: 1-2-3 | D42: Planification | E42: =R42 -> Insuffisant | F42: =Q42 -> 0 | G42: =IFERROR(IF(F42<='Mode Emploi'!$G$14,'Mode Emploi'!$I$14,IF(F42<='Mode Emploi'!$G$15,'Mode Emploi'!$I$15,IF(F42<='Mode Emploi'!$G$16,'Mode Emploi'!$I$16,'Mode Emploi'!$I$17))),"") -> Conformité de niveau 1 : Il est nécessaire de formaliser les activités réalisées. | J42: Article | O42: vérifier si Somme = 1 => | P42: =SUM(P43:P58) -> 1 | Q42: =IFERROR(SUM(Q43:Q58),"") -> 0 | R42: =IFERROR(IF(Q42<='Mode Emploi'!$G$14,'Mode Emploi'!$H$14,IF(Q42<='Mode Emploi'!$G$15,'Mode Emploi'!$H$15,IF(Q42<='Mode Emploi'!$G$16,'Mode Emploi'!$H$16,'Mode Emploi'!$H$17))),"") -> Insuffisant | S42: =1/7 -> 0.1428571429 | T42: =Q42*S42 -> 0
A43: 6.1 | B43: 5.4.2 | C43: 1.1.1.1 1.2.2.1 1.4.1.1 2.2.2.1 3.2.1.1 3.5.2.1 | D43: Actions à mettre en oeuvre face aux risques et opportunités | E43: =O43 -> Insuffisant | F43: =N43 -> 0 | G43: =IFERROR(IF(F43<='Mode Emploi'!$G$14,'Mode Emploi'!$I$14,IF(F43<='Mode Emploi'!$G$15,'Mode Emploi'!$I$15,IF(F43<='Mode Emploi'!$G$16,'Mode Emploi'!$I$16,'Mode Emploi'!$I$17))),"") -> Conformité de niveau 1 : Il est nécessaire de formaliser les activités réalisées. | J43: Sous-Article | L43: vérifier si Somme = 1 => | M43: =SUM(M44:M47) -> 1 | N43: =IFERROR(SUM(N44:N47),"") -> 0 | O43: =IFERROR(IF(N43<='Mode Emploi'!$G$14,'Mode Emploi'!$H$14,IF(N43<='Mode Emploi'!$G$15,'Mode Emploi'!$H$15,IF(N43<='Mode Emploi'!$G$16,'Mode Emploi'!$H$16,'Mode Emploi'!$H$17))),"") -> Insuffisant | P43: =1/COUNTA($O$43:$O$58) -> 0.3333333333 | Q43: =P43*N43 -> 0
A44: =CONCATENATE("cr ",MID(A41,3,4)+1) -> cr 29 | D44: Les risques et opportunités sont pris en compte pour améliorer la performance du SMQ en lien avec les enjeux à relever et les exigences à satisfaire | E44: Choix de VÉRACITÉ | F44: =L44 ->  | G44: =CHOOSE(K44,"Libellé du critère quand il sera choisi",'Mode Emploi'!$B$14,'Mode Emploi'!$B$15,'Mode Emploi'!$B$16,'Mode Emploi'!$B$17,,) -> Libellé du critère quand il sera choisi | I44: =I41+1 -> 29 | J44: =E44 -> Choix de VÉRACITÉ | K44: =IFERROR((VLOOKUP(E44,'Mode Emploi'!$M$13:$N$17,2)),"") -> 1 | L44: =IFERROR(CHOOSE(K44,"",'Mode Emploi'!$E$14,'Mode Emploi'!$E$15,'Mode Emploi'!$E$16,'Mode Emploi'!$E$17,),"") ->  | M44: =1/COUNTA($D$44:$D$47) -> 0.25 | N44: =IFERROR(L44*M44,"") -> 
A45: =CONCATENATE("cr ",MID(A44,3,4)+1) -> cr 30 | D45: L'orgamisme planifie et met en oeuvre les actions face aux risques et opportunités sélectionnés | E45: Choix de VÉRACITÉ | F45: =L45 ->  | G45: =CHOOSE(K45,"Libellé du critère quand il sera choisi",'Mode Emploi'!$B$14,'Mode Emploi'!$B$15,'Mode Emploi'!$B$16,'Mode Emploi'!$B$17,,) -> Libellé du critère quand il sera choisi | I45: =I44+1 -> 30 | J45: =E45 -> Choix de VÉRACITÉ | K45: =IFERROR((VLOOKUP(E45,'Mode Emploi'!$M$13:$N$17,2)),"") -> 1 | L45: =IFERROR(CHOOSE(K45,"",'Mode Emploi'!$E$14,'Mode Emploi'!$E$15,'Mode Emploi'!$E$16,'Mode Emploi'!$E$17,),"") ->  | M45: =1/COUNTA($D$44:$D$47) -> 0.25 | N45: =IFERROR(L45*M45,"") -> 
A46: =CONCATENATE("cr ",MID(A45,3,4)+1) -> cr 31 | D46: Les actions mises en oeuvre sont proportionnelles à l'impact potentiel sur la conformité des produits et des services | E46: Choix de VÉRACITÉ | F46: =L46 ->  | G46: =CHOOSE(K46,"Libellé du critère quand il sera choisi",'Mode Emploi'!$B$14,'Mode Emploi'!$B$15,'Mode Emploi'!$B$16,'Mode Emploi'!$B$17,,) -> Libellé du critère quand il sera choisi | I46: =I45+1 -> 31 | J46: =E46 -> Choix de VÉRACITÉ | K46: =IFERROR((VLOOKUP(E46,'Mode Emploi'!$M$13:$N$17,2)),"") -> 1 | L46: =IFERROR(CHOOSE(K46,"",'Mode Emploi'!$E$14,'Mode Emploi'!$E$15,'Mode Emploi'!$E$16,'Mode Emploi'!$E$17,),"") ->  | M46: =1/COUNTA($D$44:$D$47) -> 0.25 | N46: =IFERROR(L46*M46,"") -> 
A47: =CONCATENATE("cr ",MID(A46,3,4)+1) -> cr 32 | D47: L'efficacité de ces actions au sein des processus du SMQ est évaluée | E47: Choix de VÉRACITÉ | F47: =L47 ->  | G47: =CHOOSE(K47,"Libellé du critère quand il sera choisi",'Mode Emploi'!$B$14,'Mode Emploi'!$B$15,'Mode Emploi'!$B$16,'Mode Emploi'!$B$17,,) -> Libellé du critère quand il sera choisi | I47: =I46+1 -> 32 | J47: =E47 -> Choix de VÉRACITÉ | K47: =IFERROR((VLOOKUP(E47,'Mode Emploi'!$M$13:$N$17,2)),"") -> 1 | L47: =IFERROR(CHOOSE(K47,"",'Mode Emploi'!$E$14,'Mode Emploi'!$E$15,'Mode Emploi'!$E$16,'Mode Emploi'!$E$17,),"") ->  | M47: =1/COUNTA($D$44:$D$47) -> 0.25 | N47: =IFERROR(L47*M47,"") -> 
A48: 6.2 | B48: 5.4.1-5.4.2 | C48: 1.1.1.1 1.2.2.1 2.2.1.1 | D48: Objectifs qualité et planification pour les atteindre | E48: =O48 -> Insuffisant | F48: =N48 -> 0 | G48: =IFERROR(IF(F48<='Mode Emploi'!$G$14,'Mode Emploi'!$I$14,IF(F48<='Mode Emploi'!$G$15,'Mode Emploi'!$I$15,IF(F48<='Mode Emploi'!$G$16,'Mode Emploi'!$I$16,'Mode Emploi'!$I$17))),"") -> Conformité de niveau 1 : Il est nécessaire de formaliser les activités réalisées. | J48: Sous-Article | L48: vérifier si Somme = 1 => | M48: =SUM(M49:M53) -> 1 | N48: =IFERROR(SUM(N49:N53),"") -> 0 | O48: =IFERROR(IF(N48<='Mode Emploi'!$G$14,'Mode Emploi'!$H$14,IF(N48<='Mode Emploi'!$G$15,'Mode Emploi'!$H$15,IF(N48<='Mode Emploi'!$G$16,'Mode Emploi'!$H$16,'Mode Emploi'!$H$17))),"") -> Insuffisant | P48: =1/COUNTA($O$43:$O$58) -> 0.3333333333 | Q48: =P48*N48 -> 0
A49: =CONCATENATE("cr ",MID(A47,3,4)+1) -> cr 33 | D49: Des objectifs qualité sont établis aux fonctions, niveaux et processus nécessaires au bon fonctionnement du SMQ | E49: Choix de VÉRACITÉ | F49: =L49 ->  | G49: =CHOOSE(K49,"Libellé du critère quand il sera choisi",'Mode Emploi'!$B$14,'Mode Emploi'!$B$15,'Mode Emploi'!$B$16,'Mode Emploi'!$B$17,,) -> Libellé du critère quand il sera choisi | I49: =I47+1 -> 33 | J49: =E49 -> Choix de VÉRACITÉ | K49: =IFERROR((VLOOKUP(E49,'Mode Emploi'!$M$13:$N$17,2)),"") -> 1 | L49: =IFERROR(CHOOSE(K49,"",'Mode Emploi'!$E$14,'Mode Emploi'!$E$15,'Mode Emploi'!$E$16,'Mode Emploi'!$E$17,),"") ->  | M49: =1/COUNTA($D$49:$D$53) -> 0.2 | N49: =IFERROR(L49*M49,"") -> 
A50: =CONCATENATE("cr ",MID(A49,3,4)+1) -> cr 34 | D50: Les objectifs qualité sont pertinents, mesurables et cohérents avec la politique qualité. | E50: Choix de VÉRACITÉ | F50: =L50 ->  | G50: =CHOOSE(K50,"Libellé du critère quand il sera choisi",'Mode Emploi'!$B$14,'Mode Emploi'!$B$15,'Mode Emploi'!$B$16,'Mode Emploi'!$B$17,,) -> Libellé du critère quand il sera choisi | I50: =I49+1 -> 34 | J50: =E50 -> Choix de VÉRACITÉ | K50: =IFERROR((VLOOKUP(E50,'Mode Emploi'!$M$13:$N$17,2)),"") -> 1 | L50: =IFERROR(CHOOSE(K50,"",'Mode Emploi'!$E$14,'Mode Emploi'!$E$15,'Mode Emploi'!$E$16,'Mode Emploi'!$E$17,),"") ->  | M50: =1/COUNTA($D$49:$D$53) -> 0.2 | N50: =IFERROR(L50*M50,"") -> 
A51: =CONCATENATE("cr ",MID(A50,3,4)+1) -> cr 35 | D51: Les objectifs qualité sont surveillés, tenus à jour et communiqués | E51: Choix de VÉRACITÉ | F51: =L51 ->  | G51: =CHOOSE(K51,"Libellé du critère quand il sera choisi",'Mode Emploi'!$B$14,'Mode Emploi'!$B$15,'Mode Emploi'!$B$16,'Mode Emploi'!$B$17,,) -> Libellé du critère quand il sera choisi | I51: =I50+1 -> 35 | J51: =E51 -> Choix de VÉRACITÉ | K51: =IFERROR((VLOOKUP(E51,'Mode Emploi'!$M$13:$N$17,2)),"") -> 1 | L51: =IFERROR(CHOOSE(K51,"",'Mode Emploi'!$E$14,'Mode Emploi'!$E$15,'Mode Emploi'!$E$16,'Mode Emploi'!$E$17,),"") ->  | M51: =1/COUNTA($D$49:$D$53) -> 0.2 | N51: =IFERROR(L51*M51,"") -> 
A52: =CONCATENATE("cr ",MID(A51,3,4)+1) -> cr 36 | D52: Les informations documentées sur les objectifs qualité sont tenues à jour | E52: Choix de VÉRACITÉ | F52: =L52 ->  | G52: =CHOOSE(K52,"Libellé du critère quand il sera choisi",'Mode Emploi'!$B$14,'Mode Emploi'!$B$15,'Mode Emploi'!$B$16,'Mode Emploi'!$B$17,,) -> Libellé du critère quand il sera choisi | I52: =I51+1 -> 36 | J52: =E52 -> Choix de VÉRACITÉ | K52: =IFERROR((VLOOKUP(E52,'Mode Emploi'!$M$13:$N$17,2)),"") -> 1 | L52: =IFERROR(CHOOSE(K52,"",'Mode Emploi'!$E$14,'Mode Emploi'!$E$15,'Mode Emploi'!$E$16,'Mode Emploi'!$E$17,),"") ->  | M52: =1/COUNTA($D$49:$D$53) -> 0.2 | N52: =IFERROR(L52*M52,"") -> 
A53: =CONCATENATE("cr ",MID(A52,3,4)+1) -> cr 37 | D53: Pour atteindre les objectifs qualité, l'organisme détermine le responsable, les actions, les ressources, les échéances et les modalités d'évaluation des résultats | E53: Choix de VÉRACITÉ | F53: =L53 ->  | G53: =CHOOSE(K53,"Libellé du critère quand il sera choisi",'Mode Emploi'!$B$14,'Mode Emploi'!$B$15,'Mode Emploi'!$B$16,'Mode Emploi'!$B$17,,) -> Libellé du critère quand il sera choisi | I53: =I52+1 -> 37 | J53: =E53 -> Choix de VÉRACITÉ | K53: =IFERROR((VLOOKUP(E53,'Mode Emploi'!$M$13:$N$17,2)),"") -> 1 | L53: =IFERROR(CHOOSE(K53,"",'Mode Emploi'!$E$14,'Mode Emploi'!$E$15,'Mode Emploi'!$E$16,'Mode Emploi'!$E$17,),"") ->  | M53: =1/COUNTA($D$49:$D$53) -> 0.2 | N53: =IFERROR(L53*M53,"") -> 
A54: 6.3 | B54: 5.4.2 | C54: 1.1.1.1 | D54: Planification des modifications | E54: =O54 -> Insuffisant | F54: =N54 -> 0 | G54: =IFERROR(IF(F54<='Mode Emploi'!$G$14,'Mode Emploi'!$I$14,IF(F54<='Mode Emploi'!$G$15,'Mode Emploi'!$I$15,IF(F54<='Mode Emploi'!$G$16,'Mode Emploi'!$I$16,'Mode Emploi'!$I$17))),"") -> Conformité de niveau 1 : Il est nécessaire de formaliser les activités réalisées. | J54: Sous-Article | L54: vérifier si Somme = 1 => | M54: =SUM(M55:M58) -> 1 | N54: =IFERROR(SUM(N55:N58),"") -> 0 | O54: =IFERROR(IF(N54<='Mode Emploi'!$G$14,'Mode Emploi'!$H$14,IF(N54<='Mode Emploi'!$G$15,'Mode Emploi'!$H$15,IF(N54<='Mode Emploi'!$G$16,'Mode Emploi'!$H$16,'Mode Emploi'!$H$17))),"") -> Insuffisant | P54: =1/COUNTA($O$43:$O$58) -> 0.3333333333 | Q54: =P54*N54 -> 0
A55: =CONCATENATE("cr ",MID(A53,3,4)+1) -> cr 38 | D55: La réalisation des modifications apportée au SMQ est planifiée et tient compte de l'intégrité de ce dernier | E55: Choix de VÉRACITÉ | F55: =L55 ->  | G55: =CHOOSE(K55,"Libellé du critère quand il sera choisi",'Mode Emploi'!$B$14,'Mode Emploi'!$B$15,'Mode Emploi'!$B$16,'Mode Emploi'!$B$17,,) -> Libellé du critère quand il sera choisi | I55: =I53+1 -> 38 | J55: =E55 -> Choix de VÉRACITÉ | K55: =IFERROR((VLOOKUP(E55,'Mode Emploi'!$M$13:$N$17,2)),"") -> 1 | L55: =IFERROR(CHOOSE(K55,"",'Mode Emploi'!$E$14,'Mode Emploi'!$E$15,'Mode Emploi'!$E$16,'Mode Emploi'!$E$17,),"") ->  | M55: =1/COUNTA($D$55:$D$58) -> 0.25 | N55: =IFERROR(L55*M55,"") -> 
A56: =CONCATENATE("cr ",MID(A55,3,4)+1) -> cr 39 | D56: L'organisme détermine les objectifs et les conséquences possibles des modifications planifiées | E56: Choix de VÉRACITÉ | F56: =L56 ->  | G56: =CHOOSE(K56,"Libellé du critère quand il sera choisi",'Mode Emploi'!$B$14,'Mode Emploi'!$B$15,'Mode Emploi'!$B$16,'Mode Emploi'!$B$17,,) -> Libellé du critère quand il sera choisi | I56: =I55+1 -> 39 | J56: =E56 -> Choix de VÉRACITÉ | K56: =IFERROR((VLOOKUP(E56,'Mode Emploi'!$M$13:$N$17,2)),"") -> 1 | L56: =IFERROR(CHOOSE(K56,"",'Mode Emploi'!$E$14,'Mode Emploi'!$E$15,'Mode Emploi'!$E$16,'Mode Emploi'!$E$17,),"") ->  | M56: =1/COUNTA($D$55:$D$58) -> 0.25 | N56: =IFERROR(L56*M56,"") -> 
A57: =CONCATENATE("cr ",MID(A56,3,4)+1) -> cr 40 | D57: L'organisme met à disposition les ressources nécessaires à la réalisation des modifications | E57: Choix de VÉRACITÉ | F57: =L57 ->  | G57: =CHOOSE(K57,"Libellé du critère quand il sera choisi",'Mode Emploi'!$B$14,'Mode Emploi'!$B$15,'Mode Emploi'!$B$16,'Mode Emploi'!$B$17,,) -> Libellé du critère quand il sera choisi | I57: =I56+1 -> 40 | J57: =E57 -> Choix de VÉRACITÉ | K57: =IFERROR((VLOOKUP(E57,'Mode Emploi'!$M$13:$N$17,2)),"") -> 1 | L57: =IFERROR(CHOOSE(K57,"",'Mode Emploi'!$E$14,'Mode Emploi'!$E$15,'Mode Emploi'!$E$16,'Mode Emploi'!$E$17,),"") ->  | M57: =1/COUNTA($D$55:$D$58) -> 0.25 | N57: =IFERROR(L57*M57,"") -> 
A58: =CONCATENATE("cr ",MID(A57,3,4)+1) -> cr 41 | D58: L'organisme attribue les responsabilités et autorités nécessaires à la réalisation des modifications | E58: Choix de VÉRACITÉ | F58: =L58 ->  | G58: =CHOOSE(K58,"Libellé du critère quand il sera choisi",'Mode Emploi'!$B$14,'Mode Emploi'!$B$15,'Mode Emploi'!$B$16,'Mode Emploi'!$B$17,,) -> Libellé du critère quand il sera choisi | I58: =I57+1 -> 41 | J58: =E58 -> Choix de VÉRACITÉ | K58: =IFERROR((VLOOKUP(E58,'Mode Emploi'!$M$13:$N$17,2)),"") -> 1 | L58: =IFERROR(CHOOSE(K58,"",'Mode Emploi'!$E$14,'Mode Emploi'!$E$15,'Mode Emploi'!$E$16,'Mode Emploi'!$E$17,),"") ->  | M58: =1/COUNTA($D$55:$D$58) -> 0.25 | N58: =IFERROR(L58*M58,"") -> 
A59: Art. 7 | B59: Art 6 | C59: 1-2-3 | D59: Support | E59: =R59 -> Insuffisant | F59: =Q59 -> 0 | G59: =IFERROR(IF(F59<='Mode Emploi'!$G$14,'Mode Emploi'!$I$14,IF(F59<='Mode Emploi'!$G$15,'Mode Emploi'!$I$15,IF(F59<='Mode Emploi'!$G$16,'Mode Emploi'!$I$16,'Mode Emploi'!$I$17))),"") -> Conformité de niveau 1 : Il est nécessaire de formaliser les activités réalisées. | J59: Article | O59: vérifier si Somme = 1 => | P59: =SUM(P60:P95) -> 1 | Q59: =IFERROR(SUM(Q60:Q95),"") -> 0 | R59: =IFERROR(IF(Q59<='Mode Emploi'!$G$14,'Mode Emploi'!$H$14,IF(Q59<='Mode Emploi'!$G$15,'Mode Emploi'!$H$15,IF(Q59<='Mode Emploi'!$G$16,'Mode Emploi'!$H$16,'Mode Emploi'!$H$17))),"") -> Insuffisant | S59: =1/7 -> 0.1428571429 | T59: =Q59*S59 -> 0
A60: 7.1 | B60: 6.1 | C60: 1.2.2.1 1.5.1.1 2.3.1.1 2.3.3.1 2.5.1.1 2.8.2.1 2.8.3.1 2.8.4.1 3.3.1.1 3.4.3.1 | D60: Ressources | E60: =O60 -> Insuffisant | F60: =N60 -> 0 | G60: =IFERROR(IF(F60<='Mode Emploi'!$G$14,'Mode Emploi'!$I$14,IF(F60<='Mode Emploi'!$G$15,'Mode Emploi'!$I$15,IF(F60<='Mode Emploi'!$G$16,'Mode Emploi'!$I$16,'Mode Emploi'!$I$17))),"") -> Conformité de niveau 1 : Il est nécessaire de formaliser les activités réalisées. | J60: Sous-Article | L60: vérifier si Somme = 1 => | M60: =SUM(M61:M73) -> 1 | N60: =IFERROR(SUM(N61:N73),"") -> 0 | O60: =IFERROR(IF(N60<='Mode Emploi'!$G$14,'Mode Emploi'!$H$14,IF(N60<='Mode Emploi'!$G$15,'Mode Emploi'!$H$15,IF(N60<='Mode Emploi'!$G$16,'Mode Emploi'!$H$16,'Mode Emploi'!$H$17))),"") -> Insuffisant | P60: =1/COUNTA($O$60:$O$95) -> 0.2 | Q60: =P60*N60 -> 0
A61: =CONCATENATE("cr ",MID(A58,3,4)+1) -> cr 42 | D61: L'organisme identifie et founit les ressources nécessaires au SMQ | E61: Choix de VÉRACITÉ | F61: =L61 ->  | G61: =CHOOSE(K61,"Libellé du critère quand il sera choisi",'Mode Emploi'!$B$14,'Mode Emploi'!$B$15,'Mode Emploi'!$B$16,'Mode Emploi'!$B$17,,) -> Libellé du critère quand il sera choisi | I61: =I58+1 -> 42 | J61: =E61 -> Choix de VÉRACITÉ | K61: =IFERROR((VLOOKUP(E61,'Mode Emploi'!$M$13:$N$17,2)),"") -> 1 | L61: =IFERROR(CHOOSE(K61,"",'Mode Emploi'!$E$14,'Mode Emploi'!$E$15,'Mode Emploi'!$E$16,'Mode Emploi'!$E$17,),"") ->  | M61: =1/COUNTA($D$61:$D$73) -> 0.07692307692 | N61: =IFERROR(L61*M61,"") -> 
A62: =CONCATENATE("cr ",MID(A61,3,4)+1) -> cr 43 | D62: L'organisme prend en compte les capacités et contraintes des ressources internes existantes et identifie les prestataires externes potentiels | E62: Choix de VÉRACITÉ | G62: =CHOOSE(K62,"Libellé du critère quand il sera choisi",'Mode Emploi'!$B$14,'Mode Emploi'!$B$15,'Mode Emploi'!$B$16,'Mode Emploi'!$B$17,,) -> Libellé du critère quand il sera choisi | I62: =I61+1 -> 43 | J62: Choix de VÉRACITÉ | K62: =IFERROR((VLOOKUP(E62,'Mode Emploi'!$M$13:$N$17,2)),"") -> 1 | L62: =IFERROR(CHOOSE(K62,"",'Mode Emploi'!$E$14,'Mode Emploi'!$E$15,'Mode Emploi'!$E$16,'Mode Emploi'!$E$17,),"") ->  | M62: 0.07692307692
A63: =CONCATENATE("cr ",MID(A62,3,4)+1) -> cr 44 | D63: L'organisme détermine et fournit les ressources humaines nécessaires au fonctionnement efficace du SMQ et de ses processus | E63: Choix de VÉRACITÉ | G63: =CHOOSE(K63,"Libellé du critère quand il sera choisi",'Mode Emploi'!$B$14,'Mode Emploi'!$B$15,'Mode Emploi'!$B$16,'Mode Emploi'!$B$17,,) -> Libellé du critère quand il sera choisi | I63: 44 | J63: Choix de VÉRACITÉ | K63: =IFERROR((VLOOKUP(E63,'Mode Emploi'!$M$13:$N$17,2)),"") -> 1 | L63: =IFERROR(CHOOSE(K63,"",'Mode Emploi'!$E$14,'Mode Emploi'!$E$15,'Mode Emploi'!$E$16,'Mode Emploi'!$E$17,),"") ->  | M63: 0.07692307692
A64: =CONCATENATE("cr ",MID(A63,3,4)+1) -> cr 45 | D64: L'organisme détermine, fournit et maintient l'infrastructure et l'environnement nécessaires à l'obtention de la conformité des produits et des services | E64: Choix de VÉRACITÉ | G64: =CHOOSE(K64,"Libellé du critère quand il sera choisi",'Mode Emploi'!$B$14,'Mode Emploi'!$B$15,'Mode Emploi'!$B$16,'Mode Emploi'!$B$17,,) -> Libellé du critère quand il sera choisi | I64: 45 | J64: Choix de VÉRACITÉ | K64: =IFERROR((VLOOKUP(E64,'Mode Emploi'!$M$13:$N$17,2)),"") -> 1 | L64: =IFERROR(CHOOSE(K64,"",'Mode Emploi'!$E$14,'Mode Emploi'!$E$15,'Mode Emploi'!$E$16,'Mode Emploi'!$E$17,),"") ->  | M64: 0.07692307692
A65: cr 46 | D65: L'organisme détermine et fournit les ressources nécessaires pour assurer la validité et la fiabilité des résultats de surveillance ou de mesure en lien avec la conformité des produits et services | E65: Choix de VÉRACITÉ | G65: =CHOOSE(K65,"Libellé du critère quand il sera choisi",'Mode Emploi'!$B$14,'Mode Emploi'!$B$15,'Mode Emploi'!$B$16,'Mode Emploi'!$B$17,,) -> Libellé du critère quand il sera choisi | I65: 46 | J65: Choix de VÉRACITÉ | K65: =IFERROR((VLOOKUP(E65,'Mode Emploi'!$M$13:$N$17,2)),"") -> 1 | L65: =IFERROR(CHOOSE(K65,"",'Mode Emploi'!$E$14,'Mode Emploi'!$E$15,'Mode Emploi'!$E$16,'Mode Emploi'!$E$17,),"") ->  | M65: 0.07692307692
A66: cr 47 | D66: L'organisme s'assure de l’adaptation, de l’adéquation et du maintien des ressources fournies pour les activités de surveillance et de mesure | E66: Choix de VÉRACITÉ | G66: =CHOOSE(K66,"Libellé du critère quand il sera choisi",'Mode Emploi'!$B$14,'Mode Emploi'!$B$15,'Mode Emploi'!$B$16,'Mode Emploi'!$B$17,,) -> Libellé du critère quand il sera choisi | I66: 47 | J66: Choix de VÉRACITÉ | K66: =IFERROR((VLOOKUP(E66,'Mode Emploi'!$M$13:$N$17,2)),"") -> 1 | L66: =IFERROR(CHOOSE(K66,"",'Mode Emploi'!$E$14,'Mode Emploi'!$E$15,'Mode Emploi'!$E$16,'Mode Emploi'!$E$17,),"") ->  | M66: 0.07692307692
A67: cr 48 | D67: Des informations documentées pour démontrer l'adéquation des ressources pour la surveillance et la mesure sont conservées | E67: Choix de VÉRACITÉ | G67: =CHOOSE(K67,"Libellé du critère quand il sera choisi",'Mode Emploi'!$B$14,'Mode Emploi'!$B$15,'Mode Emploi'!$B$16,'Mode Emploi'!$B$17,,) -> Libellé du critère quand il sera choisi | I67: 48 | J67: Choix de VÉRACITÉ | K67: =IFERROR((VLOOKUP(E67,'Mode Emploi'!$M$13:$N$17,2)),"") -> 1 | L67: =IFERROR(CHOOSE(K67,"",'Mode Emploi'!$E$14,'Mode Emploi'!$E$15,'Mode Emploi'!$E$16,'Mode Emploi'!$E$17,),"") ->  | M67: 0.07692307692
A68: cr 49 | D68: Les instruments de mesure sont identifiés, protégés, vérifiés et /ou étalonnés périodiquement | E68: Choix de VÉRACITÉ | G68: =CHOOSE(K68,"Libellé du critère quand il sera choisi",'Mode Emploi'!$B$14,'Mode Emploi'!$B$15,'Mode Emploi'!$B$16,'Mode Emploi'!$B$17,,) -> Libellé du critère quand il sera choisi | I68: 49 | J68: Choix de VÉRACITÉ | K68: =IFERROR((VLOOKUP(E68,'Mode Emploi'!$M$13:$N$17,2)),"") -> 1 | L68: =IFERROR(CHOOSE(K68,"",'Mode Emploi'!$E$14,'Mode Emploi'!$E$15,'Mode Emploi'!$E$16,'Mode Emploi'!$E$17,),"") ->  | M68: 0.07692307692
A69: cr 50 | D69: Tout équipement de mesure est relié aux étalons nationaux ou internationaux | E69: Choix de VÉRACITÉ | G69: =CHOOSE(K69,"Libellé du critère quand il sera choisi",'Mode Emploi'!$B$14,'Mode Emploi'!$B$15,'Mode Emploi'!$B$16,'Mode Emploi'!$B$17,,) -> Libellé du critère quand il sera choisi | I69: 50 | J69: Choix de VÉRACITÉ | K69: =IFERROR((VLOOKUP(E69,'Mode Emploi'!$M$13:$N$17,2)),"") -> 1 | L69: =IFERROR(CHOOSE(K69,"",'Mode Emploi'!$E$14,'Mode Emploi'!$E$15,'Mode Emploi'!$E$16,'Mode Emploi'!$E$17,),"") ->  | M69: 0.07692307692
A70: cr 51 | D70: Lorsque ces étalons n'existent pas, la référence utilisée est conservée sous forme d'information documentée | E70: Choix de VÉRACITÉ | F70: =L70 ->  | G70: =CHOOSE(K70,"Libellé du critère quand il sera choisi",'Mode Emploi'!$B$14,'Mode Emploi'!$B$15,'Mode Emploi'!$B$16,'Mode Emploi'!$B$17,,) -> Libellé du critère quand il sera choisi | I70: 51 | J70: =E70 -> Choix de VÉRACITÉ | K70: =IFERROR((VLOOKUP(E70,'Mode Emploi'!$M$13:$N$17,2)),"") -> 1 | L70: =IFERROR(CHOOSE(K70,"",'Mode Emploi'!$E$14,'Mode Emploi'!$E$15,'Mode Emploi'!$E$16,'Mode Emploi'!$E$17,),"") ->  | M70: 0.07692307692
A71: cr 52 | D71: Lorsqu'un équipement de mesure s'avère inadapté à l’usage prévu, la validité des résultats antérieurs est vérifiée. Le cas échéant, une action appropriée est mise en oeuvre | E71: Choix de VÉRACITÉ | G71: =CHOOSE(K71,"Libellé du critère quand il sera choisi",'Mode Emploi'!$B$14,'Mode Emploi'!$B$15,'Mode Emploi'!$B$16,'Mode Emploi'!$B$17,,) -> Libellé du critère quand il sera choisi | I71: 52 | J71: Choix de VÉRACITÉ | K71: =IFERROR((VLOOKUP(E71,'Mode Emploi'!$M$13:$N$17,2)),"") -> 1 | L71: =IFERROR(CHOOSE(K71,"",'Mode Emploi'!$E$14,'Mode Emploi'!$E$15,'Mode Emploi'!$E$16,'Mode Emploi'!$E$17,),"") ->  | M71: 0.07692307692
A72: cr 53 | D72: Les connaissances clés pour le bon fonctionnement du SMQ sont identifiées, tenues à jour et partagées | E72: Choix de VÉRACITÉ | G72: =CHOOSE(K72,"Libellé du critère quand il sera choisi",'Mode Emploi'!$B$14,'Mode Emploi'!$B$15,'Mode Emploi'!$B$16,'Mode Emploi'!$B$17,,) -> Libellé du critère quand il sera choisi | I72: 53 | J72: Choix de VÉRACITÉ | K72: =IFERROR((VLOOKUP(E72,'Mode Emploi'!$M$13:$N$17,2)),"") -> 1 | L72: =IFERROR(CHOOSE(K72,"",'Mode Emploi'!$E$14,'Mode Emploi'!$E$15,'Mode Emploi'!$E$16,'Mode Emploi'!$E$17,),"") ->  | M72: 0.07692307692
A73: cr 54 | D73: L'organisme évalue ses connaissances actuelles par rapport aux évolutions et détermine la façon d'acquérir les connaissances supplémentaires nécessaires | E73: Choix de VÉRACITÉ | G73: =CHOOSE(K73,"Libellé du critère quand il sera choisi",'Mode Emploi'!$B$14,'Mode Emploi'!$B$15,'Mode Emploi'!$B$16,'Mode Emploi'!$B$17,,) -> Libellé du critère quand il sera choisi | I73: 54 | J73: Choix de VÉRACITÉ | K73: =IFERROR((VLOOKUP(E73,'Mode Emploi'!$M$13:$N$17,2)),"") -> 1 | L73: =IFERROR(CHOOSE(K73,"",'Mode Emploi'!$E$14,'Mode Emploi'!$E$15,'Mode Emploi'!$E$16,'Mode Emploi'!$E$17,),"") ->  | M73: 0.07692307692
A74: 7.2 | B74: 6.2.1-6.2.2 | C74: 1.5.1.1 2.3.1.1 2.3.2.1 2.3.3.1 2.3.4.1 3.3.1.1 | D74: Compétences | E74: =O74 -> Insuffisant | F74: =N74 -> 0 | G74: =IFERROR(IF(F74<='Mode Emploi'!$G$14,'Mode Emploi'!$I$14,IF(F74<='Mode Emploi'!$G$15,'Mode Emploi'!$I$15,IF(F74<='Mode Emploi'!$G$16,'Mode Emploi'!$I$16,'Mode Emploi'!$I$17))),"") -> Conformité de niveau 1 : Il est nécessaire de formaliser les activités réalisées. | J74: Sous-Article | L74: vérifier si Somme = 1 => | M74: =SUM(M75:M78) -> 1 | N74: =IFERROR(SUM(N75:N78),"") -> 0 | O74: =IFERROR(IF(N74<='Mode Emploi'!$G$14,'Mode Emploi'!$H$14,IF(N74<='Mode Emploi'!$G$15,'Mode Emploi'!$H$15,IF(N74<='Mode Emploi'!$G$16,'Mode Emploi'!$H$16,'Mode Emploi'!$H$17))),"") -> Insuffisant | P74: =1/COUNTA($O$60:$O$95) -> 0.2 | Q74: =P74*N74 -> 0
A75: =CONCATENATE("cr ",MID(A73,3,4)+1) -> cr 55 | D75: Les compétences nécessaires des personnes dont le travail a une incidence sur les performances du SMQ sont déterminées | E75: Choix de VÉRACITÉ | F75: =L75 ->  | G75: =CHOOSE(K75,"Libellé du critère quand il sera choisi",'Mode Emploi'!$B$14,'Mode Emploi'!$B$15,'Mode Emploi'!$B$16,'Mode Emploi'!$B$17,,) -> Libellé du critère quand il sera choisi | I75: =I73+1 -> 55 | J75: =E75 -> Choix de VÉRACITÉ | K75: =IFERROR((VLOOKUP(E75,'Mode Emploi'!$M$13:$N$17,2)),"") -> 1 | L75: =IFERROR(CHOOSE(K75,"",'Mode Emploi'!$E$14,'Mode Emploi'!$E$15,'Mode Emploi'!$E$16,'Mode Emploi'!$E$17,),"") ->  | M75: =1/COUNTA($D$75:$D$78) -> 0.25 | N75: =IFERROR(L75*M75,"") -> 
A76: =CONCATENATE("cr ",MID(A75,3,4)+1) -> cr 56 | D76: Les compétences du personnel sont évaluées sur la base d'une formation ou d'une expérience appropriée | E76: Choix de VÉRACITÉ | F76: =L76 ->  | G76: =CHOOSE(K76,"Libellé du critère quand il sera choisi",'Mode Emploi'!$B$14,'Mode Emploi'!$B$15,'Mode Emploi'!$B$16,'Mode Emploi'!$B$17,,) -> Libellé du critère quand il sera choisi | I76: =I75+1 -> 56 | J76: =E76 -> Choix de VÉRACITÉ | K76: =IFERROR((VLOOKUP(E76,'Mode Emploi'!$M$13:$N$17,2)),"") -> 1 | L76: =IFERROR(CHOOSE(K76,"",'Mode Emploi'!$E$14,'Mode Emploi'!$E$15,'Mode Emploi'!$E$16,'Mode Emploi'!$E$17,),"") ->  | M76: =1/COUNTA($D$75:$D$78) -> 0.25 | N76: =IFERROR(L76*M76,"") -> 
A77: =CONCATENATE("cr ",MID(A76,3,4)+1) -> cr 57 | D77: L'organisme met en place et évalue l'efficacité des actions pour acquérir ou renforcer les compétences nécessaires au bon fonctionnement du SMQ | E77: Choix de VÉRACITÉ | F77: =L77 ->  | G77: =CHOOSE(K77,"Libellé du critère quand il sera choisi",'Mode Emploi'!$B$14,'Mode Emploi'!$B$15,'Mode Emploi'!$B$16,'Mode Emploi'!$B$17,,) -> Libellé du critère quand il sera choisi | I77: =I76+1 -> 57 | J77: =E77 -> Choix de VÉRACITÉ | K77: =IFERROR((VLOOKUP(E77,'Mode Emploi'!$M$13:$N$17,2)),"") -> 1 | L77: =IFERROR(CHOOSE(K77,"",'Mode Emploi'!$E$14,'Mode Emploi'!$E$15,'Mode Emploi'!$E$16,'Mode Emploi'!$E$17,),"") ->  | M77: =1/COUNTA($D$75:$D$78) -> 0.25 | N77: =IFERROR(L77*M77,"") -> 
A78: =CONCATENATE("cr ",MID(A77,3,4)+1) -> cr 58 | D78: Les informations documentées sur les compétences du personnel sont conservées | E78: Choix de VÉRACITÉ | F78: =L78 ->  | G78: =CHOOSE(K78,"Libellé du critère quand il sera choisi",'Mode Emploi'!$B$14,'Mode Emploi'!$B$15,'Mode Emploi'!$B$16,'Mode Emploi'!$B$17,,) -> Libellé du critère quand il sera choisi | I78: =I77+1 -> 58 | J78: =E78 -> Choix de VÉRACITÉ | K78: =IFERROR((VLOOKUP(E78,'Mode Emploi'!$M$13:$N$17,2)),"") -> 1 | L78: =IFERROR(CHOOSE(K78,"",'Mode Emploi'!$E$14,'Mode Emploi'!$E$15,'Mode Emploi'!$E$16,'Mode Emploi'!$E$17,),"") ->  | M78: =1/COUNTA($D$75:$D$78) -> 0.25 | N78: =IFERROR(L78*M78,"") -> 
A79: 7.3 | B79: 6.2.2 | C79: 1.5.1.1 2.3.1.1 2.3.3.1 3.3.1.1 | D79: Sensibilisation | E79: =O79 -> Insuffisant | F79: =N79 -> 0 | G79: =IFERROR(IF(F79<='Mode Emploi'!$G$14,'Mode Emploi'!$I$14,IF(F79<='Mode Emploi'!$G$15,'Mode Emploi'!$I$15,IF(F79<='Mode Emploi'!$G$16,'Mode Emploi'!$I$16,'Mode Emploi'!$I$17))),"") -> Conformité de niveau 1 : Il est nécessaire de formaliser les activités réalisées. | J79: Sous-Article | L79: vérifier si Somme = 1 => | M79: =SUM(M80:M82) -> 1 | N79: =IFERROR(SUM(N80:N82),"") -> 0 | O79: =IFERROR(IF(N79<='Mode Emploi'!$G$14,'Mode Emploi'!$H$14,IF(N79<='Mode Emploi'!$G$15,'Mode Emploi'!$H$15,IF(N79<='Mode Emploi'!$G$16,'Mode Emploi'!$H$16,'Mode Emploi'!$H$17))),"") -> Insuffisant | P79: =1/COUNTA($O$60:$O$95) -> 0.2 | Q79: =P79*N79 -> 0
A80: =CONCATENATE("cr ",MID(A78,3,4)+1) -> cr 59 | D80: L'organisme s'assure que le personnel est sensibilisé à la politique et aux objectifs qualité | E80: Choix de VÉRACITÉ | F80: =L80 ->  | G80: =CHOOSE(K80,"Libellé du critère quand il sera choisi",'Mode Emploi'!$B$14,'Mode Emploi'!$B$15,'Mode Emploi'!$B$16,'Mode Emploi'!$B$17,,) -> Libellé du critère quand il sera choisi | I80: =I78+1 -> 59 | J80: =E80 -> Choix de VÉRACITÉ | K80: =IFERROR((VLOOKUP(E80,'Mode Emploi'!$M$13:$N$17,2)),"") -> 1 | L80: =IFERROR(CHOOSE(K80,"",'Mode Emploi'!$E$14,'Mode Emploi'!$E$15,'Mode Emploi'!$E$16,'Mode Emploi'!$E$17,),"") ->  | M80: =1/COUNTA($D$80:$D$82) -> 0.3333333333 | N80: =IFERROR(L80*M80,"") -> 
A81: =CONCATENATE("cr ",MID(A80,3,4)+1) -> cr 60 | D81: L'organisme s'assure que le personnel est conscient de l'importance de son activité, de sa contribution individuelle et collective à la réalisation de ces objectifs | E81: Choix de VÉRACITÉ | F81: =L81 ->  | G81: =CHOOSE(K81,"Libellé du critère quand il sera choisi",'Mode Emploi'!$B$14,'Mode Emploi'!$B$15,'Mode Emploi'!$B$16,'Mode Emploi'!$B$17,,) -> Libellé du critère quand il sera choisi | I81: =I80+1 -> 60 | J81: =E81 -> Choix de VÉRACITÉ | K81: =IFERROR((VLOOKUP(E81,'Mode Emploi'!$M$13:$N$17,2)),"") -> 1 | L81: =IFERROR(CHOOSE(K81,"",'Mode Emploi'!$E$14,'Mode Emploi'!$E$15,'Mode Emploi'!$E$16,'Mode Emploi'!$E$17,),"") ->  | M81: =1/COUNTA($D$80:$D$82) -> 0.3333333333 | N81: =IFERROR(L81*M81,"") -> 
A82: =CONCATENATE("cr ",MID(A81,3,4)+1) -> cr 61 | D82: Le personnel est sensibilisé aux effets bénéfiques d'une amélioration des performances et aux répercussions d'un non respect des exigences du SMQ | E82: Choix de VÉRACITÉ | F82: =L82 ->  | G82: =CHOOSE(K82,"Libellé du critère quand il sera choisi",'Mode Emploi'!$B$14,'Mode Emploi'!$B$15,'Mode Emploi'!$B$16,'Mode Emploi'!$B$17,,) -> Libellé du critère quand il sera choisi | I82: =I81+1 -> 61 | J82: =E82 -> Choix de VÉRACITÉ | K82: =IFERROR((VLOOKUP(E82,'Mode Emploi'!$M$13:$N$17,2)),"") -> 1 | L82: =IFERROR(CHOOSE(K82,"",'Mode Emploi'!$E$14,'Mode Emploi'!$E$15,'Mode Emploi'!$E$16,'Mode Emploi'!$E$17,),"") ->  | M82: =1/COUNTA($D$80:$D$82) -> 0.3333333333 | N82: =IFERROR(L82*M82,"") -> 
A83: 7.4 | B83: 5.5.3 | C83: 1.3.1.1 3.4.2.1 3.4.3.1 | D83: Communication | E83: =O83 -> Insuffisant | F83: =N83 -> 0 | G83: =IFERROR(IF(F83<='Mode Emploi'!$G$14,'Mode Emploi'!$I$14,IF(F83<='Mode Emploi'!$G$15,'Mode Emploi'!$I$15,IF(F83<='Mode Emploi'!$G$16,'Mode Emploi'!$I$16,'Mode Emploi'!$I$17))),"") -> Conformité de niveau 1 : Il est nécessaire de formaliser les activités réalisées. | J83: Sous-Article | L83: vérifier si Somme = 1 => | M83: =SUM(M84:M87) -> 1 | N83: =IFERROR(SUM(N84:N87),"") -> 0 | O83: =IFERROR(IF(N83<='Mode Emploi'!$G$14,'Mode Emploi'!$H$14,IF(N83<='Mode Emploi'!$G$15,'Mode Emploi'!$H$15,IF(N83<='Mode Emploi'!$G$16,'Mode Emploi'!$H$16,'Mode Emploi'!$H$17))),"") -> Insuffisant | P83: =1/COUNTA($O$60:$O$95) -> 0.2 | Q83: =P83*N83 -> 0
A84: =CONCATENATE("cr ",MID(A82,3,4)+1) -> cr 62 | D84: La pertinence des besoins de communication interne est déterminée | E84: Choix de VÉRACITÉ | F84: =L84 ->  | G84: =CHOOSE(K84,"Libellé du critère quand il sera choisi",'Mode Emploi'!$B$14,'Mode Emploi'!$B$15,'Mode Emploi'!$B$16,'Mode Emploi'!$B$17,,) -> Libellé du critère quand il sera choisi | I84: =I82+1 -> 62 | J84: =E84 -> Choix de VÉRACITÉ | K84: =IFERROR((VLOOKUP(E84,'Mode Emploi'!$M$13:$N$17,2)),"") -> 1 | L84: =IFERROR(CHOOSE(K84,"",'Mode Emploi'!$E$14,'Mode Emploi'!$E$15,'Mode Emploi'!$E$16,'Mode Emploi'!$E$17,),"") ->  | M84: =1/COUNTA($D$84:$D$87) -> 0.25 | N84: =IFERROR(L84*M84,"") -> 
A85: =CONCATENATE("cr ",MID(A84,3,4)+1) -> cr 63 | D85: La pertinence des besoins de communication externe est déterminée | E85: Choix de VÉRACITÉ | F85: =L85 ->  | G85: =CHOOSE(K85,"Libellé du critère quand il sera choisi",'Mode Emploi'!$B$14,'Mode Emploi'!$B$15,'Mode Emploi'!$B$16,'Mode Emploi'!$B$17,,) -> Libellé du critère quand il sera choisi | I85: =I84+1 -> 63 | J85: =E85 -> Choix de VÉRACITÉ | K85: =IFERROR((VLOOKUP(E85,'Mode Emploi'!$M$13:$N$17,2)),"") -> 1 | L85: =IFERROR(CHOOSE(K85,"",'Mode Emploi'!$E$14,'Mode Emploi'!$E$15,'Mode Emploi'!$E$16,'Mode Emploi'!$E$17,),"") ->  | M85: =1/COUNTA($D$84:$D$87) -> 0.25 | N85: =IFERROR(L85*M85,"") -> 
A86: =CONCATENATE("cr ",MID(A85,3,4)+1) -> cr 64 | D86: Les modalités de communication interne et externes sont déterminées | E86: Choix de VÉRACITÉ | F86: =L86 ->  | G86: =CHOOSE(K86,"Libellé du critère quand il sera choisi",'Mode Emploi'!$B$14,'Mode Emploi'!$B$15,'Mode Emploi'!$B$16,'Mode Emploi'!$B$17,,) -> Libellé du critère quand il sera choisi | I86: =I85+1 -> 64 | J86: =E86 -> Choix de VÉRACITÉ | K86: =IFERROR((VLOOKUP(E86,'Mode Emploi'!$M$13:$N$17,2)),"") -> 1 | L86: =IFERROR(CHOOSE(K86,"",'Mode Emploi'!$E$14,'Mode Emploi'!$E$15,'Mode Emploi'!$E$16,'Mode Emploi'!$E$17,),"") ->  | M86: =1/COUNTA($D$84:$D$87) -> 0.25 | N86: =IFERROR(L86*M86,"") -> 
A87: cr 65 | D87: Les informations suivantes sont renseignées : les sujets communiqués ,le(s) moment(s) communiquer, avec qui communiquer, comment communiquer et qui communique l'information. | E87: Choix de VÉRACITÉ | F87: =L87 ->  | G87: =CHOOSE(K87,"Libellé du critère quand il sera choisi",'Mode Emploi'!$B$14,'Mode Emploi'!$B$15,'Mode Emploi'!$B$16,'Mode Emploi'!$B$17,,) -> Libellé du critère quand il sera choisi | I87: =I86+1 -> 65 | J87: =E87 -> Choix de VÉRACITÉ | K87: =IFERROR((VLOOKUP(E87,'Mode Emploi'!$M$13:$N$17,2)),"") -> 1 | L87: =IFERROR(CHOOSE(K87,"",'Mode Emploi'!$E$14,'Mode Emploi'!$E$15,'Mode Emploi'!$E$16,'Mode Emploi'!$E$17,),"") ->  | M87: =1/COUNTA($D$84:$D$87) -> 0.25 | N87: =IFERROR(L87*M87,"") -> 
A88: 7.5 | B88: 4.2 | C88: 1.2.1.1 2.6.1.2 2.8.3.1 3.4.2.1 3.4.3.1 | D88: Informations documentées | E88: =O88 -> Insuffisant | F88: =N88 -> 0 | G88: =IFERROR(IF(F88<='Mode Emploi'!$G$14,'Mode Emploi'!$I$14,IF(F88<='Mode Emploi'!$G$15,'Mode Emploi'!$I$15,IF(F88<='Mode Emploi'!$G$16,'Mode Emploi'!$I$16,'Mode Emploi'!$I$17))),"") -> Conformité de niveau 1 : Il est nécessaire de formaliser les activités réalisées. | J88: Sous-Article | L88: vérifier si Somme = 1 => | M88: =SUM(M89:M95) -> 1 | N88: =IFERROR(SUM(N89:N95),"") -> 0 | O88: =IFERROR(IF(N88<='Mode Emploi'!$G$14,'Mode Emploi'!$H$14,IF(N88<='Mode Emploi'!$G$15,'Mode Emploi'!$H$15,IF(N88<='Mode Emploi'!$G$16,'Mode Emploi'!$H$16,'Mode Emploi'!$H$17))),"") -> Insuffisant | P88: =1/COUNTA($O$60:$O$95) -> 0.2 | Q88: =P88*N88 -> 0
A89: =CONCATENATE("cr ",MID(A87,3,4)+1) -> cr 66 | D89: Les informations documentées comprennent celles exigées par l'ISO 9001 et celles nécessaires à son efficacité | E89: Choix de VÉRACITÉ | F89: =L89 ->  | G89: =CHOOSE(K89,"Libellé du critère quand il sera choisi",'Mode Emploi'!$B$14,'Mode Emploi'!$B$15,'Mode Emploi'!$B$16,'Mode Emploi'!$B$17,,) -> Libellé du critère quand il sera choisi | I89: =I87+1 -> 66 | J89: =E89 -> Choix de VÉRACITÉ | K89: =IFERROR((VLOOKUP(E89,'Mode Emploi'!$M$13:$N$17,2)),"") -> 1 | L89: =IFERROR(CHOOSE(K89,"",'Mode Emploi'!$E$14,'Mode Emploi'!$E$15,'Mode Emploi'!$E$16,'Mode Emploi'!$E$17,),"") ->  | M89: =1/COUNTA($D$89:$D$95) -> 0.1428571429 | N89: =IFERROR(L89*M89,"") -> 
A90: =CONCATENATE("cr ",MID(A89,3,4)+1) -> cr 67 | D90: Toute information documentée est identifiée et décrite de manière compréhensible dans un format et sur un support accessibles | E90: Choix de VÉRACITÉ | G90: =CHOOSE(K90,"Libellé du critère quand il sera choisi",'Mode Emploi'!$B$14,'Mode Emploi'!$B$15,'Mode Emploi'!$B$16,'Mode Emploi'!$B$17,,) -> Libellé du critère quand il sera choisi | I90: =I89+1 -> 67 | J90: Choix de VÉRACITÉ | K90: =IFERROR((VLOOKUP(E90,'Mode Emploi'!$M$13:$N$17,2)),"") -> 1 | L90: =IFERROR(CHOOSE(K90,"",'Mode Emploi'!$E$14,'Mode Emploi'!$E$15,'Mode Emploi'!$E$16,'Mode Emploi'!$E$17,),"") ->  | M90: 0.1428571429
A91: cr 68 | D91: Le contenu des informations documentées est revu périodiquement en termes de pertinence et d'adéquation à l'usage | E91: Choix de VÉRACITÉ | G91: =CHOOSE(K91,"Libellé du critère quand il sera choisi",'Mode Emploi'!$B$14,'Mode Emploi'!$B$15,'Mode Emploi'!$B$16,'Mode Emploi'!$B$17,,) -> Libellé du critère quand il sera choisi | I91: 68 | J91: Choix de VÉRACITÉ | K91: =IFERROR((VLOOKUP(E91,'Mode Emploi'!$M$13:$N$17,2)),"") -> 1 | L91: =IFERROR(CHOOSE(K91,"",'Mode Emploi'!$E$14,'Mode Emploi'!$E$15,'Mode Emploi'!$E$16,'Mode Emploi'!$E$17,),"") ->  | M91: 0.1428571429
A92: cr 69 | D92: Les informations documentées sont utiles, utilisables et utilisées | E92: Choix de VÉRACITÉ | G92: =CHOOSE(K92,"Libellé du critère quand il sera choisi",'Mode Emploi'!$B$14,'Mode Emploi'!$B$15,'Mode Emploi'!$B$16,'Mode Emploi'!$B$17,,) -> Libellé du critère quand il sera choisi | I92: 69 | J92: Choix de VÉRACITÉ | K92: =IFERROR((VLOOKUP(E92,'Mode Emploi'!$M$13:$N$17,2)),"") -> 1 | L92: =IFERROR(CHOOSE(K92,"",'Mode Emploi'!$E$14,'Mode Emploi'!$E$15,'Mode Emploi'!$E$16,'Mode Emploi'!$E$17,),"") ->  | M92: 0.1428571429
A93: cr 70 | D93: Les modifications des informations documentées sont maitrisées (contrôle des versions par exemple) | E93: Choix de VÉRACITÉ | G93: =CHOOSE(K93,"Libellé du critère quand il sera choisi",'Mode Emploi'!$B$14,'Mode Emploi'!$B$15,'Mode Emploi'!$B$16,'Mode Emploi'!$B$17,,) -> Libellé du critère quand il sera choisi | I93: 70 | J93: Choix de VÉRACITÉ | K93: =IFERROR((VLOOKUP(E93,'Mode Emploi'!$M$13:$N$17,2)),"") -> 1 | L93: =IFERROR(CHOOSE(K93,"",'Mode Emploi'!$E$14,'Mode Emploi'!$E$15,'Mode Emploi'!$E$16,'Mode Emploi'!$E$17,),"") ->  | M93: 0.1428571429
A94: cr 71 | D94: La gestion des informations documentées est bien maîtrisée en termes de distribution, accès, stockage, protection, conservation et élimination | E94: Choix de VÉRACITÉ | G94: =CHOOSE(K94,"Libellé du critère quand il sera choisi",'Mode Emploi'!$B$14,'Mode Emploi'!$B$15,'Mode Emploi'!$B$16,'Mode Emploi'!$B$17,,) -> Libellé du critère quand il sera choisi | I94: 71 | J94: Choix de VÉRACITÉ | K94: =IFERROR((VLOOKUP(E94,'Mode Emploi'!$M$13:$N$17,2)),"") -> 1 | L94: =IFERROR(CHOOSE(K94,"",'Mode Emploi'!$E$14,'Mode Emploi'!$E$15,'Mode Emploi'!$E$16,'Mode Emploi'!$E$17,),"") ->  | M94: 0.1428571429
A95: cr 72 | D95: Les informations documentées externes sont identifiées et maitrisées | E95: Choix de VÉRACITÉ | G95: =CHOOSE(K95,"Libellé du critère quand il sera choisi",'Mode Emploi'!$B$14,'Mode Emploi'!$B$15,'Mode Emploi'!$B$16,'Mode Emploi'!$B$17,,) -> Libellé du critère quand il sera choisi | I95: 72 | J95: Choix de VÉRACITÉ | K95: =IFERROR((VLOOKUP(E95,'Mode Emploi'!$M$13:$N$17,2)),"") -> 1 | L95: =IFERROR(CHOOSE(K95,"",'Mode Emploi'!$E$14,'Mode Emploi'!$E$15,'Mode Emploi'!$E$16,'Mode Emploi'!$E$17,),"") ->  | M95: 0.1428571429
A96: Art. 8 | B96: Art 7 | C96: 1-2-3 | D96: Réalisation des activités opérationnelles | E96: =R96 -> Insuffisant | F96: =Q96 -> 0 | G96: =IFERROR(IF(F96<='Mode Emploi'!$G$14,'Mode Emploi'!$I$14,IF(F96<='Mode Emploi'!$G$15,'Mode Emploi'!$I$15,IF(F96<='Mode Emploi'!$G$16,'Mode Emploi'!$I$16,'Mode Emploi'!$I$17))),"") -> Conformité de niveau 1 : Il est nécessaire de formaliser les activités réalisées. | J96: Article | O96: vérifier si Somme = 1 => | P96: =SUM(P97:P153) -> 1 | Q96: =IFERROR(SUM(Q97:Q153),"") -> 0 | R96: =IFERROR(IF(Q96<='Mode Emploi'!$G$14,'Mode Emploi'!$H$14,IF(Q96<='Mode Emploi'!$G$15,'Mode Emploi'!$H$15,IF(Q96<='Mode Emploi'!$G$16,'Mode Emploi'!$H$16,'Mode Emploi'!$H$17))),"") -> Insuffisant | S96: =1/7 -> 0.1428571429 | T96: =Q96*S96 -> 0
A97: 8.1 | B97: 7.1 | C97: 1.4.1.1 2.1.1.1 2.1.2.1 2.2.2.1 2.4.1.1 2.9.1.1 | D97: Planification et maîtrise opérationnelles | E97: =O97 -> Insuffisant | F97: =N97 -> 0 | G97: =IFERROR(IF(F97<='Mode Emploi'!$G$14,'Mode Emploi'!$I$14,IF(F97<='Mode Emploi'!$G$15,'Mode Emploi'!$I$15,IF(F97<='Mode Emploi'!$G$16,'Mode Emploi'!$I$16,'Mode Emploi'!$I$17))),"") -> Conformité de niveau 1 : Il est nécessaire de formaliser les activités réalisées. | J97: Sous-Article | L97: vérifier si Somme = 1 => | M97: =SUM(M98:M105) -> 1 | N97: =IFERROR(SUM(N98:N105),"") -> 0 | O97: =IFERROR(IF(N97<='Mode Emploi'!$G$14,'Mode Emploi'!$H$14,IF(N97<='Mode Emploi'!$G$15,'Mode Emploi'!$H$15,IF(N97<='Mode Emploi'!$G$16,'Mode Emploi'!$H$16,'Mode Emploi'!$H$17))),"") -> Insuffisant | P97: =1/COUNTA($O$97:$O$153) -> 0.1428571429 | Q97: =P97*N97 -> 0
A98: =CONCATENATE("cr ",MID(A95,3,4)+1) -> cr 73 | D98: Les processus internes et externes relatifs à la fourniture des produits et services sont planifiés, mis en œuvre et maîtrisés | E98: Choix de VÉRACITÉ | F98: =L98 ->  | G98: =CHOOSE(K98,"Libellé du critère quand il sera choisi",'Mode Emploi'!$B$14,'Mode Emploi'!$B$15,'Mode Emploi'!$B$16,'Mode Emploi'!$B$17,,) -> Libellé du critère quand il sera choisi | I98: =I95+1 -> 73 | J98: =E98 -> Choix de VÉRACITÉ | K98: =IFERROR((VLOOKUP(E98,'Mode Emploi'!$M$13:$N$17,2)),"") -> 1 | L98: =IFERROR(CHOOSE(K98,"",'Mode Emploi'!$E$14,'Mode Emploi'!$E$15,'Mode Emploi'!$E$16,'Mode Emploi'!$E$17,),"") ->  | M98: =1/COUNTA($D$98:$D$105) -> 0.125 | N98: =IFERROR(L98*M98,"") -> 
A99: =CONCATENATE("cr ",MID(A98,3,4)+1) -> cr 74 | D99: Les exigences et les critères d'acceptation des éléments de sortie des processus (produits et services) sont déterminés | E99: Choix de VÉRACITÉ | G99: =CHOOSE(K99,"Libellé du critère quand il sera choisi",'Mode Emploi'!$B$14,'Mode Emploi'!$B$15,'Mode Emploi'!$B$16,'Mode Emploi'!$B$17,,) -> Libellé du critère quand il sera choisi | I99: =I98+1 -> 74 | J99: Choix de VÉRACITÉ | K99: =IFERROR((VLOOKUP(E99,'Mode Emploi'!$M$13:$N$17,2)),"") -> 1 | L99: =IFERROR(CHOOSE(K99,"",'Mode Emploi'!$E$14,'Mode Emploi'!$E$15,'Mode Emploi'!$E$16,'Mode Emploi'!$E$17,),"") ->  | M99: 0.125
A100: cr 75 | D100: L'organisme assure la maîtrise des processus conformément aux critères d'acceptation des éléments de sortie | E100: Choix de VÉRACITÉ | G100: =CHOOSE(K100,"Libellé du critère quand il sera choisi",'Mode Emploi'!$B$14,'Mode Emploi'!$B$15,'Mode Emploi'!$B$16,'Mode Emploi'!$B$17,,) -> Libellé du critère quand il sera choisi | I100: 75 | J100: Choix de VÉRACITÉ | K100: =IFERROR((VLOOKUP(E100,'Mode Emploi'!$M$13:$N$17,2)),"") -> 1 | L100: =IFERROR(CHOOSE(K100,"",'Mode Emploi'!$E$14,'Mode Emploi'!$E$15,'Mode Emploi'!$E$16,'Mode Emploi'!$E$17,),"") ->  | M100: 0.125
A101: cr 76 | D101: L'organisme détermine les ressources nécessaires à l'obtention de la conformité des produits et services | E101: Choix de VÉRACITÉ | G101: =CHOOSE(K101,"Libellé du critère quand il sera choisi",'Mode Emploi'!$B$14,'Mode Emploi'!$B$15,'Mode Emploi'!$B$16,'Mode Emploi'!$B$17,,) -> Libellé du critère quand il sera choisi | I101: 76 | J101: Choix de VÉRACITÉ | K101: =IFERROR((VLOOKUP(E101,'Mode Emploi'!$M$13:$N$17,2)),"") -> 1 | L101: =IFERROR(CHOOSE(K101,"",'Mode Emploi'!$E$14,'Mode Emploi'!$E$15,'Mode Emploi'!$E$16,'Mode Emploi'!$E$17,),"") ->  | M101: 0.125
A102: cr 77 | D102: Des informations documentées mises à jour prouvent l'efficacité des processus et la conformité des produits et services | E102: Choix de VÉRACITÉ | G102: =CHOOSE(K102,"Libellé du critère quand il sera choisi",'Mode Emploi'!$B$14,'Mode Emploi'!$B$15,'Mode Emploi'!$B$16,'Mode Emploi'!$B$17,,) -> Libellé du critère quand il sera choisi | I102: 77 | J102: Choix de VÉRACITÉ | K102: =IFERROR((VLOOKUP(E102,'Mode Emploi'!$M$13:$N$17,2)),"") -> 1 | L102: =IFERROR(CHOOSE(K102,"",'Mode Emploi'!$E$14,'Mode Emploi'!$E$15,'Mode Emploi'!$E$16,'Mode Emploi'!$E$17,),"") ->  | M102: 0.125
A103: cr 78 | D103: Les éléments de sortie de la planification sont adaptés aux modes de fonctionnement et savoir-faire de l'organisme. | E103: Choix de VÉRACITÉ | G103: =CHOOSE(K103,"Libellé du critère quand il sera choisi",'Mode Emploi'!$B$14,'Mode Emploi'!$B$15,'Mode Emploi'!$B$16,'Mode Emploi'!$B$17,,) -> Libellé du critère quand il sera choisi | I103: 78 | J103: Choix de VÉRACITÉ | K103: =IFERROR((VLOOKUP(E103,'Mode Emploi'!$M$13:$N$17,2)),"") -> 1 | L103: =IFERROR(CHOOSE(K103,"",'Mode Emploi'!$E$14,'Mode Emploi'!$E$15,'Mode Emploi'!$E$16,'Mode Emploi'!$E$17,),"") ->  | M103: 0.125
A104: cr 79 | D104: Toute modification prévue est maîtrisée, analysée dans ses conséquences et des actions sont menées pour anticiper tout effet négatif | E104: Choix de VÉRACITÉ | G104: =CHOOSE(K104,"Libellé du critère quand il sera choisi",'Mode Emploi'!$B$14,'Mode Emploi'!$B$15,'Mode Emploi'!$B$16,'Mode Emploi'!$B$17,,) -> Libellé du critère quand il sera choisi | I104: 79 | J104: Choix de VÉRACITÉ | K104: =IFERROR((VLOOKUP(E104,'Mode Emploi'!$M$13:$N$17,2)),"") -> 1 | L104: =IFERROR(CHOOSE(K104,"",'Mode Emploi'!$E$14,'Mode Emploi'!$E$15,'Mode Emploi'!$E$16,'Mode Emploi'!$E$17,),"") ->  | M104: 0.125
A105: cr 80 | D105: Les processus externalisés sont maîtrisés | E105: Choix de VÉRACITÉ | G105: =CHOOSE(K105,"Libellé du critère quand il sera choisi",'Mode Emploi'!$B$14,'Mode Emploi'!$B$15,'Mode Emploi'!$B$16,'Mode Emploi'!$B$17,,) -> Libellé du critère quand il sera choisi | I105: 80 | J105: Choix de VÉRACITÉ | K105: =IFERROR((VLOOKUP(E105,'Mode Emploi'!$M$13:$N$17,2)),"") -> 1 | L105: =IFERROR(CHOOSE(K105,"",'Mode Emploi'!$E$14,'Mode Emploi'!$E$15,'Mode Emploi'!$E$16,'Mode Emploi'!$E$17,),"") ->  | M105: 0.125
A106: 8.2 | B106: 7.2 | C106: 2.1.1.1 2.1.2.1 2.4.1.1 3.5.1.1 3.5.2.1 | D106: Exigences relatives aux produits et services | E106: =O106 -> Insuffisant | F106: =N106 -> 0 | G106: =IFERROR(IF(F106<='Mode Emploi'!$G$14,'Mode Emploi'!$I$14,IF(F106<='Mode Emploi'!$G$15,'Mode Emploi'!$I$15,IF(F106<='Mode Emploi'!$G$16,'Mode Emploi'!$I$16,'Mode Emploi'!$I$17))),"") -> Conformité de niveau 1 : Il est nécessaire de formaliser les activités réalisées. | J106: Sous-Article | L106: vérifier si Somme = 1 => | M106: =SUM(M107:M116) -> 1 | N106: =IFERROR(SUM(N107:N116),"") -> 0 | O106: =IFERROR(IF(N106<='Mode Emploi'!$G$14,'Mode Emploi'!$H$14,IF(N106<='Mode Emploi'!$G$15,'Mode Emploi'!$H$15,IF(N106<='Mode Emploi'!$G$16,'Mode Emploi'!$H$16,'Mode Emploi'!$H$17))),"") -> Insuffisant | P106: =1/COUNTA($O$97:$O$153) -> 0.1428571429 | Q106: =P106*N106 -> 0
A107: =CONCATENATE("cr ",MID(A105,3,4)+1) -> cr 81 | D107: Les clients disposent des informations relatives aux produits et services attendus, au traitement de leurs retours ainsi qu'à la gestion de leurs propriétés ou aux actions d'urgence le cas échéant | E107: Choix de VÉRACITÉ | F107: =L107 ->  | G107: =CHOOSE(K107,"Libellé du critère quand il sera choisi",'Mode Emploi'!$B$14,'Mode Emploi'!$B$15,'Mode Emploi'!$B$16,'Mode Emploi'!$B$17,,) -> Libellé du critère quand il sera choisi | I107: =I105+1 -> 81 | J107: =E107 -> Choix de VÉRACITÉ | K107: =IFERROR((VLOOKUP(E107,'Mode Emploi'!$M$13:$N$17,2)),"") -> 1 | L107: =IFERROR(CHOOSE(K107,"",'Mode Emploi'!$E$14,'Mode Emploi'!$E$15,'Mode Emploi'!$E$16,'Mode Emploi'!$E$17,),"") ->  | M107: =1/COUNTA($D$107:$D$116) -> 0.1 | N107: =IFERROR(L107*M107,"") -> 
A108: =CONCATENATE("cr ",MID(A107,3,4)+1) -> cr 82 | D108: L'organisme détermine toutes les exigences relatives aux produits et services, y compris celles légales et réglementaires ou celles jugées nécessaires | E108: Choix de VÉRACITÉ | F108: =L108 ->  | G108: =CHOOSE(K108,"Libellé du critère quand il sera choisi",'Mode Emploi'!$B$14,'Mode Emploi'!$B$15,'Mode Emploi'!$B$16,'Mode Emploi'!$B$17,,) -> Libellé du critère quand il sera choisi | I108: =I107+1 -> 82 | J108: =E108 -> Choix de VÉRACITÉ | K108: =IFERROR((VLOOKUP(E108,'Mode Emploi'!$M$13:$N$17,2)),"") -> 1 | L108: =IFERROR(CHOOSE(K108,"",'Mode Emploi'!$E$14,'Mode Emploi'!$E$15,'Mode Emploi'!$E$16,'Mode Emploi'!$E$17,),"") ->  | M108: 0.1
A109: cr 83 | D109: L'organisme est capable de répondre aux réclamations clients relatives aux produits et services | E109: Choix de VÉRACITÉ | G109: =CHOOSE(K109,"Libellé du critère quand il sera choisi",'Mode Emploi'!$B$14,'Mode Emploi'!$B$15,'Mode Emploi'!$B$16,'Mode Emploi'!$B$17,,) -> Libellé du critère quand il sera choisi | I109: 83 | J109: Choix de VÉRACITÉ | K109: =IFERROR((VLOOKUP(E109,'Mode Emploi'!$M$13:$N$17,2)),"") -> 1 | L109: =IFERROR(CHOOSE(K109,"",'Mode Emploi'!$E$14,'Mode Emploi'!$E$15,'Mode Emploi'!$E$16,'Mode Emploi'!$E$17,),"") ->  | M109: 0.1
A110: cr 84 | D110: L'organisme mène des revues d'exigences avant tout engagement de fourniture des produits et services | E110: Choix de VÉRACITÉ | F110: =L110 ->  | G110: =CHOOSE(K110,"Libellé du critère quand il sera choisi",'Mode Emploi'!$B$14,'Mode Emploi'!$B$15,'Mode Emploi'!$B$16,'Mode Emploi'!$B$17,,) -> Libellé du critère quand il sera choisi | I110: 84 | J110: =E110 -> Choix de VÉRACITÉ | K110: =IFERROR((VLOOKUP(E110,'Mode Emploi'!$M$13:$N$17,2)),"") -> 1 | L110: =IFERROR(CHOOSE(K110,"",'Mode Emploi'!$E$14,'Mode Emploi'!$E$15,'Mode Emploi'!$E$16,'Mode Emploi'!$E$17,),"") ->  | M110: 0.1
A111: cr 85 | D111: La revue d'exigences inclut l'identification de toutes les exigences (client, implicites, spécifiées, légales...) et les écarts éventuels avec le contrat ou la commande | E111: Choix de VÉRACITÉ | G111: =CHOOSE(K111,"Libellé du critère quand il sera choisi",'Mode Emploi'!$B$14,'Mode Emploi'!$B$15,'Mode Emploi'!$B$16,'Mode Emploi'!$B$17,,) -> Libellé du critère quand il sera choisi | I111: 85 | J111: Choix de VÉRACITÉ | K111: =IFERROR((VLOOKUP(E111,'Mode Emploi'!$M$13:$N$17,2)),"") -> 1 | L111: =IFERROR(CHOOSE(K111,"",'Mode Emploi'!$E$14,'Mode Emploi'!$E$15,'Mode Emploi'!$E$16,'Mode Emploi'!$E$17,),"") ->  | M111: 0.1
A112: cr 86 | D112: Les écarts éventuels détectés entre les exigences sont résolus | E112: Choix de VÉRACITÉ | G112: =CHOOSE(K112,"Libellé du critère quand il sera choisi",'Mode Emploi'!$B$14,'Mode Emploi'!$B$15,'Mode Emploi'!$B$16,'Mode Emploi'!$B$17,,) -> Libellé du critère quand il sera choisi | I112: 86 | J112: Choix de VÉRACITÉ | K112: =IFERROR((VLOOKUP(E112,'Mode Emploi'!$M$13:$N$17,2)),"") -> 1 | L112: =IFERROR(CHOOSE(K112,"",'Mode Emploi'!$E$14,'Mode Emploi'!$E$15,'Mode Emploi'!$E$16,'Mode Emploi'!$E$17,),"") ->  | M112: 0.1
A113: cr 87 | D113: Si les exigences du client ne sont pas documentées, une confirmation d'acceptation est effectuée par l'organisme | E113: Choix de VÉRACITÉ | G113: =CHOOSE(K113,"Libellé du critère quand il sera choisi",'Mode Emploi'!$B$14,'Mode Emploi'!$B$15,'Mode Emploi'!$B$16,'Mode Emploi'!$B$17,,) -> Libellé du critère quand il sera choisi | I113: 87 | J113: Choix de VÉRACITÉ | K113: =IFERROR((VLOOKUP(E113,'Mode Emploi'!$M$13:$N$17,2)),"") -> 1 | L113: =IFERROR(CHOOSE(K113,"",'Mode Emploi'!$E$14,'Mode Emploi'!$E$15,'Mode Emploi'!$E$16,'Mode Emploi'!$E$17,),"") ->  | M113: 0.1
A114: cr 88 | D114: Les informations documentées relatives aux résultats des revues et aux nouvelles exigences des produits et services sont conservées | E114: Choix de VÉRACITÉ | F114: =L114 ->  | G114: =CHOOSE(K114,"Libellé du critère quand il sera choisi",'Mode Emploi'!$B$14,'Mode Emploi'!$B$15,'Mode Emploi'!$B$16,'Mode Emploi'!$B$17,,) -> Libellé du critère quand il sera choisi | I114: 88 | J114: =E114 -> Choix de VÉRACITÉ | K114: =IFERROR((VLOOKUP(E114,'Mode Emploi'!$M$13:$N$17,2)),"") -> 1 | L114: =IFERROR(CHOOSE(K114,"",'Mode Emploi'!$E$14,'Mode Emploi'!$E$15,'Mode Emploi'!$E$16,'Mode Emploi'!$E$17,),"") ->  | M114: 0.1
A115: cr 89 | D115: En cas de modification des exigences des produits et services, les informations documentées correspondantes sont amendées | E115: Choix de VÉRACITÉ | G115: =CHOOSE(K115,"Libellé du critère quand il sera choisi",'Mode Emploi'!$B$14,'Mode Emploi'!$B$15,'Mode Emploi'!$B$16,'Mode Emploi'!$B$17,,) -> Libellé du critère quand il sera choisi | I115: 89 | J115: Choix de VÉRACITÉ | K115: =IFERROR((VLOOKUP(E115,'Mode Emploi'!$M$13:$N$17,2)),"") -> 1 | L115: =IFERROR(CHOOSE(K115,"",'Mode Emploi'!$E$14,'Mode Emploi'!$E$15,'Mode Emploi'!$E$16,'Mode Emploi'!$E$17,),"") ->  | M115: 0.1
A116: cr 90 | D116: En cas de modification des exigences des produits et services, le personnel concerné en est informé | E116: Choix de VÉRACITÉ | G116: =CHOOSE(K116,"Libellé du critère quand il sera choisi",'Mode Emploi'!$B$14,'Mode Emploi'!$B$15,'Mode Emploi'!$B$16,'Mode Emploi'!$B$17,,) -> Libellé du critère quand il sera choisi | I116: 90 | J116: Choix de VÉRACITÉ | K116: =IFERROR((VLOOKUP(E116,'Mode Emploi'!$M$13:$N$17,2)),"") -> 1 | L116: =IFERROR(CHOOSE(K116,"",'Mode Emploi'!$E$14,'Mode Emploi'!$E$15,'Mode Emploi'!$E$16,'Mode Emploi'!$E$17,),"") ->  | M116: 0.1
A117: 8.3 | B117: 7.3 | D117: Conception et développement de produits et services | E117: =O117 -> Insuffisant | F117: =N117 -> 0 | G117: =IFERROR(IF(F117<='Mode Emploi'!$G$14,'Mode Emploi'!$I$14,IF(F117<='Mode Emploi'!$G$15,'Mode Emploi'!$I$15,IF(F117<='Mode Emploi'!$G$16,'Mode Emploi'!$I$16,'Mode Emploi'!$I$17))),"") -> Conformité de niveau 1 : Il est nécessaire de formaliser les activités réalisées. | J117: Sous-Article | L117: vérifier si Somme = 1 => | M117: =SUM(M118:M130) -> 1 | N117: =IFERROR(SUM(N118:N130),"") -> 0 | O117: =IFERROR(IF(N117<='Mode Emploi'!$G$14,'Mode Emploi'!$H$14,IF(N117<='Mode Emploi'!$G$15,'Mode Emploi'!$H$15,IF(N117<='Mode Emploi'!$G$16,'Mode Emploi'!$H$16,'Mode Emploi'!$H$17))),"") -> Insuffisant | P117: =1/COUNTA($O$97:$O$153) -> 0.1428571429 | Q117: =P117*N117 -> 0
A118: =CONCATENATE("cr ",MID(A116,3,4)+1) -> cr 91 | D118: Un processus de conception et développement est établi, mis en œuvre et tenu à jour pour assurer la fourniture des produits et services | E118: Choix de VÉRACITÉ | F118: =L118 ->  | G118: =CHOOSE(K118,"Libellé du critère quand il sera choisi",'Mode Emploi'!$B$14,'Mode Emploi'!$B$15,'Mode Emploi'!$B$16,'Mode Emploi'!$B$17,,) -> Libellé du critère quand il sera choisi | I118: =I116+1 -> 91 | J118: =E118 -> Choix de VÉRACITÉ | K118: =IFERROR((VLOOKUP(E118,'Mode Emploi'!$M$13:$N$17,2)),"") -> 1 | L118: =IFERROR(CHOOSE(K118,"",'Mode Emploi'!$E$14,'Mode Emploi'!$E$15,'Mode Emploi'!$E$16,'Mode Emploi'!$E$17,),"") ->  | M118: =1/COUNTA($D$118:$D$130) -> 0.07692307692 | N118: =IFERROR(L118*M118,"") -> 
A119: =CONCATENATE("cr ",MID(A118,3,4)+1) -> cr 92 | D119: Les étapes ainsi que les ressources nécessaires à la conception et au développement sont déterminées | E119: Choix de VÉRACITÉ | F119: =L119 ->  | G119: =CHOOSE(K119,"Libellé du critère quand il sera choisi",'Mode Emploi'!$B$14,'Mode Emploi'!$B$15,'Mode Emploi'!$B$16,'Mode Emploi'!$B$17,,) -> Libellé du critère quand il sera choisi | I119: =I118+1 -> 92 | J119: =E119 -> Choix de VÉRACITÉ | K119: =IFERROR((VLOOKUP(E119,'Mode Emploi'!$M$13:$N$17,2)),"") -> 1 | L119: =IFERROR(CHOOSE(K119,"",'Mode Emploi'!$E$14,'Mode Emploi'!$E$15,'Mode Emploi'!$E$16,'Mode Emploi'!$E$17,),"") ->  | M119: =1/COUNTA($D$118:$D$130) -> 0.07692307692
A120: =CONCATENATE("cr ",MID(A119,3,4)+1) -> cr 93 | D120: L'organisme détermine les activités nécessaires pour la vérification et validation du processus de la conception et de développement, en impliquant, si nécessaire des clients et des utilisateurs | E120: Choix de VÉRACITÉ | G120: =CHOOSE(K120,"Libellé du critère quand il sera choisi",'Mode Emploi'!$B$14,'Mode Emploi'!$B$15,'Mode Emploi'!$B$16,'Mode Emploi'!$B$17,,) -> Libellé du critère quand il sera choisi | I120: 93 | J120: Choix de VÉRACITÉ | K120: =IFERROR((VLOOKUP(E120,'Mode Emploi'!$M$13:$N$17,2)),"") -> 1 | L120: =IFERROR(CHOOSE(K120,"",'Mode Emploi'!$E$14,'Mode Emploi'!$E$15,'Mode Emploi'!$E$16,'Mode Emploi'!$E$17,),"") ->  | M120: =1/COUNTA($D$118:$D$130) -> 0.07692307692
A121: cr 94 | D121: La phase de conception et de développement prend en compte les exigences relatives à la fourniture ultérieure des produits et services | E121: Choix de VÉRACITÉ | F121: =L121 ->  | G121: =CHOOSE(K121,"Libellé du critère quand il sera choisi",'Mode Emploi'!$B$14,'Mode Emploi'!$B$15,'Mode Emploi'!$B$16,'Mode Emploi'!$B$17,,) -> Libellé du critère quand il sera choisi | I121: 94 | J121: =E121 -> Choix de VÉRACITÉ | K121: =IFERROR((VLOOKUP(E121,'Mode Emploi'!$M$13:$N$17,2)),"") -> 1 | L121: =IFERROR(CHOOSE(K121,"",'Mode Emploi'!$E$14,'Mode Emploi'!$E$15,'Mode Emploi'!$E$16,'Mode Emploi'!$E$17,),"") ->  | M121: 0.07692307692
A122: cr 95 | D122: L'organisme maîtrise les interfaces entre les personnes impliquées en conception et développement, définit les responsabilités et autorités et implique les parties intéressées dans ce processus | E122: Choix de VÉRACITÉ | G122: =CHOOSE(K122,"Libellé du critère quand il sera choisi",'Mode Emploi'!$B$14,'Mode Emploi'!$B$15,'Mode Emploi'!$B$16,'Mode Emploi'!$B$17,,) -> Libellé du critère quand il sera choisi | I122: 95 | J122: Choix de VÉRACITÉ | K122: =IFERROR((VLOOKUP(E122,'Mode Emploi'!$M$13:$N$17,2)),"") -> 1 | L122: =IFERROR(CHOOSE(K122,"",'Mode Emploi'!$E$14,'Mode Emploi'!$E$15,'Mode Emploi'!$E$16,'Mode Emploi'!$E$17,),"") ->  | M122: 0.07692307692
A123: cr 96 | D123: Des informations documentées prouvent que les exigences de conception et développement ont été satisfaites | E123: Choix de VÉRACITÉ | G123: =CHOOSE(K123,"Libellé du critère quand il sera choisi",'Mode Emploi'!$B$14,'Mode Emploi'!$B$15,'Mode Emploi'!$B$16,'Mode Emploi'!$B$17,,) -> Libellé du critère quand il sera choisi | I123: 96 | J123: Choix de VÉRACITÉ | K123: =IFERROR((VLOOKUP(E123,'Mode Emploi'!$M$13:$N$17,2)),"") -> 1 | L123: =IFERROR(CHOOSE(K123,"",'Mode Emploi'!$E$14,'Mode Emploi'!$E$15,'Mode Emploi'!$E$16,'Mode Emploi'!$E$17,),"") ->  | M123: 0.07692307692
A124: cr 97 | D124: Les exigences fonctionnelles et de performance, les exigences légales et réglementaires, les normes et règles de l'art, les retours d'expérience sont pris en compte comme éléments d'entrée en conception et de développement | E124: Choix de VÉRACITÉ | G124: =CHOOSE(K124,"Libellé du critère quand il sera choisi",'Mode Emploi'!$B$14,'Mode Emploi'!$B$15,'Mode Emploi'!$B$16,'Mode Emploi'!$B$17,,) -> Libellé du critère quand il sera choisi | I124: 97 | J124: Choix de VÉRACITÉ | K124: =IFERROR((VLOOKUP(E124,'Mode Emploi'!$M$13:$N$17,2)),"") -> 1 | L124: =IFERROR(CHOOSE(K124,"",'Mode Emploi'!$E$14,'Mode Emploi'!$E$15,'Mode Emploi'!$E$16,'Mode Emploi'!$E$17,),"") ->  | M124: 0.07692307692
A125: cr 98 | D125: Les éventuels éléments conflictuels en entrée de conception et de développement sont résolus | E125: Choix de VÉRACITÉ | F125: =L125 ->  | G125: =CHOOSE(K125,"Libellé du critère quand il sera choisi",'Mode Emploi'!$B$14,'Mode Emploi'!$B$15,'Mode Emploi'!$B$16,'Mode Emploi'!$B$17,,) -> Libellé du critère quand il sera choisi | I125: 98 | J125: =E125 -> Choix de VÉRACITÉ | K125: =IFERROR((VLOOKUP(E125,'Mode Emploi'!$M$13:$N$17,2)),"") -> 1 | L125: =IFERROR(CHOOSE(K125,"",'Mode Emploi'!$E$14,'Mode Emploi'!$E$15,'Mode Emploi'!$E$16,'Mode Emploi'!$E$17,),"") ->  | M125: 0.07692307692
A126: cr 99 | D126: Les résultats attendus de conception et de développement sont définis et des revues, vérification et validation sont menées régulièrement | E126: Choix de VÉRACITÉ | F126: =L126 ->  | G126: =CHOOSE(K126,"Libellé du critère quand il sera choisi",'Mode Emploi'!$B$14,'Mode Emploi'!$B$15,'Mode Emploi'!$B$16,'Mode Emploi'!$B$17,,) -> Libellé du critère quand il sera choisi | I126: 99 | J126: =E126 -> Choix de VÉRACITÉ | K126: =IFERROR((VLOOKUP(E126,'Mode Emploi'!$M$13:$N$17,2)),"") -> 1 | L126: =IFERROR(CHOOSE(K126,"",'Mode Emploi'!$E$14,'Mode Emploi'!$E$15,'Mode Emploi'!$E$16,'Mode Emploi'!$E$17,),"") ->  | M126: 0.07692307692
A127: cr 100 | D127: Les éléments de sortie de conception et de développement sont conformes aux attentes et correctement informatifs sur l'usage des produits et services | E127: Choix de VÉRACITÉ | F127: =L127 ->  | G127: =CHOOSE(K127,"Libellé du critère quand il sera choisi",'Mode Emploi'!$B$14,'Mode Emploi'!$B$15,'Mode Emploi'!$B$16,'Mode Emploi'!$B$17,,) -> Libellé du critère quand il sera choisi | I127: 100 | J127: =E127 -> Choix de VÉRACITÉ | K127: =IFERROR((VLOOKUP(E127,'Mode Emploi'!$M$13:$N$17,2)),"") -> 1 | L127: =IFERROR(CHOOSE(K127,"",'Mode Emploi'!$E$14,'Mode Emploi'!$E$15,'Mode Emploi'!$E$16,'Mode Emploi'!$E$17,),"") ->  | M127: 0.07692307692
A128: cr 101 | D128: Les informations documentées relatives aux trois phases "entrée, maîtrise et sortie" de la conception et du développement sont conservées | E128: Choix de VÉRACITÉ | F128: =L128 ->  | G128: =CHOOSE(K128,"Libellé du critère quand il sera choisi",'Mode Emploi'!$B$14,'Mode Emploi'!$B$15,'Mode Emploi'!$B$16,'Mode Emploi'!$B$17,,) -> Libellé du critère quand il sera choisi | I128: 101 | J128: =E128 -> Choix de VÉRACITÉ | K128: =IFERROR((VLOOKUP(E128,'Mode Emploi'!$M$13:$N$17,2)),"") -> 1 | L128: =IFERROR(CHOOSE(K128,"",'Mode Emploi'!$E$14,'Mode Emploi'!$E$15,'Mode Emploi'!$E$16,'Mode Emploi'!$E$17,),"") ->  | M128: 0.07692307692
A129: =CONCATENATE("cr ",MID(A128,3,4)+1) -> cr 102 | D129: L'organisme identifie, revoit et maîtrise les modifications pour assurer qu’elles n’aient pas d'impact négatif sur la conformité aux exigences | E129: Choix de VÉRACITÉ | G129: =CHOOSE(K129,"Libellé du critère quand il sera choisi",'Mode Emploi'!$B$14,'Mode Emploi'!$B$15,'Mode Emploi'!$B$16,'Mode Emploi'!$B$17,,) -> Libellé du critère quand il sera choisi | I129: 102 | J129: Choix de VÉRACITÉ | K129: =IFERROR((VLOOKUP(E129,'Mode Emploi'!$M$13:$N$17,2)),"") -> 1 | L129: =IFERROR(CHOOSE(K129,"",'Mode Emploi'!$E$14,'Mode Emploi'!$E$15,'Mode Emploi'!$E$16,'Mode Emploi'!$E$17,),"") ->  | M129: 0.07692307692
A130: =CONCATENATE("cr ",MID(A129,3,4)+1) -> cr 103 | D130: Des informations documentées prouvent la maîtrise des modifications et leur autorisation | E130: Choix de VÉRACITÉ | G130: =CHOOSE(K130,"Libellé du critère quand il sera choisi",'Mode Emploi'!$B$14,'Mode Emploi'!$B$15,'Mode Emploi'!$B$16,'Mode Emploi'!$B$17,,) -> Libellé du critère quand il sera choisi | I130: 103 | J130: Choix de VÉRACITÉ | K130: =IFERROR((VLOOKUP(E130,'Mode Emploi'!$M$13:$N$17,2)),"") -> 1 | L130: =IFERROR(CHOOSE(K130,"",'Mode Emploi'!$E$14,'Mode Emploi'!$E$15,'Mode Emploi'!$E$16,'Mode Emploi'!$E$17,),"") ->  | M130: 0.07692307692
A131: 8.4 | B131: 7.4 | C131: 2.5.1.1 2.7.1.1 2.9.2.1 3.1.1.1 | D131: Maîtrise des processus, produits et services fournis par des prestataires externes | E131: =O131 -> Insuffisant | F131: =N131 -> 0 | G131: =IFERROR(IF(F131<='Mode Emploi'!$G$14,'Mode Emploi'!$I$14,IF(F131<='Mode Emploi'!$G$15,'Mode Emploi'!$I$15,IF(F131<='Mode Emploi'!$G$16,'Mode Emploi'!$I$16,'Mode Emploi'!$I$17))),"") -> Conformité de niveau 1 : Il est nécessaire de formaliser les activités réalisées. | J131: Sous-Article | L131: vérifier si Somme = 1 => | M131: =SUM(M132:M136) -> 1 | N131: =IFERROR(SUM(N132:N136),"") -> 0 | O131: =IFERROR(IF(N131<='Mode Emploi'!$G$14,'Mode Emploi'!$H$14,IF(N131<='Mode Emploi'!$G$15,'Mode Emploi'!$H$15,IF(N131<='Mode Emploi'!$G$16,'Mode Emploi'!$H$16,'Mode Emploi'!$H$17))),"") -> Insuffisant | P131: =1/COUNTA($O$97:$O$153) -> 0.1428571429 | Q131: =P131*N131 -> 0
A132: =CONCATENATE("cr ",MID(A130,3,4)+1) -> cr 104 | D132: Des critères pour l'évaluation, la sélection, la surveillance des performances et la réévaluation des prestataires externes sont établis et appliqués | E132: Choix de VÉRACITÉ | F132: =L132 ->  | G132: =CHOOSE(K132,"Libellé du critère quand il sera choisi",'Mode Emploi'!$B$14,'Mode Emploi'!$B$15,'Mode Emploi'!$B$16,'Mode Emploi'!$B$17,,) -> Libellé du critère quand il sera choisi | I132: =I130+1 -> 104 | J132: =E132 -> Choix de VÉRACITÉ | K132: =IFERROR((VLOOKUP(E132,'Mode Emploi'!$M$13:$N$17,2)),"") -> 1 | L132: =IFERROR(CHOOSE(K132,"",'Mode Emploi'!$E$14,'Mode Emploi'!$E$15,'Mode Emploi'!$E$16,'Mode Emploi'!$E$17,),"") ->  | M132: =1/COUNTA($D$132:$D$136) -> 0.2 | N132: =IFERROR(L132*M132,"") -> 
A133: =CONCATENATE("cr ",MID(A132,3,4)+1) -> cr 105 | D133: Les risques relatifs à l'externalisation des processus, produits et services sont évalués | E133: Choix de VÉRACITÉ | F133: =L133 ->  | G133: =CHOOSE(K133,"Libellé du critère quand il sera choisi",'Mode Emploi'!$B$14,'Mode Emploi'!$B$15,'Mode Emploi'!$B$16,'Mode Emploi'!$B$17,,) -> Libellé du critère quand il sera choisi | I133: =I132+1 -> 105 | J133: =E133 -> Choix de VÉRACITÉ | K133: =IFERROR((VLOOKUP(E133,'Mode Emploi'!$M$13:$N$17,2)),"") -> 1 | L133: =IFERROR(CHOOSE(K133,"",'Mode Emploi'!$E$14,'Mode Emploi'!$E$15,'Mode Emploi'!$E$16,'Mode Emploi'!$E$17,),"") ->  | M133: =1/COUNTA($D$132:$D$136) -> 0.2 | N133: =IFERROR(L133*M133,"") -> 
A134: =CONCATENATE("cr ",MID(A133,3,4)+1) -> cr 106 | D134: L'organisme vérifie la conformité des processus, produits et services fournis par des prestataires externes | E134: Choix de VÉRACITÉ | F134: =L134 ->  | G134: =CHOOSE(K134,"Libellé du critère quand il sera choisi",'Mode Emploi'!$B$14,'Mode Emploi'!$B$15,'Mode Emploi'!$B$16,'Mode Emploi'!$B$17,,) -> Libellé du critère quand il sera choisi | I134: =I133+1 -> 106 | J134: =E134 -> Choix de VÉRACITÉ | K134: =IFERROR((VLOOKUP(E134,'Mode Emploi'!$M$13:$N$17,2)),"") -> 1 | L134: =IFERROR(CHOOSE(K134,"",'Mode Emploi'!$E$14,'Mode Emploi'!$E$15,'Mode Emploi'!$E$16,'Mode Emploi'!$E$17,),"") ->  | M134: =1/COUNTA($D$132:$D$136) -> 0.2 | N134: =IFERROR(L134*M134,"") -> 
A135: =CONCATENATE("cr ",MID(A134,3,4)+1) -> cr 107 | D135: L'organisme s'assure de l'adéquation des exigences spécifiées et les communique aux prestataires externes | E135: Choix de VÉRACITÉ | F135: =L135 ->  | G135: =CHOOSE(K135,"Libellé du critère quand il sera choisi",'Mode Emploi'!$B$14,'Mode Emploi'!$B$15,'Mode Emploi'!$B$16,'Mode Emploi'!$B$17,,) -> Libellé du critère quand il sera choisi | I135: =I134+1 -> 107 | J135: =E135 -> Choix de VÉRACITÉ | K135: =IFERROR((VLOOKUP(E135,'Mode Emploi'!$M$13:$N$17,2)),"") -> 1 | L135: =IFERROR(CHOOSE(K135,"",'Mode Emploi'!$E$14,'Mode Emploi'!$E$15,'Mode Emploi'!$E$16,'Mode Emploi'!$E$17,),"") ->  | M135: =1/COUNTA($D$132:$D$136) -> 0.2 | N135: =IFERROR(L135*M135,"") -> 
A136: =CONCATENATE("cr ",MID(A135,3,4)+1) -> cr 108 | D136: Les informations documentées sur les résultats du contrôle, de la vérification, de la surveillance et de l'évaluation des prestataires externes sont conservées | E136: Choix de VÉRACITÉ | F136: =L136 ->  | G136: =CHOOSE(K136,"Libellé du critère quand il sera choisi",'Mode Emploi'!$B$14,'Mode Emploi'!$B$15,'Mode Emploi'!$B$16,'Mode Emploi'!$B$17,,) -> Libellé du critère quand il sera choisi | I136: =I135+1 -> 108 | J136: =E136 -> Choix de VÉRACITÉ | K136: =IFERROR((VLOOKUP(E136,'Mode Emploi'!$M$13:$N$17,2)),"") -> 1 | L136: =IFERROR(CHOOSE(K136,"",'Mode Emploi'!$E$14,'Mode Emploi'!$E$15,'Mode Emploi'!$E$16,'Mode Emploi'!$E$17,),"") ->  | M136: =1/COUNTA($D$132:$D$136) -> 0.2 | N136: =IFERROR(L136*M136,"") -> 
A137: 8.5 | B137: 7.5 | C137: 1.4.1.1 2.5.1.1 2.6.1.1 2.6.1.2 2.7.1.1 2.8.1.1 2.8.2.1 2.9.3.1 | D137: Production et prestation de service | E137: =O137 -> Insuffisant | F137: =N137 -> 0 | G137: =IFERROR(IF(F137<='Mode Emploi'!$G$14,'Mode Emploi'!$I$14,IF(F137<='Mode Emploi'!$G$15,'Mode Emploi'!$I$15,IF(F137<='Mode Emploi'!$G$16,'Mode Emploi'!$I$16,'Mode Emploi'!$I$17))),"") -> Conformité de niveau 1 : Il est nécessaire de formaliser les activités réalisées. | J137: Sous-Article | L137: vérifier si Somme = 1 => | M137: =SUM(M138:M143) -> 1 | N137: =IFERROR(SUM(N138:N143),"") -> 0 | O137: =IFERROR(IF(N137<='Mode Emploi'!$G$14,'Mode Emploi'!$H$14,IF(N137<='Mode Emploi'!$G$15,'Mode Emploi'!$H$15,IF(N137<='Mode Emploi'!$G$16,'Mode Emploi'!$H$16,'Mode Emploi'!$H$17))),"") -> Insuffisant | P137: =1/COUNTA($O$97:$O$153) -> 0.1428571429 | Q137: =P137*N137 -> 0
A138: =CONCATENATE("cr ",MID(A136,3,4)+1) -> cr 109 | D138: Des informations documentées de traçabilité sont conservées sur l'identification des produits et services et de leurs niveaux de conformité aux exigences de surveillance et de mesure | E138: Choix de VÉRACITÉ | F138: =L138 ->  | G138: =CHOOSE(K138,"Libellé du critère quand il sera choisi",'Mode Emploi'!$B$14,'Mode Emploi'!$B$15,'Mode Emploi'!$B$16,'Mode Emploi'!$B$17,,) -> Libellé du critère quand il sera choisi | I138: =#REF!+1 ->  | J138: =E138 -> Choix de VÉRACITÉ | K138: =IFERROR((VLOOKUP(E138,'Mode Emploi'!$M$13:$N$17,2)),"") -> 1 | L138: =IFERROR(CHOOSE(K138,"",'Mode Emploi'!$E$14,'Mode Emploi'!$E$15,'Mode Emploi'!$E$16,'Mode Emploi'!$E$17,),"") ->  | M138: =1/COUNTA($D$138:$D$143) -> 0.1666666667 | N138: =IFERROR(L138*M138,"") -> 
A139: =CONCATENATE("cr ",MID(A138,3,4)+1) -> cr 110 | D139: Les propriétés des clients et prestataires externes sont conservées et protégées en cas d'utilisation. Toute perte ou déterioration des propriétés est notifiée à la partie concernée. | E139: Choix de VÉRACITÉ | G139: =CHOOSE(K139,"Libellé du critère quand il sera choisi",'Mode Emploi'!$B$14,'Mode Emploi'!$B$15,'Mode Emploi'!$B$16,'Mode Emploi'!$B$17,,) -> Libellé du critère quand il sera choisi | I139: =I138+1 ->  | J139: Choix de VÉRACITÉ | K139: =IFERROR((VLOOKUP(E139,'Mode Emploi'!$M$13:$N$17,2)),"") -> 1 | L139: =IFERROR(CHOOSE(K139,"",'Mode Emploi'!$E$14,'Mode Emploi'!$E$15,'Mode Emploi'!$E$16,'Mode Emploi'!$E$17,),"") ->  | M139: 0.1666666667
A140: =CONCATENATE("cr ",MID(A139,3,4)+1) -> cr 111 | D140: Au cours de la production ou de la prestation de service, les éléments de sortie sont préservés autant que de besoin pour assurer leur conformité aux exigences | E140: Choix de VÉRACITÉ | G140: =CHOOSE(K140,"Libellé du critère quand il sera choisi",'Mode Emploi'!$B$14,'Mode Emploi'!$B$15,'Mode Emploi'!$B$16,'Mode Emploi'!$B$17,,) -> Libellé du critère quand il sera choisi | J140: Choix de VÉRACITÉ | K140: =IFERROR((VLOOKUP(E140,'Mode Emploi'!$M$13:$N$17,2)),"") -> 1 | L140: =IFERROR(CHOOSE(K140,"",'Mode Emploi'!$E$14,'Mode Emploi'!$E$15,'Mode Emploi'!$E$16,'Mode Emploi'!$E$17,),"") ->  | M140: 0.1666666667
A141: =CONCATENATE("cr ",MID(A140,3,4)+1) -> cr 112 | D141: Les activités post-livraison répondent aux exigences réglementaires et tiennent compte des informations nécessaires, usages, risques, garanties ou retours exprimés par des clients. | E141: Choix de VÉRACITÉ | G141: =CHOOSE(K141,"Libellé du critère quand il sera choisi",'Mode Emploi'!$B$14,'Mode Emploi'!$B$15,'Mode Emploi'!$B$16,'Mode Emploi'!$B$17,,) -> Libellé du critère quand il sera choisi | J141: Choix de VÉRACITÉ | K141: =IFERROR((VLOOKUP(E141,'Mode Emploi'!$M$13:$N$17,2)),"") -> 1 | L141: =IFERROR(CHOOSE(K141,"",'Mode Emploi'!$E$14,'Mode Emploi'!$E$15,'Mode Emploi'!$E$16,'Mode Emploi'!$E$17,),"") ->  | M141: 0.1666666667
A142: cr 113 | D142: Toute modification relative à la production et prestation de service est revue et maîtrisée. | E142: Choix de VÉRACITÉ | F142: =L142 ->  | G142: =CHOOSE(K142,"Libellé du critère quand il sera choisi",'Mode Emploi'!$B$14,'Mode Emploi'!$B$15,'Mode Emploi'!$B$16,'Mode Emploi'!$B$17,,) -> Libellé du critère quand il sera choisi | J142: =E142 -> Choix de VÉRACITÉ | K142: =IFERROR((VLOOKUP(E142,'Mode Emploi'!$M$13:$N$17,2)),"") -> 1 | L142: =IFERROR(CHOOSE(K142,"",'Mode Emploi'!$E$14,'Mode Emploi'!$E$15,'Mode Emploi'!$E$16,'Mode Emploi'!$E$17,),"") ->  | M142: 0.1666666667
A143: cr 114 | D143: Des informations documentées concernant les résultats de la revue de modification, les responsables d'autorisation et les actions induites sont conservées. | E143: Choix de VÉRACITÉ | G143: =CHOOSE(K143,"Libellé du critère quand il sera choisi",'Mode Emploi'!$B$14,'Mode Emploi'!$B$15,'Mode Emploi'!$B$16,'Mode Emploi'!$B$17,,) -> Libellé du critère quand il sera choisi | J143: Choix de VÉRACITÉ | K143: =IFERROR((VLOOKUP(E143,'Mode Emploi'!$M$13:$N$17,2)),"") -> 1 | L143: =IFERROR(CHOOSE(K143,"",'Mode Emploi'!$E$14,'Mode Emploi'!$E$15,'Mode Emploi'!$E$16,'Mode Emploi'!$E$17,),"") ->  | M143: 0.1666666667
A144: 8.6 | B144: 8.2.4 | C144: 2.5.1.1 2.5.2.1 | D144: Libération des produits et services | E144: =O144 -> Insuffisant | F144: =N144 -> 0 | G144: =IFERROR(IF(F144<='Mode Emploi'!$G$14,'Mode Emploi'!$I$14,IF(F144<='Mode Emploi'!$G$15,'Mode Emploi'!$I$15,IF(F144<='Mode Emploi'!$G$16,'Mode Emploi'!$I$16,'Mode Emploi'!$I$17))),"") -> Conformité de niveau 1 : Il est nécessaire de formaliser les activités réalisées. | J144: Sous-Article | L144: vérifier si Somme = 1 => | M144: =SUM(M145:M147) -> 1 | N144: =IFERROR(SUM(N145:N147),"") -> 0 | O144: =IFERROR(IF(N144<='Mode Emploi'!$G$14,'Mode Emploi'!$H$14,IF(N144<='Mode Emploi'!$G$15,'Mode Emploi'!$H$15,IF(N144<='Mode Emploi'!$G$16,'Mode Emploi'!$H$16,'Mode Emploi'!$H$17))),"") -> Insuffisant | P144: =1/COUNTA($O$97:$O$153) -> 0.1428571429 | Q144: =P144*N144 -> 0
A145: =CONCATENATE("cr ",MID(A143,3,4)+1) -> cr 115 | D145: Avant la libération des produits et services, l'organisme vérifie leur conformité aux exigences préalablement définies | E145: Choix de VÉRACITÉ | F145: =L145 ->  | G145: =CHOOSE(K145,"Libellé du critère quand il sera choisi",'Mode Emploi'!$B$14,'Mode Emploi'!$B$15,'Mode Emploi'!$B$16,'Mode Emploi'!$B$17,,) -> Libellé du critère quand il sera choisi | I145: =I143+1 ->  | J145: =E145 -> Choix de VÉRACITÉ | K145: =IFERROR((VLOOKUP(E145,'Mode Emploi'!$M$13:$N$17,2)),"") -> 1 | L145: =IFERROR(CHOOSE(K145,"",'Mode Emploi'!$E$14,'Mode Emploi'!$E$15,'Mode Emploi'!$E$16,'Mode Emploi'!$E$17,),"") ->  | M145: =1/COUNTA($D$145:$D$147) -> 0.3333333333 | N145: =IFERROR(L145*M145,"") -> 
A146: =CONCATENATE("cr ",MID(A145,3,4)+1) -> cr 116 | D146: Aucune libération ne se fait sans la validation de toutes les dispositions planifiées, sauf approbation par une autorité compétente et, le cas échéant, par le client | E146: Choix de VÉRACITÉ | F146: =L146 ->  | G146: =CHOOSE(K146,"Libellé du critère quand il sera choisi",'Mode Emploi'!$B$14,'Mode Emploi'!$B$15,'Mode Emploi'!$B$16,'Mode Emploi'!$B$17,,) -> Libellé du critère quand il sera choisi | I146: =I145+1 ->  | J146: =E146 -> Choix de VÉRACITÉ | K146: =IFERROR((VLOOKUP(E146,'Mode Emploi'!$M$13:$N$17,2)),"") -> 1 | L146: =IFERROR(CHOOSE(K146,"",'Mode Emploi'!$E$14,'Mode Emploi'!$E$15,'Mode Emploi'!$E$16,'Mode Emploi'!$E$17,),"") ->  | M146: =1/COUNTA($D$145:$D$147) -> 0.3333333333 | N146: =IFERROR(L146*M146,"") -> 
A147: =CONCATENATE("cr ",MID(A146,3,4)+1) -> cr 117 | D147: Des informations documentées prouvent et tracent la conformité, l'acceptation et les autorisations jusqu'à la libération des produits et services | E147: Choix de VÉRACITÉ | F147: =L147 ->  | G147: =CHOOSE(K147,"Libellé du critère quand il sera choisi",'Mode Emploi'!$B$14,'Mode Emploi'!$B$15,'Mode Emploi'!$B$16,'Mode Emploi'!$B$17,,) -> Libellé du critère quand il sera choisi | I147: =I146+1 ->  | J147: =E147 -> Choix de VÉRACITÉ | K147: =IFERROR((VLOOKUP(E147,'Mode Emploi'!$M$13:$N$17,2)),"") -> 1 | L147: =IFERROR(CHOOSE(K147,"",'Mode Emploi'!$E$14,'Mode Emploi'!$E$15,'Mode Emploi'!$E$16,'Mode Emploi'!$E$17,),"") ->  | M147: =1/COUNTA($D$145:$D$147) -> 0.3333333333 | N147: =IFERROR(L147*M147,"") -> 
A148: 8.7 | B148: 8.3 | C148: 2.5.2.1 2.6.1.1 2.6.1.2 2.7.1.1 | D148: Maîtrise des éléments de sortie non conformes | E148: =O148 -> Insuffisant | F148: =N148 -> 0 | G148: =IFERROR(IF(F148<='Mode Emploi'!$G$14,'Mode Emploi'!$I$14,IF(F148<='Mode Emploi'!$G$15,'Mode Emploi'!$I$15,IF(F148<='Mode Emploi'!$G$16,'Mode Emploi'!$I$16,'Mode Emploi'!$I$17))),"") -> Conformité de niveau 1 : Il est nécessaire de formaliser les activités réalisées. | J148: Sous-Article | L148: vérifier si Somme = 1 => | M148: =SUM(M149:M153) -> 1 | N148: =IFERROR(SUM(N149:N153),"") -> 0 | O148: =IFERROR(IF(N148<='Mode Emploi'!$G$14,'Mode Emploi'!$H$14,IF(N148<='Mode Emploi'!$G$15,'Mode Emploi'!$H$15,IF(N148<='Mode Emploi'!$G$16,'Mode Emploi'!$H$16,'Mode Emploi'!$H$17))),"") -> Insuffisant | P148: =1/COUNTA($O$97:$O$153) -> 0.1428571429 | Q148: =P148*N148 -> 0
A149: =CONCATENATE("cr ",MID(A147,3,4)+1) -> cr 118 | D149: Les éléments de sortie non-conformes aux exigences applicables sont identifiés et maîtrisés pour en empêcher tout mauvais usage | E149: Choix de VÉRACITÉ | F149: =L149 ->  | G149: =CHOOSE(K149,"Libellé du critère quand il sera choisi",'Mode Emploi'!$B$14,'Mode Emploi'!$B$15,'Mode Emploi'!$B$16,'Mode Emploi'!$B$17,,) -> Libellé du critère quand il sera choisi | I149: =I147+1 ->  | J149: =E149 -> Choix de VÉRACITÉ | K149: =IFERROR((VLOOKUP(E149,'Mode Emploi'!$M$13:$N$17,2)),"") -> 1 | L149: =IFERROR(CHOOSE(K149,"",'Mode Emploi'!$E$14,'Mode Emploi'!$E$15,'Mode Emploi'!$E$16,'Mode Emploi'!$E$17,),"") ->  | M149: =1/COUNTA($D$149:$D$153) -> 0.2 | N149: =IFERROR(L149*M149,"") -> 
A150: =CONCATENATE("cr ",MID(A149,3,4)+1) -> cr 119 | D150: Des actions appropriées sont menées pour chaque non-conformité détectée, même après livraison des produits et services | E150: Choix de VÉRACITÉ | F150: =L150 ->  | G150: =CHOOSE(K150,"Libellé du critère quand il sera choisi",'Mode Emploi'!$B$14,'Mode Emploi'!$B$15,'Mode Emploi'!$B$16,'Mode Emploi'!$B$17,,) -> Libellé du critère quand il sera choisi | I150: =I149+1 ->  | J150: =E150 -> Choix de VÉRACITÉ | K150: =IFERROR((VLOOKUP(E150,'Mode Emploi'!$M$13:$N$17,2)),"") -> 1 | L150: =IFERROR(CHOOSE(K150,"",'Mode Emploi'!$E$14,'Mode Emploi'!$E$15,'Mode Emploi'!$E$16,'Mode Emploi'!$E$17,),"") ->  | M150: =1/COUNTA($D$149:$D$153) -> 0.2 | N150: =IFERROR(L150*M150,"") -> 
A151: =CONCATENATE("cr ",MID(A150,3,4)+1) -> cr 120 | D151: Les élements de sortie non conformes sont traités en termes de correction, d'isolement, de retour, d'information au client ou d'usage par dérogation autorisée | E151: Choix de VÉRACITÉ | F151: =L151 ->  | G151: =CHOOSE(K151,"Libellé du critère quand il sera choisi",'Mode Emploi'!$B$14,'Mode Emploi'!$B$15,'Mode Emploi'!$B$16,'Mode Emploi'!$B$17,,) -> Libellé du critère quand il sera choisi | I151: =I150+1 ->  | J151: =E151 -> Choix de VÉRACITÉ | K151: =IFERROR((VLOOKUP(E151,'Mode Emploi'!$M$13:$N$17,2)),"") -> 1 | L151: =IFERROR(CHOOSE(K151,"",'Mode Emploi'!$E$14,'Mode Emploi'!$E$15,'Mode Emploi'!$E$16,'Mode Emploi'!$E$17,),"") ->  | M151: =1/COUNTA($D$149:$D$153) -> 0.2 | N151: =IFERROR(L151*M151,"") -> 
A152: =CONCATENATE("cr ",MID(A151,3,4)+1) -> cr 121 | D152: Les éléments de sortie corrigés sont vérifiés en terme de conformité aux exigences | E152: Choix de VÉRACITÉ | F152: =L152 ->  | G152: =CHOOSE(K152,"Libellé du critère quand il sera choisi",'Mode Emploi'!$B$14,'Mode Emploi'!$B$15,'Mode Emploi'!$B$16,'Mode Emploi'!$B$17,,) -> Libellé du critère quand il sera choisi | I152: =I151+1 ->  | J152: =E152 -> Choix de VÉRACITÉ | K152: =IFERROR((VLOOKUP(E152,'Mode Emploi'!$M$13:$N$17,2)),"") -> 1 | L152: =IFERROR(CHOOSE(K152,"",'Mode Emploi'!$E$14,'Mode Emploi'!$E$15,'Mode Emploi'!$E$16,'Mode Emploi'!$E$17,),"") ->  | M152: =1/COUNTA($D$149:$D$153) -> 0.2 | N152: =IFERROR(L152*M152,"") -> 
A153: =CONCATENATE("cr ",MID(A152,3,4)+1) -> cr 122 | D153: Les informations documentées décrivant la non-conformité, les actions menées, les dérogations obtenues et les autorités décisionnaires sont conservées | E153: Choix de VÉRACITÉ | F153: =L153 ->  | G153: =CHOOSE(K153,"Libellé du critère quand il sera choisi",'Mode Emploi'!$B$14,'Mode Emploi'!$B$15,'Mode Emploi'!$B$16,'Mode Emploi'!$B$17,,) -> Libellé du critère quand il sera choisi | I153: =I152+1 ->  | J153: =E153 -> Choix de VÉRACITÉ | K153: =IFERROR((VLOOKUP(E153,'Mode Emploi'!$M$13:$N$17,2)),"") -> 1 | L153: =IFERROR(CHOOSE(K153,"",'Mode Emploi'!$E$14,'Mode Emploi'!$E$15,'Mode Emploi'!$E$16,'Mode Emploi'!$E$17,),"") ->  | M153: =1/COUNTA($D$149:$D$153) -> 0.2 | N153: =IFERROR(L153*M153,"") -> 
A154: Art. 9 | B154: Art 8 | C154: 1-2-3 | D154: Évaluation des performances | E154: =R154 -> Insuffisant | F154: =Q154 -> 0 | G154: =IFERROR(IF(F154<='Mode Emploi'!$G$14,'Mode Emploi'!$I$14,IF(F154<='Mode Emploi'!$G$15,'Mode Emploi'!$I$15,IF(F154<='Mode Emploi'!$G$16,'Mode Emploi'!$I$16,'Mode Emploi'!$I$17))),"") -> Conformité de niveau 1 : Il est nécessaire de formaliser les activités réalisées. | J154: Article | O154: vérifier si Somme = 1 => | P154: =SUM(P155:P171) -> 1 | Q154: =IFERROR(SUM(Q155:Q171),"") -> 0 | R154: =IFERROR(IF(Q154<='Mode Emploi'!$G$14,'Mode Emploi'!$H$14,IF(Q154<='Mode Emploi'!$G$15,'Mode Emploi'!$H$15,IF(Q154<='Mode Emploi'!$G$16,'Mode Emploi'!$H$16,'Mode Emploi'!$H$17))),"") -> Insuffisant | S154: =1/7 -> 0.1428571429 | T154: =Q154*S154 -> 0
A155: 9.1 | B155: 8.1-8.2 | C155: 2.6.1.2 2.7.1.1 2.8.2.1 3.2.1.1 3.4.2.1 3.5.1.1 3.5.2.1 | D155: Surveillance, mesure, analyse et évaluation | E155: =O155 -> Insuffisant | F155: =N155 -> 0 | G155: =IFERROR(IF(F155<='Mode Emploi'!$G$14,'Mode Emploi'!$I$14,IF(F155<='Mode Emploi'!$G$15,'Mode Emploi'!$I$15,IF(F155<='Mode Emploi'!$G$16,'Mode Emploi'!$I$16,'Mode Emploi'!$I$17))),"") -> Conformité de niveau 1 : Il est nécessaire de formaliser les activités réalisées. | J155: Sous-Article | L155: vérifier si Somme = 1 => | M155: =SUM(M156:M160) -> 0.8 | N155: =IFERROR(SUM(N156:N160),"") -> 0 | O155: =IFERROR(IF(N155<='Mode Emploi'!$G$14,'Mode Emploi'!$H$14,IF(N155<='Mode Emploi'!$G$15,'Mode Emploi'!$H$15,IF(N155<='Mode Emploi'!$G$16,'Mode Emploi'!$H$16,'Mode Emploi'!$H$17))),"") -> Insuffisant | P155: =1/COUNTA($O$155:$O$167) -> 0.3333333333 | Q155: =P155*N155 -> 0
A156: =CONCATENATE("cr ",MID(A153,3,4)+1) -> cr 123 | D156: L'organisme établit les critères et les modalités de surveillance pour assurer la validité des résultats | E156: Choix de VÉRACITÉ | F156: =L156 ->  | G156: =CHOOSE(K156,"Libellé du critère quand il sera choisi",'Mode Emploi'!$B$14,'Mode Emploi'!$B$15,'Mode Emploi'!$B$16,'Mode Emploi'!$B$17,,) -> Libellé du critère quand il sera choisi | I156: =I153+1 ->  | J156: =E156 -> Choix de VÉRACITÉ | K156: =IFERROR((VLOOKUP(E156,'Mode Emploi'!$M$13:$N$17,2)),"") -> 1 | L156: =IFERROR(CHOOSE(K156,"",'Mode Emploi'!$E$14,'Mode Emploi'!$E$15,'Mode Emploi'!$E$16,'Mode Emploi'!$E$17,),"") ->  | M156: =1/COUNTA($D$156:$D$160) -> 0.2 | N156: =IFERROR(L156*M156,"") -> 
A157: =CONCATENATE("cr ",MID(A156,3,4)+1) -> cr 124 | D157: L'organisme planifie la surveillance et la mesure ainsi que l'analyse et l'évaluation des résultats | E157: Choix de VÉRACITÉ | F157: =L157 ->  | G157: =CHOOSE(K157,"Libellé du critère quand il sera choisi",'Mode Emploi'!$B$14,'Mode Emploi'!$B$15,'Mode Emploi'!$B$16,'Mode Emploi'!$B$17,,) -> Libellé du critère quand il sera choisi | I157: =I156+1 ->  | J157: =E157 -> Choix de VÉRACITÉ | K157: =IFERROR((VLOOKUP(E157,'Mode Emploi'!$M$13:$N$17,2)),"") -> 1 | L157: =IFERROR(CHOOSE(K157,"",'Mode Emploi'!$E$14,'Mode Emploi'!$E$15,'Mode Emploi'!$E$16,'Mode Emploi'!$E$17,),"") ->  | M157: =1/COUNTA($D$156:$D$160) -> 0.2 | N157: =IFERROR(L157*M157,"") -> 
A158: =CONCATENATE("cr ",MID(A157,3,4)+1) -> cr 125 | D158: La performance et l'efficacité du SMQ sont évaluer.Des informations documentées sont conservées. | E158: Choix de VÉRACITÉ
A159: cr 126 | D159: Le niveau de satisfaction des clients est surveillé par des méthodes définies, mises en œuvre et revues périodiquement | E159: Choix de VÉRACITÉ | F159: =L159 ->  | G159: =CHOOSE(K159,"Libellé du critère quand il sera choisi",'Mode Emploi'!$B$14,'Mode Emploi'!$B$15,'Mode Emploi'!$B$16,'Mode Emploi'!$B$17,,) -> Libellé du critère quand il sera choisi | I159: =#REF!+1 ->  | J159: =E159 -> Choix de VÉRACITÉ | K159: =IFERROR((VLOOKUP(E159,'Mode Emploi'!$M$13:$N$17,2)),"") -> 1 | L159: =IFERROR(CHOOSE(K159,"",'Mode Emploi'!$E$14,'Mode Emploi'!$E$15,'Mode Emploi'!$E$16,'Mode Emploi'!$E$17,),"") ->  | M159: =1/COUNTA($D$156:$D$160) -> 0.2 | N159: =IFERROR(L159*M159,"") -> 
A160: cr 127 | D160: Les données issues de la surveillance et de la mesure sont évaluées et analysées pour progresser à tous les niveaux (clients, produits, processus, prestataires, résultats...) | E160: Choix de VÉRACITÉ | F160: =L160 ->  | G160: =CHOOSE(K160,"Libellé du critère quand il sera choisi",'Mode Emploi'!$B$14,'Mode Emploi'!$B$15,'Mode Emploi'!$B$16,'Mode Emploi'!$B$17,,) -> Libellé du critère quand il sera choisi | I160: =I159+1 ->  | J160: =E160 -> Choix de VÉRACITÉ | K160: =IFERROR((VLOOKUP(E160,'Mode Emploi'!$M$13:$N$17,2)),"") -> 1 | L160: =IFERROR(CHOOSE(K160,"",'Mode Emploi'!$E$14,'Mode Emploi'!$E$15,'Mode Emploi'!$E$16,'Mode Emploi'!$E$17,),"") ->  | M160: =1/COUNTA($D$156:$D$160) -> 0.2 | N160: =IFERROR(L160*M160,"") -> 
A161: 9.2 | B161: 8.2.2 | C161: 1.2.3.1 2.7.1.2 3.3.1.1 3.3.2.1 | D161: Audit interne | E161: =O161 -> Insuffisant | F161: =N161 -> 0 | G161: =IFERROR(IF(F161<='Mode Emploi'!$G$14,'Mode Emploi'!$I$14,IF(F161<='Mode Emploi'!$G$15,'Mode Emploi'!$I$15,IF(F161<='Mode Emploi'!$G$16,'Mode Emploi'!$I$16,'Mode Emploi'!$I$17))),"") -> Conformité de niveau 1 : Il est nécessaire de formaliser les activités réalisées. | J161: Sous-Article | L161: vérifier si Somme = 1 => | M161: =SUM(M162:M166) -> 1 | N161: =IFERROR(SUM(N162:N166),"") -> 0 | O161: =IFERROR(IF(N161<='Mode Emploi'!$G$14,'Mode Emploi'!$H$14,IF(N161<='Mode Emploi'!$G$15,'Mode Emploi'!$H$15,IF(N161<='Mode Emploi'!$G$16,'Mode Emploi'!$H$16,'Mode Emploi'!$H$17))),"") -> Insuffisant | P161: =1/COUNTA($O$155:$O$167) -> 0.3333333333 | Q161: =P161*N161 -> 0
A162: =CONCATENATE("cr ",MID(A160,3,4)+1) -> cr 128 | D162: Les audits internes sont planifiés, établis et mis en œuvre à des intervalles déterminés pour fournir des informations permettant de déterminer si le SMQ est conforme. | E162: Choix de VÉRACITÉ | F162: =L162 ->  | G162: =CHOOSE(K162,"Libellé du critère quand il sera choisi",'Mode Emploi'!$B$14,'Mode Emploi'!$B$15,'Mode Emploi'!$B$16,'Mode Emploi'!$B$17,,) -> Libellé du critère quand il sera choisi | I162: =I160+1 ->  | J162: =E162 -> Choix de VÉRACITÉ | K162: =IFERROR((VLOOKUP(E162,'Mode Emploi'!$M$13:$N$17,2)),"") -> 1 | L162: =IFERROR(CHOOSE(K162,"",'Mode Emploi'!$E$14,'Mode Emploi'!$E$15,'Mode Emploi'!$E$16,'Mode Emploi'!$E$17,),"") ->  | M162: =1/COUNTA($D$162:$D$166) -> 0.2 | N162: =IFERROR(L162*M162,"") -> 
A163: =CONCATENATE("cr ",MID(A162,3,4)+1) -> cr 129 | D163: Les critères et le périmètre de chaque audit sont définis | E163: Choix de VÉRACITÉ | F163: =L163 ->  | G163: =CHOOSE(K163,"Libellé du critère quand il sera choisi",'Mode Emploi'!$B$14,'Mode Emploi'!$B$15,'Mode Emploi'!$B$16,'Mode Emploi'!$B$17,,) -> Libellé du critère quand il sera choisi | I163: =I162+1 ->  | J163: =E163 -> Choix de VÉRACITÉ | K163: =IFERROR((VLOOKUP(E163,'Mode Emploi'!$M$13:$N$17,2)),"") -> 1 | L163: =IFERROR(CHOOSE(K163,"",'Mode Emploi'!$E$14,'Mode Emploi'!$E$15,'Mode Emploi'!$E$16,'Mode Emploi'!$E$17,),"") ->  | M163: =1/COUNTA($D$162:$D$166) -> 0.2 | N163: =IFERROR(L163*M163,"") -> 
A164: =CONCATENATE("cr ",MID(A163,3,4)+1) -> cr 130 | D164: Les auditeurs sont sélectionnés en s'assurant de l'objectivité et de l'impartialité du processus d'audit. | E164: Choix de VÉRACITÉ | F164: =L164 ->  | G164: =CHOOSE(K164,"Libellé du critère quand il sera choisi",'Mode Emploi'!$B$14,'Mode Emploi'!$B$15,'Mode Emploi'!$B$16,'Mode Emploi'!$B$17,,) -> Libellé du critère quand il sera choisi | I164: =I163+1 ->  | J164: =E164 -> Choix de VÉRACITÉ | K164: =IFERROR((VLOOKUP(E164,'Mode Emploi'!$M$13:$N$17,2)),"") -> 1 | L164: =IFERROR(CHOOSE(K164,"",'Mode Emploi'!$E$14,'Mode Emploi'!$E$15,'Mode Emploi'!$E$16,'Mode Emploi'!$E$17,),"") ->  | M164: =1/COUNTA($D$162:$D$166) -> 0.2 | N164: =IFERROR(L164*M164,"") -> 
A165: =CONCATENATE("cr ",MID(A164,3,4)+1) -> cr 131 | D165: Les résultats des audits sont communiqués à la direction concernée et les actions correctives nécessaires sont mises en place. | E165: Choix de VÉRACITÉ | F165: =L165 ->  | G165: =CHOOSE(K165,"Libellé du critère quand il sera choisi",'Mode Emploi'!$B$14,'Mode Emploi'!$B$15,'Mode Emploi'!$B$16,'Mode Emploi'!$B$17,,) -> Libellé du critère quand il sera choisi | I165: =I164+1 ->  | J165: =E165 -> Choix de VÉRACITÉ | K165: =IFERROR((VLOOKUP(E165,'Mode Emploi'!$M$13:$N$17,2)),"") -> 1 | L165: =IFERROR(CHOOSE(K165,"",'Mode Emploi'!$E$14,'Mode Emploi'!$E$15,'Mode Emploi'!$E$16,'Mode Emploi'!$E$17,),"") ->  | M165: =1/COUNTA($D$162:$D$166) -> 0.2 | N165: =IFERROR(L165*M165,"") -> 
A166: =CONCATENATE("cr ",MID(A165,3,4)+1) -> cr 132 | D166: Des informations documentées sont conservées comme preuves de la mise en œuvre du programme d'audit et de ses résultats. | E166: Choix de VÉRACITÉ | F166: =L166 ->  | G166: =CHOOSE(K166,"Libellé du critère quand il sera choisi",'Mode Emploi'!$B$14,'Mode Emploi'!$B$15,'Mode Emploi'!$B$16,'Mode Emploi'!$B$17,,) -> Libellé du critère quand il sera choisi | I166: =I165+1 ->  | J166: =E166 -> Choix de VÉRACITÉ | K166: =IFERROR((VLOOKUP(E166,'Mode Emploi'!$M$13:$N$17,2)),"") -> 1 | L166: =IFERROR(CHOOSE(K166,"",'Mode Emploi'!$E$14,'Mode Emploi'!$E$15,'Mode Emploi'!$E$16,'Mode Emploi'!$E$17,),"") ->  | M166: =1/COUNTA($D$162:$D$166) -> 0.2 | N166: =IFERROR(L166*M166,"") -> 
A167: 9.3 | B167: 5.6 | C167: 1.2.2.1 3.4.2.1 | D167: Revue de direction | E167: =O167 -> Insuffisant | F167: =N167 -> 0 | G167: =IFERROR(IF(F167<='Mode Emploi'!$G$14,'Mode Emploi'!$I$14,IF(F167<='Mode Emploi'!$G$15,'Mode Emploi'!$I$15,IF(F167<='Mode Emploi'!$G$16,'Mode Emploi'!$I$16,'Mode Emploi'!$I$17))),"") -> Conformité de niveau 1 : Il est nécessaire de formaliser les activités réalisées. | J167: Sous-Article | L167: vérifier si Somme = 1 => | M167: =SUM(M168:M171) -> 1 | N167: =IFERROR(SUM(N168:N171),"") -> 0 | O167: =IFERROR(IF(N167<='Mode Emploi'!$G$14,'Mode Emploi'!$H$14,IF(N167<='Mode Emploi'!$G$15,'Mode Emploi'!$H$15,IF(N167<='Mode Emploi'!$G$16,'Mode Emploi'!$H$16,'Mode Emploi'!$H$17))),"") -> Insuffisant | P167: =1/COUNTA($O$155:$O$167) -> 0.3333333333 | Q167: =P167*N167 -> 0
A168: =CONCATENATE("cr ",MID(A166,3,4)+1) -> cr 133 | D168: La revue du SMQ est réalisée à des intervalles planifiés pour s'assurer de son efficacité et adéquation avec la stratégie de l'organisme | E168: Choix de VÉRACITÉ | F168: =L168 ->  | G168: =CHOOSE(K168,"Libellé du critère quand il sera choisi",'Mode Emploi'!$B$14,'Mode Emploi'!$B$15,'Mode Emploi'!$B$16,'Mode Emploi'!$B$17,,) -> Libellé du critère quand il sera choisi | I168: =I166+1 ->  | J168: =E168 -> Choix de VÉRACITÉ | K168: =IFERROR((VLOOKUP(E168,'Mode Emploi'!$M$13:$N$17,2)),"") -> 1 | L168: =IFERROR(CHOOSE(K168,"",'Mode Emploi'!$E$14,'Mode Emploi'!$E$15,'Mode Emploi'!$E$16,'Mode Emploi'!$E$17,),"") ->  | M168: =1/COUNTA($D$168:$D$171) -> 0.25 | N168: =IFERROR(L168*M168,"") -> 
A169: =CONCATENATE("cr ",MID(A168,3,4)+1) -> cr 134 | D169: La revue de direction exploite des éléments d'entrée pertinents et complets (bilans, résultats, enquêtes, efficience, analyses, prestataires...) | E169: Choix de VÉRACITÉ | F169: =L169 ->  | G169: =CHOOSE(K169,"Libellé du critère quand il sera choisi",'Mode Emploi'!$B$14,'Mode Emploi'!$B$15,'Mode Emploi'!$B$16,'Mode Emploi'!$B$17,,) -> Libellé du critère quand il sera choisi | I169: =I168+1 ->  | J169: =E169 -> Choix de VÉRACITÉ | K169: =IFERROR((VLOOKUP(E169,'Mode Emploi'!$M$13:$N$17,2)),"") -> 1 | L169: =IFERROR(CHOOSE(K169,"",'Mode Emploi'!$E$14,'Mode Emploi'!$E$15,'Mode Emploi'!$E$16,'Mode Emploi'!$E$17,),"") ->  | M169: =1/COUNTA($D$168:$D$171) -> 0.25 | N169: =IFERROR(L169*M169,"") -> 
A170: =CONCATENATE("cr ",MID(A169,3,4)+1) -> cr 135 | D170: La revue de direction fournit des décisions et actions sur les opportunités d’amélioration, le besoin de modifier le SMQ et le besoin en ressources | E170: Choix de VÉRACITÉ | F170: =L170 ->  | G170: =CHOOSE(K170,"Libellé du critère quand il sera choisi",'Mode Emploi'!$B$14,'Mode Emploi'!$B$15,'Mode Emploi'!$B$16,'Mode Emploi'!$B$17,,) -> Libellé du critère quand il sera choisi | I170: =I169+1 ->  | J170: =E170 -> Choix de VÉRACITÉ | K170: =IFERROR((VLOOKUP(E170,'Mode Emploi'!$M$13:$N$17,2)),"") -> 1 | L170: =IFERROR(CHOOSE(K170,"",'Mode Emploi'!$E$14,'Mode Emploi'!$E$15,'Mode Emploi'!$E$16,'Mode Emploi'!$E$17,),"") ->  | M170: =1/COUNTA($D$168:$D$171) -> 0.25 | N170: =IFERROR(L170*M170,"") -> 
A171: =CONCATENATE("cr ",MID(A170,3,4)+1) -> cr 136 | D171: Les éléments de sortie des revues de direction sont conservés sous forme d'informations documentées. Ils doivent inclure les décisions et actions relatives aux opportunités d'amélioration, besoins de changements à apporter aux SMQ et les besoins en ressources. | E171: Choix de VÉRACITÉ | F171: =L171 ->  | G171: =CHOOSE(K171,"Libellé du critère quand il sera choisi",'Mode Emploi'!$B$14,'Mode Emploi'!$B$15,'Mode Emploi'!$B$16,'Mode Emploi'!$B$17,,) -> Libellé du critère quand il sera choisi | I171: =I170+1 ->  | J171: =E171 -> Choix de VÉRACITÉ | K171: =IFERROR((VLOOKUP(E171,'Mode Emploi'!$M$13:$N$17,2)),"") -> 1 | L171: =IFERROR(CHOOSE(K171,"",'Mode Emploi'!$E$14,'Mode Emploi'!$E$15,'Mode Emploi'!$E$16,'Mode Emploi'!$E$17,),"") ->  | M171: =1/COUNTA($D$168:$D$171) -> 0.25 | N171: =IFERROR(L171*M171,"") -> 
A172: Art. 10 | B172: Art 8 | C172: 1-2-3 | D172: Amélioration | E172: =R172 -> Insuffisant | F172: =Q172 -> 0 | G172: =IFERROR(IF(F172<='Mode Emploi'!$G$14,'Mode Emploi'!$I$14,IF(F172<='Mode Emploi'!$G$15,'Mode Emploi'!$I$15,IF(F172<='Mode Emploi'!$G$16,'Mode Emploi'!$I$16,'Mode Emploi'!$I$17))),"") -> Conformité de niveau 1 : Il est nécessaire de formaliser les activités réalisées. | J172: Article | O172: vérifier si Somme = 1 => | P172: =SUM(P173:P189) -> 1 | Q172: =IFERROR(SUM(Q173:Q189),"") -> 0 | R172: =IFERROR(IF(Q172<='Mode Emploi'!$G$14,'Mode Emploi'!$H$14,IF(Q172<='Mode Emploi'!$G$15,'Mode Emploi'!$H$15,IF(Q172<='Mode Emploi'!$G$16,'Mode Emploi'!$H$16,'Mode Emploi'!$H$17))),"") -> Insuffisant | S172: =1/7 -> 0.1428571429 | T172: =Q172*S172 -> 0
A173: 10.1 | B173: 8.5.1 | C173: 1.2.2.1 2.2.2.1 2.6.1.1 2.6.1.2 | D173: Généralités | E173: =O173 -> Insuffisant | F173: =N173 -> 0 | G173: =IFERROR(IF(F173<='Mode Emploi'!$G$14,'Mode Emploi'!$I$14,IF(F173<='Mode Emploi'!$G$15,'Mode Emploi'!$I$15,IF(F173<='Mode Emploi'!$G$16,'Mode Emploi'!$I$16,'Mode Emploi'!$I$17))),"") -> Conformité de niveau 1 : Il est nécessaire de formaliser les activités réalisées. | J173: Sous-Article | L173: vérifier si Somme = 1 => | M173: =SUM(M174:M177) -> 1 | N173: =IFERROR(SUM(N174:N177),"") -> 0 | O173: =IFERROR(IF(N173<='Mode Emploi'!$G$14,'Mode Emploi'!$H$14,IF(N173<='Mode Emploi'!$G$15,'Mode Emploi'!$H$15,IF(N173<='Mode Emploi'!$G$16,'Mode Emploi'!$H$16,'Mode Emploi'!$H$17))),"") -> Insuffisant | P173: =1/COUNTA($O$173:$O$189) -> 0.3333333333 | Q173: =P173*N173 -> 0
A174: =CONCATENATE("cr ",MID(A171,3,4)+1) -> cr 137 | D174: Toutes les opportunités d'amélioration sont déterminées et sélectionnées | E174: Choix de VÉRACITÉ | F174: =L174 ->  | G174: =CHOOSE(K174,"Libellé du critère quand il sera choisi",'Mode Emploi'!$B$14,'Mode Emploi'!$B$15,'Mode Emploi'!$B$16,'Mode Emploi'!$B$17,,) -> Libellé du critère quand il sera choisi | I174: =I171+1 ->  | J174: =E174 -> Choix de VÉRACITÉ | K174: =IFERROR((VLOOKUP(E174,'Mode Emploi'!$M$13:$N$17,2)),"") -> 1 | L174: =IFERROR(CHOOSE(K174,"",'Mode Emploi'!$E$14,'Mode Emploi'!$E$15,'Mode Emploi'!$E$16,'Mode Emploi'!$E$17,),"") ->  | M174: =1/COUNTA($D$174:$D$177) -> 0.25 | N174: =IFERROR(L174*M174,"") -> 
A175: =CONCATENATE("cr ",MID(A174,3,4)+1) -> cr 138 | D175: Des actions sont menées pour satisfaire les exigences du client et accroître sa satisfaction présente ou future | E175: Choix de VÉRACITÉ | F175: =L175 ->  | G175: =CHOOSE(K175,"Libellé du critère quand il sera choisi",'Mode Emploi'!$B$14,'Mode Emploi'!$B$15,'Mode Emploi'!$B$16,'Mode Emploi'!$B$17,,) -> Libellé du critère quand il sera choisi | I175: =I174+1 ->  | J175: =E175 -> Choix de VÉRACITÉ | K175: =IFERROR((VLOOKUP(E175,'Mode Emploi'!$M$13:$N$17,2)),"") -> 1 | L175: =IFERROR(CHOOSE(K175,"",'Mode Emploi'!$E$14,'Mode Emploi'!$E$15,'Mode Emploi'!$E$16,'Mode Emploi'!$E$17,),"") ->  | M175: =1/COUNTA($D$174:$D$177) -> 0.25 | N175: =IFERROR(L175*M175,"") -> 
A176: =CONCATENATE("cr ",MID(A175,3,4)+1) -> cr 139 | D176: L’organisme anticipe, corrige, prévient et réduit les éventuels effets indésirables de ses produits et services | E176: Choix de VÉRACITÉ | F176: =L176 ->  | G176: =CHOOSE(K176,"Libellé du critère quand il sera choisi",'Mode Emploi'!$B$14,'Mode Emploi'!$B$15,'Mode Emploi'!$B$16,'Mode Emploi'!$B$17,,) -> Libellé du critère quand il sera choisi | I176: =I175+1 ->  | J176: =E176 -> Choix de VÉRACITÉ | K176: =IFERROR((VLOOKUP(E176,'Mode Emploi'!$M$13:$N$17,2)),"") -> 1 | L176: =IFERROR(CHOOSE(K176,"",'Mode Emploi'!$E$14,'Mode Emploi'!$E$15,'Mode Emploi'!$E$16,'Mode Emploi'!$E$17,),"") ->  | M176: =1/COUNTA($D$174:$D$177) -> 0.25 | N176: =IFERROR(L176*M176,"") -> 
A177: =CONCATENATE("cr ",MID(A176,3,4)+1) -> cr 140 | D177: L’organisme améliore la performance et l'efficacité de son SMQ | E177: Choix de VÉRACITÉ | F177: =L177 ->  | G177: =CHOOSE(K177,"Libellé du critère quand il sera choisi",'Mode Emploi'!$B$14,'Mode Emploi'!$B$15,'Mode Emploi'!$B$16,'Mode Emploi'!$B$17,,) -> Libellé du critère quand il sera choisi | I177: =I176+1 ->  | J177: =E177 -> Choix de VÉRACITÉ | K177: =IFERROR((VLOOKUP(E177,'Mode Emploi'!$M$13:$N$17,2)),"") -> 1 | L177: =IFERROR(CHOOSE(K177,"",'Mode Emploi'!$E$14,'Mode Emploi'!$E$15,'Mode Emploi'!$E$16,'Mode Emploi'!$E$17,),"") ->  | M177: =1/COUNTA($D$174:$D$177) -> 0.25 | N177: =IFERROR(L177*M177,"") -> 
A178: 10.2 | B178: 8.5.2 | C178: 1.2.2.1 2.2.2.1 2.5.2.1 2.6.1.1 2.6.1.2 3.1.1.1 3.3.2.1 3.5.1.1 3.5.2.1 | D178: Non-conformité et action corrective | E178: =O178 -> Insuffisant | F178: =N178 -> 0 | G178: =IFERROR(IF(F178<='Mode Emploi'!$G$14,'Mode Emploi'!$I$14,IF(F178<='Mode Emploi'!$G$15,'Mode Emploi'!$I$15,IF(F178<='Mode Emploi'!$G$16,'Mode Emploi'!$I$16,'Mode Emploi'!$I$17))),"") -> Conformité de niveau 1 : Il est nécessaire de formaliser les activités réalisées. | J178: Sous-Article | L178: vérifier si Somme = 1 => | M178: =SUM(M179:M185) -> 1 | N178: =IFERROR(SUM(N179:N185),"") -> 0 | O178: =IFERROR(IF(N178<='Mode Emploi'!$G$14,'Mode Emploi'!$H$14,IF(N178<='Mode Emploi'!$G$15,'Mode Emploi'!$H$15,IF(N178<='Mode Emploi'!$G$16,'Mode Emploi'!$H$16,'Mode Emploi'!$H$17))),"") -> Insuffisant | P178: =1/COUNTA($O$173:$O$189) -> 0.3333333333 | Q178: =P178*N178 -> 0
A179: =CONCATENATE("cr ",MID(A177,3,4)+1) -> cr 141 | D179: L’organisme traite toute forme de non-conformité y compris celles liées à une réclamations | E179: Choix de VÉRACITÉ | F179: =L179 ->  | G179: =CHOOSE(K179,"Libellé du critère quand il sera choisi",'Mode Emploi'!$B$14,'Mode Emploi'!$B$15,'Mode Emploi'!$B$16,'Mode Emploi'!$B$17,,) -> Libellé du critère quand il sera choisi | I179: =I177+1 ->  | J179: =E179 -> Choix de VÉRACITÉ | K179: =IFERROR((VLOOKUP(E179,'Mode Emploi'!$M$13:$N$17,2)),"") -> 1 | L179: =IFERROR(CHOOSE(K179,"",'Mode Emploi'!$E$14,'Mode Emploi'!$E$15,'Mode Emploi'!$E$16,'Mode Emploi'!$E$17,),"") ->  | M179: =1/COUNTA($D$179:$D$185) -> 0.1428571429 | N179: =IFERROR(L179*M179,"") -> 
A180: =CONCATENATE("cr ",MID(A179,3,4)+1) -> cr 142 | D180: L’organisme réagit à chaque non-conformité pour la corriger, la maîtriser et prendre en charge les conséquences | E180: Choix de VÉRACITÉ | F180: =L180 ->  | G180: =CHOOSE(K180,"Libellé du critère quand il sera choisi",'Mode Emploi'!$B$14,'Mode Emploi'!$B$15,'Mode Emploi'!$B$16,'Mode Emploi'!$B$17,,) -> Libellé du critère quand il sera choisi | I180: =I179+1 ->  | J180: =E180 -> Choix de VÉRACITÉ | K180: =IFERROR((VLOOKUP(E180,'Mode Emploi'!$M$13:$N$17,2)),"") -> 1 | L180: =IFERROR(CHOOSE(K180,"",'Mode Emploi'!$E$14,'Mode Emploi'!$E$15,'Mode Emploi'!$E$16,'Mode Emploi'!$E$17,),"") ->  | M180: 0.1428571429
A181: cr 143 | D181: L’organisme évalue la nécessité de mener une action pour éliminer la ou les causes des non-conformités | E181: Choix de VÉRACITÉ | G181: =CHOOSE(K181,"Libellé du critère quand il sera choisi",'Mode Emploi'!$B$14,'Mode Emploi'!$B$15,'Mode Emploi'!$B$16,'Mode Emploi'!$B$17,,) -> Libellé du critère quand il sera choisi | J181: Choix de VÉRACITÉ | K181: =IFERROR((VLOOKUP(E181,'Mode Emploi'!$M$13:$N$17,2)),"") -> 1 | L181: =IFERROR(CHOOSE(K181,"",'Mode Emploi'!$E$14,'Mode Emploi'!$E$15,'Mode Emploi'!$E$16,'Mode Emploi'!$E$17,),"") ->  | M181: 0.1428571429
A182: cr 144 | D182: L’organisme met en œuvre, suit et évalue l'efficacité de toutes les actions correctives requises pour gérer ces non-conformités | E182: Choix de VÉRACITÉ | G182: =CHOOSE(K182,"Libellé du critère quand il sera choisi",'Mode Emploi'!$B$14,'Mode Emploi'!$B$15,'Mode Emploi'!$B$16,'Mode Emploi'!$B$17,,) -> Libellé du critère quand il sera choisi | J182: Choix de VÉRACITÉ | K182: =IFERROR((VLOOKUP(E182,'Mode Emploi'!$M$13:$N$17,2)),"") -> 1 | L182: =IFERROR(CHOOSE(K182,"",'Mode Emploi'!$E$14,'Mode Emploi'!$E$15,'Mode Emploi'!$E$16,'Mode Emploi'!$E$17,),"") ->  | M182: 0.1428571429
A183: cr 145 | D183: Si nécessaire, les risques et opportunités définis durant la planification sont mis à jour après l'exécution des actions correctives | E183: Choix de VÉRACITÉ | G183: =CHOOSE(K183,"Libellé du critère quand il sera choisi",'Mode Emploi'!$B$14,'Mode Emploi'!$B$15,'Mode Emploi'!$B$16,'Mode Emploi'!$B$17,,) -> Libellé du critère quand il sera choisi | J183: Choix de VÉRACITÉ | K183: =IFERROR((VLOOKUP(E183,'Mode Emploi'!$M$13:$N$17,2)),"") -> 1 | L183: =IFERROR(CHOOSE(K183,"",'Mode Emploi'!$E$14,'Mode Emploi'!$E$15,'Mode Emploi'!$E$16,'Mode Emploi'!$E$17,),"") ->  | M183: 0.1428571429
A184: cr 146 | D184: Si nécessaire, le SMQ est modifié | E184: Choix de VÉRACITÉ | G184: =CHOOSE(K184,"Libellé du critère quand il sera choisi",'Mode Emploi'!$B$14,'Mode Emploi'!$B$15,'Mode Emploi'!$B$16,'Mode Emploi'!$B$17,,) -> Libellé du critère quand il sera choisi | J184: Choix de VÉRACITÉ | K184: =IFERROR((VLOOKUP(E184,'Mode Emploi'!$M$13:$N$17,2)),"") -> 1 | L184: =IFERROR(CHOOSE(K184,"",'Mode Emploi'!$E$14,'Mode Emploi'!$E$15,'Mode Emploi'!$E$16,'Mode Emploi'!$E$17,),"") ->  | M184: 0.1428571429
A185: cr 147 | D185: Des informations documentées sur la nature des non-conformités, des actions menées et de leurs résultats de leurs actions correctives sont conservées | E185: Choix de VÉRACITÉ | G185: =CHOOSE(K185,"Libellé du critère quand il sera choisi",'Mode Emploi'!$B$14,'Mode Emploi'!$B$15,'Mode Emploi'!$B$16,'Mode Emploi'!$B$17,,) -> Libellé du critère quand il sera choisi | J185: Choix de VÉRACITÉ | K185: =IFERROR((VLOOKUP(E185,'Mode Emploi'!$M$13:$N$17,2)),"") -> 1 | L185: =IFERROR(CHOOSE(K185,"",'Mode Emploi'!$E$14,'Mode Emploi'!$E$15,'Mode Emploi'!$E$16,'Mode Emploi'!$E$17,),"") ->  | M185: 0.1428571429
A186: 10.3 | B186: 8.5.1 | C186: 1.2.2.1 3.3.2.1 3.5.1.1 | D186: Amélioration continue | E186: =O186 -> Insuffisant | F186: =N186 -> 0 | G186: =IFERROR(IF(F186<='Mode Emploi'!$G$14,'Mode Emploi'!$I$14,IF(F186<='Mode Emploi'!$G$15,'Mode Emploi'!$I$15,IF(F186<='Mode Emploi'!$G$16,'Mode Emploi'!$I$16,'Mode Emploi'!$I$17))),"") -> Conformité de niveau 1 : Il est nécessaire de formaliser les activités réalisées. | J186: Sous-Article | L186: vérifier si Somme = 1 => | M186: =SUM(M187:M189) -> 1 | N186: =IFERROR(SUM(N187:N189),"") -> 0 | O186: =IFERROR(IF(N186<='Mode Emploi'!$G$14,'Mode Emploi'!$H$14,IF(N186<='Mode Emploi'!$G$15,'Mode Emploi'!$H$15,IF(N186<='Mode Emploi'!$G$16,'Mode Emploi'!$H$16,'Mode Emploi'!$H$17))),"") -> Insuffisant | P186: =1/COUNTA($O$173:$O$189) -> 0.3333333333 | Q186: =P186*N186 -> 0
A187: =CONCATENATE("cr ",MID(A185,3,4)+1) -> cr 148 | D187: L’organisme s’engage à améliorer en continu la pertinence, l'adéquation et la performance du SMQ | E187: Choix de VÉRACITÉ | F187: =L187 ->  | G187: =CHOOSE(K187,"Libellé du critère quand il sera choisi",'Mode Emploi'!$B$14,'Mode Emploi'!$B$15,'Mode Emploi'!$B$16,'Mode Emploi'!$B$17,,) -> Libellé du critère quand il sera choisi | I187: =I185+1 ->  | J187: =E187 -> Choix de VÉRACITÉ | K187: =IFERROR((VLOOKUP(E187,'Mode Emploi'!$M$13:$N$17,2)),"") -> 1 | L187: =IFERROR(CHOOSE(K187,"",'Mode Emploi'!$E$14,'Mode Emploi'!$E$15,'Mode Emploi'!$E$16,'Mode Emploi'!$E$17,),"") ->  | M187: =1/COUNTA($D$187:$D$189) -> 0.3333333333 | N187: =IFERROR(L187*M187,"") -> 
A188: =CONCATENATE("cr ",MID(A187,3,4)+1) -> cr 149 | D188: L'organisme prend en compte les résultats de l'analyse et de l'évaluation ainsi que les éléments de sortie de la revue de Direction. | E188: Choix de VÉRACITÉ | F188: =L188 ->  | G188: =CHOOSE(K188,"Libellé du critère quand il sera choisi",'Mode Emploi'!$B$14,'Mode Emploi'!$B$15,'Mode Emploi'!$B$16,'Mode Emploi'!$B$17,,) -> Libellé du critère quand il sera choisi | I188: =I187+1 ->  | J188: =E188 -> Choix de VÉRACITÉ | K188: =IFERROR((VLOOKUP(E188,'Mode Emploi'!$M$13:$N$17,2)),"") -> 1 | L188: =IFERROR(CHOOSE(K188,"",'Mode Emploi'!$E$14,'Mode Emploi'!$E$15,'Mode Emploi'!$E$16,'Mode Emploi'!$E$17,),"") ->  | M188: =1/COUNTA($D$187:$D$189) -> 0.3333333333 | N188: =IFERROR(L188*M188,"") -> 
A189: =CONCATENATE("cr ",MID(A188,3,4)+1) -> cr 150 | D189: L'organisme détermine les besoins et les opportunités à considérer dans le cadre de l'amélioration continue. | E189: Choix de VÉRACITÉ | F189: =L189 ->  | G189: =CHOOSE(K189,"Libellé du critère quand il sera choisi",'Mode Emploi'!$B$14,'Mode Emploi'!$B$15,'Mode Emploi'!$B$16,'Mode Emploi'!$B$17,,) -> Libellé du critère quand il sera choisi | I189: =I188+1 ->  | J189: =E189 -> Choix de VÉRACITÉ | K189: =IFERROR((VLOOKUP(E189,'Mode Emploi'!$M$13:$N$17,2)),"") -> 1 | L189: =IFERROR(CHOOSE(K189,"",'Mode Emploi'!$E$14,'Mode Emploi'!$E$15,'Mode Emploi'!$E$16,'Mode Emploi'!$E$17,),"") ->  | M189: =1/COUNTA($D$187:$D$189) -> 0.3333333333 | N189: =IFERROR(L189*M189,"") -> 

Sheet Résultats globaux
A1: ='Mode Emploi'!B1 -> Document d'appui à la déclaration première partie de conformité à la norme ISO 9001:2015 | H1: Impression sur pages A4 100% en format horizontal
A2: ='Mode Emploi'!B2 -> Autodiagnostic selon la norme ISO 9001:2015
A5: TABLEAUX DE BORD sur les niveaux de CONFORMITÉ et de RÉALISATION selon les exigences de la norme ISO 9001:2015 | M5: Utilitaires pour les CALCULS et les GRAPHIQUES
A6: =CONCATENATE("Niveaux de VÉRACITÉ des ", S9, " critères d'exigence ") ->  | E6: Niveaux de CONFORMITÉ des ARTICLES aux exigences de la norme
F7: Moyenne générale : | G7: =G29 -> 0 | H7: =E29 -> Insuffisant | K7: Histogramme des niveaux de CONFORMITÉ | P7: Histogramme des niveaux de VÉRACITÉ
K8: CONFORMITÉ | L8: Nb d'Articles | M8: Tracer la moyenne | O8: VÉRACITÉ | Q8: Nb de critères d'exigences | R8: Ecart vs Total des critères | S8: Total des critères
K9: Niveaux | L9: =SUM(L10:L13) -> 28 | M9: : Total ou 0 | O9: Niveaux | P9: N° | Q9: =SUM(Q10:Q13) -> 0 | R9: =154-Q9 -> 154 | S9: =MAX(Exigences!I1:I190) -> 
A10: =IF(Q9<S9,CONCATENATE("Attention : ",R9," critères ne sont pas encore traités"),"") ->  | K10: ='Mode Emploi'!H14 -> Insuffisant | L10: =IFERROR(COUNTIFS($F$31:$F$64,K10),0) -> 28 | M10: =IF($E$29=K10,30,0) -> 30 | O10: Faux | P10: ='Mode Emploi'!N14 -> 2 | Q10: =IFERROR(COUNTIFS(Exigences!$K$7:$K$189,$P10),0) -> 0
A11: Niveaux de CONFORMITÉ des 28 SOUS-ARTICLES de la norme (et Moyenne) | K11: ='Mode Emploi'!H15 -> Informel | L11: =IFERROR(COUNTIFS($F$31:$F$64,K11),0) -> 0 | M11: =IF($E$29=K11,30,0) -> 0 | O11: Plutôt Faux | P11: ='Mode Emploi'!N15 -> 3 | Q11: =IFERROR(COUNTIFS(Exigences!$K$7:$K$189,$P11),0) -> 0
K12: ='Mode Emploi'!H16 -> Convaincant | L12: =IFERROR(COUNTIFS($F$31:$F$64,K12),0) -> 0 | M12: =IF($E$29=K12,30,0) -> 0 | O12: Plutôt Vrai | P12: ='Mode Emploi'!N16 -> 4 | Q12: =IFERROR(COUNTIFS(Exigences!$K$7:$K$189,$P12),0) -> 0
K13: ='Mode Emploi'!H17 -> Conforme | L13: =IFERROR(COUNTIFS($F$31:$F$64,K13),0) -> 0 | M13: =IF($E$29=K13,30,0) -> 0 | O13: Vrai | P13: ='Mode Emploi'!N17 -> 5 | Q13: =IFERROR(COUNTIFS(Exigences!$K$7:$K$189,$P13),0) -> 0
A18: BILAN, COMMENTAIRES et PLANS D'AMÉLIORATION
A19: Taux de CONFORMITÉ aux exigences pour les 28 SOUS-ARTICLES de la norme | F19: COMMENTAIRES sur les RÉSULTATS obtenus
F20: Commentaires (collectifs si possible) :
F21: DÉCISIONS : Plans d'action PRIORITAIRES
F22: QUOI Objectifs à atteindre | G22: QUI en Interne ou en Externe | H22: QUAND ET OÙ Date et Champ d'application
F23: Plan n°1 :
F24: Plan n°2 :
A25: en pointillés verts : seuil minimal paramétré pour être "Conforme" (voir onglet {Mode d'Emploi}) | F25: Plan n°3 :
A27: TABLEAU de SYNTHÈSE des RÉSULTATS moyennés de l'évaluation quant au degré de réalisation des actions associées au respect des exigences de l'ISO 9001:2015 | M27: Coloriage des zones des ARTICLES | R27: Tracage de la limite de CONFORMITÉ
F28: Evaluations | G28: Taux % | H28: Niveaux de CONFORMITÉ | K28: =CONCATENATE("Fond ",A30) -> Fond Art. 4 | L28: =CONCATENATE("Fond ",A35) -> Fond Art. 5 | M28: =CONCATENATE("Fond ",A39) -> Fond Art. 6 | N28: =CONCATENATE("Fond ",A43) -> Fond Art. 7 | O28: =CONCATENATE("Fond ",A49) -> Fond Art. 8 | P28: =CONCATENATE("Fond ",A57) -> Fond Art. 9 | Q28: =CONCATENATE("Fond ",A61) -> Fond Art. 10 | R28: ='Mode Emploi'!F17 -> 0.9
B29: Niveau moyen sur l'ensemble des articles de la norme ISO 9001:2015 : | E29: =IFERROR(IF(G29<='Mode Emploi'!$G$14,'Mode Emploi'!$H$14,IF(G29<='Mode Emploi'!$G$15,'Mode Emploi'!$H$15,IF(G29<='Mode Emploi'!$G$16,'Mode Emploi'!$H$16,'Mode Emploi'!$H$17))),"") -> Insuffisant | G29: =AVERAGE(G30,G35,G39,G43,G49,G57,G61) -> 0 | H29: =PROPER(MID(Exigences!G5,14,9)) -> Niveau 1 | N29: Utilitaires pour les CALCULS et les GRAPHIQUES
A30: =Exigences!A5 -> Art. 4 | B30: =Exigences!D5 -> Contexte de l'organisme | E30: =Exigences!E5 -> Insuffisant | G30: =Exigences!F5 -> 0 | H30: =PROPER(MID(Exigences!G6,14,9)) -> Niveau 1 | K30: 1
B31: =Exigences!A6 -> 4.1 | C31: Contexte | F31: =Exigences!E6 -> Insuffisant | G31: =Exigences!F6 -> 0 | H31: =PROPER(MID(Exigences!G6,14,9)) -> Niveau 1 | K31: 1 | L31: 0 | M31: 0 | N31: 0 | O31: 0 | P31: 0 | Q31: 1 | R31: =$R$28 -> 0.9
B32: =Exigences!A10 -> 4.2 | C32: Besoins | F32: =Exigences!E10 -> Insuffisant | G32: =Exigences!F10 -> 0 | H32: =PROPER(MID(Exigences!G10,14,9)) -> Niveau 1 | K32: 1 | L32: 0 | M32: 0 | N32: 0 | O32: 0 | P32: 0 | Q32: 0 | R32: =$R$28 -> 0.9
B33: =Exigences!A14 -> 4.3 | C33: Application du SMQ | F33: =Exigences!E14 -> Insuffisant | G33: =Exigences!F14 -> 0 | H33: =PROPER(MID(Exigences!G14,14,9)) -> Niveau 1 | K33: 1 | L33: 0 | M33: 0 | N33: 0 | O33: 0 | P33: 0 | Q33: 0 | R33: =$R$28 -> 0.9
B34: =Exigences!A19 -> 4.4 | C34: SMQ et processus | F34: =Exigences!E19 -> Insuffisant | G34: =Exigences!F19 -> 0 | H34: =PROPER(MID(Exigences!G19,14,9)) -> Niveau 1 | L34: 0 | M34: 0 | N34: 0 | O34: 0 | P34: 0 | Q34: 0 | R34: =$R$28 -> 0.9
A35: =Exigences!A27 -> Art. 5 | B35: =Exigences!D27 -> Leadership | E35: =Exigences!E27 -> Insuffisant | G35: =Exigences!F27 -> 0 | H35: =PROPER(MID(Exigences!G27,14,9)) -> Niveau 1 | K35: 1
B36: =Exigences!A28 -> 5.1 | C36: Leadership et engagement | F36: =Exigences!E28 -> Insuffisant | G36: =Exigences!F28 -> 0 | H36: =PROPER(MID(Exigences!G28,14,9)) -> Niveau 1 | K36: 0 | L36: 1 | M36: 0 | N36: 0 | O36: 0 | P36: 0 | Q36: 0 | R36: =$R$28 -> 0.9
B37: =Exigences!A34 -> 5.2 | C37: Politique | F37: =Exigences!E34 -> Insuffisant | G37: =Exigences!F34 -> 0 | H37: =PROPER(MID(Exigences!G34,14,9)) -> Niveau 1 | K37: 0 | L37: 1 | M37: 0 | N37: 0 | O37: 0 | P37: 0 | Q37: 0 | R37: =$R$28 -> 0.9
B38: =Exigences!A38 -> 5.3 | C38: Responsabilités et autorités | F38: =Exigences!E38 -> Insuffisant | G38: =Exigences!F38 -> 0 | H38: =PROPER(MID(Exigences!G38,14,9)) -> Niveau 1 | L38: 1 | M38: 0 | N38: 0 | O38: 0 | P38: 0 | Q38: 0 | R38: =$R$28 -> 0.9
A39: =Exigences!A42 -> Art. 6 | B39: =Exigences!D42 -> Planification | E39: =Exigences!E42 -> Insuffisant | G39: =Exigences!F42 -> 0 | H39: =PROPER(MID(Exigences!G42,14,9)) -> Niveau 1 | K39: 0
B40: =Exigences!A43 -> 6.1 | C40: Actions face aux risques et opportunités | F40: =Exigences!E43 -> Insuffisant | G40: =Exigences!F43 -> 0 | H40: =PROPER(MID(Exigences!G43,14,9)) -> Niveau 1 | K40: 0 | L40: 1 | M40: 1 | N40: 0 | O40: 0 | P40: 0 | Q40: 0 | R40: =$R$28 -> 0.9
B41: =Exigences!A48 -> 6.2 | C41: Objectifs qualité et leur planification | F41: =Exigences!E48 -> Insuffisant | G41: =Exigences!F48 -> 0 | H41: =PROPER(MID(Exigences!G48,14,9)) -> Niveau 1 | K41: 0 | L41: 0 | M41: 1 | N41: 0 | O41: 0 | P41: 0 | Q41: 0 | R41: =$R$28 -> 0.9
B42: =Exigences!A54 -> 6.3 | C42: Planification des modifications | F42: =Exigences!E54 -> Insuffisant | G42: =Exigences!F54 -> 0 | H42: =PROPER(MID(Exigences!G54,14,9)) -> Niveau 1 | L42: 0 | M42: 1 | N42: 0 | O42: 0 | P42: 0 | Q42: 0 | R42: =$R$28 -> 0.9
A43: =Exigences!A59 -> Art. 7 | B43: =Exigences!D59 -> Support | E43: =Exigences!E59 -> Insuffisant | G43: =Exigences!F59 -> 0 | H43: =PROPER(MID(Exigences!G59,14,9)) -> Niveau 1 | K43: 0
B44: =Exigences!A60 -> 7.1 | C44: Ressources | F44: =Exigences!E60 -> Insuffisant | G44: =Exigences!F60 -> 0 | H44: =PROPER(MID(Exigences!G60,14,9)) -> Niveau 1 | K44: 0 | L44: 0 | M44: 1 | N44: 1 | O44: 0 | P44: 0 | Q44: 0 | R44: =$R$28 -> 0.9
B45: =Exigences!A74 -> 7.2 | C45: Compétences | F45: =Exigences!E74 -> Insuffisant | G45: =Exigences!F74 -> 0 | H45: =PROPER(MID(Exigences!G74,14,9)) -> Niveau 1 | K45: 0 | L45: 0 | M45: 0 | N45: 1 | O45: 0 | P45: 0 | Q45: 0 | R45: =$R$28 -> 0.9
B46: =Exigences!A79 -> 7.3 | C46: Sensibilisation | F46: =Exigences!E79 -> Insuffisant | G46: =Exigences!F79 -> 0 | H46: =PROPER(MID(Exigences!G79,14,9)) -> Niveau 1 | K46: 0 | L46: 0 | M46: 0 | N46: 1 | O46: 0 | P46: 0 | Q46: 0 | R46: =$R$28 -> 0.9
B47: =Exigences!A83 -> 7.4 | C47: Communication | F47: =Exigences!E83 -> Insuffisant | G47: =Exigences!F83 -> 0 | H47: =PROPER(MID(Exigences!G83,14,9)) -> Niveau 1 | K47: 0 | L47: 0 | M47: 0 | N47: 1 | O47: 0 | P47: 0 | Q47: 0 | R47: =$R$28 -> 0.9
B48: =Exigences!A88 -> 7.5 | C48: Informations documentées | F48: =Exigences!E88 -> Insuffisant | G48: =Exigences!F88 -> 0 | H48: =PROPER(MID(Exigences!G88,14,9)) -> Niveau 1 | L48: 0 | M48: 0 | N48: 1 | O48: 0 | P48: 0 | Q48: 0 | R48: =$R$28 -> 0.9
A49: =Exigences!A96 -> Art. 8 | B49: =Exigences!D96 -> Réalisation des activités opérationnelles | E49: =Exigences!E96 -> Insuffisant | G49: =Exigences!F96 -> 0 | H49: =PROPER(MID(Exigences!G96,14,9)) -> Niveau 1 | K49: 0
B50: =Exigences!A97 -> 8.1 | C50: Gestion opérationnelle | F50: =Exigences!E97 -> Insuffisant | G50: =Exigences!F97 -> 0 | H50: =PROPER(MID(Exigences!G97,14,9)) -> Niveau 1 | K50: 0 | L50: 0 | M50: 0 | N50: 1 | O50: 1 | P50: 0 | Q50: 0 | R50: =$R$28 -> 0.9
B51: =Exigences!A106 -> 8.2 | C51: Exigences | F51: =Exigences!E106 -> Insuffisant | G51: =Exigences!F106 -> 0 | H51: =PROPER(MID(Exigences!G106,14,9)) -> Niveau 1 | K51: 0 | L51: 0 | M51: 0 | N51: 0 | O51: 1 | P51: 0 | Q51: 0 | R51: 0.9
B52: =Exigences!A117 -> 8.3 | C52: Conception et développement | F52: =Exigences!E117 -> Insuffisant | G52: =Exigences!F117 -> 0 | H52: =PROPER(MID(Exigences!G117,14,9)) -> Niveau 1 | K52: 0 | L52: 0 | M52: 0 | N52: 0 | O52: 1 | P52: 0 | Q52: 0 | R52: 0.9
B53: =Exigences!A131 -> 8.4 | C53: Prestataires externes | F53: =Exigences!E131 -> Insuffisant | G53: =Exigences!F131 -> 0 | H53: =PROPER(MID(Exigences!G131,14,9)) -> Niveau 1 | K53: 0 | L53: 0 | M53: 0 | N53: 0 | O53: 1 | P53: 0 | Q53: 0 | R53: 0.9
B54: =Exigences!A137 -> 8.5 | C54: Production de service | F54: =Exigences!E137 -> Insuffisant | G54: =Exigences!F137 -> 0 | H54: =PROPER(MID(Exigences!G137,14,9)) -> Niveau 1 | K54: 0 | L54: 0 | M54: 0 | N54: 0 | O54: 1 | P54: 0 | Q54: 0 | R54: 0.9
B55: =Exigences!A144 -> 8.6 | C55: Libération des livrables | F55: =Exigences!E144 -> Insuffisant | G55: =Exigences!F144 -> 0 | H55: =PROPER(MID(Exigences!G144,14,9)) -> Niveau 1 | K55: 0 | L55: 0 | M55: 0 | N55: 0 | O55: 1 | P55: 0 | Q55: 0 | R55: 0.9
B56: =Exigences!A148 -> 8.7 | C56: Livrables non-conformes | F56: =Exigences!E148 -> Insuffisant | G56: =Exigences!F148 -> 0 | H56: =PROPER(MID(Exigences!G148,14,9)) -> Niveau 1 | L56: 0 | M56: 0 | N56: 0 | O56: 1 | P56: 0 | Q56: 0 | R56: 0.9
A57: =Exigences!A154 -> Art. 9 | B57: =Exigences!D154 -> Évaluation des performances | E57: =Exigences!E154 -> Insuffisant | G57: =Exigences!F154 -> 0 | H57: =PROPER(MID(Exigences!G154,14,9)) -> Niveau 1 | K57: 0
B58: =Exigences!A155 -> 9.1 | C58: Surveillance et évaluation | F58: =Exigences!E155 -> Insuffisant | G58: =Exigences!F155 -> 0 | H58: =PROPER(MID(Exigences!G155,14,9)) -> Niveau 1 | K58: 0 | L58: 0 | M58: 0 | N58: 0 | O58: 1 | P58: 1 | Q58: 0 | R58: 0.9
B59: =Exigences!A161 -> 9.2 | C59: Audit interne | F59: =Exigences!E161 -> Insuffisant | G59: =Exigences!F161 -> 0 | H59: =PROPER(MID(Exigences!G161,14,9)) -> Niveau 1 | K59: 0 | L59: 0 | M59: 0 | N59: 0 | O59: 0 | P59: 1 | Q59: 0 | R59: 0.9
B60: =Exigences!A167 -> 9.3 | C60: Revue de direction | F60: =Exigences!E167 -> Insuffisant | G60: =Exigences!F167 -> 0 | H60: =PROPER(MID(Exigences!G167,14,9)) -> Niveau 1 | L60: 0 | M60: 0 | N60: 0 | O60: 0 | P60: 1 | Q60: 0 | R60: 0.9
A61: =Exigences!A172 -> Art. 10 | B61: =Exigences!D172 -> Amélioration | E61: =Exigences!E172 -> Insuffisant | G61: =Exigences!F172 -> 0 | H61: =PROPER(MID(Exigences!G172,14,9)) -> Niveau 1 | K61: 0
B62: =Exigences!A173 -> 10.1 | C62: Généralités | F62: =Exigences!E173 -> Insuffisant | G62: =Exigences!F173 -> 0 | H62: =PROPER(MID(Exigences!G173,14,9)) -> Niveau 1 | K62: 0 | L62: 0 | M62: 0 | N62: 0 | O62: 0 | P62: 1 | Q62: 1 | R62: =$R$28 -> 0.9
B63: =Exigences!A178 -> 10.2 | C63: Action corrective | F63: =Exigences!E178 -> Insuffisant | G63: =Exigences!F178 -> 0 | H63: =PROPER(MID(Exigences!G178,14,9)) -> Niveau 1 | K63: 0 | L63: 0 | M63: 0 | N63: 0 | O63: 0 | P63: 0 | Q63: 1 | R63: =$R$28 -> 0.9
B64: =Exigences!A186 -> 10.3 | C64: Amélioration continue | F64: =Exigences!E186 -> Insuffisant | G64: =Exigences!F186 -> 0 | H64: =PROPER(MID(Exigences!G186,14,9)) -> Niveau 1 | L64: 0 | M64: 0 | N64: 0 | O64: 0 | P64: 0 | Q64: 1 | R64: =$R$28 -> 0.9

Sheet Résultats par Article
A1: ='Mode Emploi'!B1 -> Document d'appui à la déclaration première partie de conformité à la norme ISO 9001:2015 | H1: Impression sur pages A4 100% en format horizontal
A2: Résultats détaillés par ARTICLE de l'autodiagnostic selon la norme ISO 9001:2015
B5: =Exigences!A5 -> Art. 4 | C5: =Exigences!D5 -> Contexte de l'organisme
B6: Niveau d'évaluation | C6: Taux de CONFORMITÉ aux critères d'exigence | F6: COMMENTAIRES sur les RÉSULTATS obtenus
B7: ='Résultats globaux'!E30 -> Insuffisant | C7: ='Résultats globaux'!G30 -> 0 | F7: Commentaires (collectifs si possible) :
F8: DÉCISIONS : Plans d'action PRIORITAIRES
F9: QUOI Objectifs à atteindre | G9: QUI en Interne ou en Externe | H9: QUAND ET OÙ Date et Champ d'application
F10: Plan n°1 :
F11: Plan n°2 :
F12: Plan n°3 :
B14: =Exigences!A27 -> Art. 5 | C14: =Exigences!D27 -> Leadership
B15: Niveau d'évaluation | C15: Taux de CONFORMITÉ aux critères d'exigence | F15: COMMENTAIRES sur les RÉSULTATS obtenus
B16: ='Résultats globaux'!E35 -> Insuffisant | C16: ='Résultats globaux'!G35 -> 0 | F16: Commentaires (collectifs si possible) :
F17: DÉCISIONS : Plans d'action PRIORITAIRES
F18: QUOI Objectifs à atteindre | G18: QUI en Interne ou en Externe | H18: QUAND ET OÙ Date et Champ d'application
F19: Plan n°1 :
F20: Plan n°2 :
F21: Plan n°3 :
B23: =Exigences!A42 -> Art. 6 | C23: =Exigences!D42 -> Planification
B24: Niveau d'évaluation | C24: Taux de CONFORMITÉ aux critères d'exigence | F24: COMMENTAIRES sur les RÉSULTATS obtenus
B25: ='Résultats globaux'!E39 -> Insuffisant | C25: ='Résultats globaux'!G39 -> 0 | F25: Commentaires (collectifs si possible) :
F26: DÉCISIONS : Plans d'action PRIORITAIRES
F27: QUOI Objectifs à atteindre | G27: QUI en Interne ou en Externe | H27: QUAND ET OÙ Date et Champ d'application
F28: Plan n°1 :
F29: Plan n°2 :
F30: Plan n°3 :
B32: =Exigences!A59 -> Art. 7 | C32: =Exigences!D59 -> Support
B33: Niveau d'évaluation | C33: Taux de CONFORMITÉ aux critères d'exigence | F33: COMMENTAIRES sur les RÉSULTATS obtenus
B34: ='Résultats globaux'!E43 -> Insuffisant | C34: ='Résultats globaux'!G43 -> 0 | F34: Commentaires (collectifs si possible) :
F35: DÉCISIONS : Plans d'action PRIORITAIRES
F36: QUOI Objectifs à atteindre | G36: QUI en Interne ou en Externe | H36: QUAND ET OÙ Date et Champ d'application
F37: Plan n°1 :
F38: Plan n°2 :
F39: Plan n°3 :
B41: =Exigences!A96 -> Art. 8 | C41: =Exigences!D96 -> Réalisation des activités opérationnelles
B42: Niveau d'évaluation | C42: Taux de CONFORMITÉ aux critères d'exigence | F42: COMMENTAIRES sur les RÉSULTATS obtenus
B43: ='Résultats globaux'!E49 -> Insuffisant | C43: ='Résultats globaux'!G49 -> 0 | F43: Commentaires (collectifs si possible) :
F44: DÉCISIONS : Plans d'action PRIORITAIRES
F45: QUOI Objectifs à atteindre | G45: QUI en Interne ou en Externe | H45: QUAND ET OÙ Date et Champ d'application
F46: Plan n°1 :
F47: Plan n°2 :
F48: Plan n°3 :
B50: =Exigences!A154 -> Art. 9 | C50: =Exigences!D154 -> Évaluation des performances
B51: Niveau d'évaluation | C51: Taux de CONFORMITÉ aux critères d'exigence | F51: COMMENTAIRES sur les RÉSULTATS obtenus
B52: ='Résultats globaux'!E57 -> Insuffisant | C52: ='Résultats globaux'!G57 -> 0 | F52: Commentaires (collectifs si possible) :
F53: DÉCISIONS : Plans d'action PRIORITAIRES
F54: QUOI Objectifs à atteindre | G54: QUI en Interne ou en Externe | H54: QUAND ET OÙ Date et Champ d'application
F55: Plan n°1 :
F56: Plan n°2 :
F57: Plan n°3 :
B59: =Exigences!A172 -> Art. 10 | C59: =Exigences!D172 -> Amélioration
B60: Niveau d'évaluation | C60: Taux de CONFORMITÉ aux critères d'exigence | F60: COMMENTAIRES sur les RÉSULTATS obtenus
B61: ='Résultats globaux'!E61 -> Insuffisant | C61: ='Résultats globaux'!G61 -> 0 | F61: Commentaires (collectifs si possible) :
F62: DÉCISIONS : Plans d'action PRIORITAIRES
F63: QUOI Objectifs à atteindre | G63: QUI en Interne ou en Externe | H63: QUAND ET OÙ Date et Champ d'application
F64: Plan n°1 :
F65: Plan n°2 :
F66: Plan n°3 :

Sheet Conseils
A1: Autodiagnostic selon la norme ISO 9001:2015
A2: "Systèmes de management de la qualité - Exigences", édition Afnor, www.afnor.org, octobre 2015
D4: Quelques CONSEILS pour atteindre le respect des exigences...
C5: Articles | D5: Quoi | E5: Qui
A6: Art. 4 Contexte de l'organisme
B7: 4.1 | C7: Compréhension de l'organisme et de son contexte | D7: L’organisme doit déterminer les enjeux externes et internes liés au contexte socio-économique dans lequel il se situe. De plus, les parties intéressées doivent être identifiées ainsi que leurs attentes et exigences. Ces dernières seront listées et revus périodiquement. Les champs d'application du système de management de la qualité (SMQ) sont fixés, ainsi que l'ensemble des processus nécessaires à la mise en oeuvre de ce système. | E7: Responsable Qualité et Direction Générale
B8: 4.2 | C8: Compréhension des besoins et des attentes des parties intéressées
B9: 4.3 | C9: Détermination du domaine d'application du SMQ
B10: 4.4 | C10: Système de Management de la Qualité et ses processus
A11: Art. 5 Leadership
B12: 5.1 | C12: Leadership et engagement | D12: Dans cet article, la responsabilité de la direction est de communiquer et mettre à disposition sa politique qualité qu'elle appliquera et mettra à jour par la suite. L'engagement de la direction consiste aussi à attribuer les responsabilités et les autorités au sein de l'organisme afin d'appliquer sa politique qualité. | E12: Responsable Qualité et Direction Générale
B13: 5.2 | C13: Politique
B14: 5.3 | C14: Rôles, responsabilités et autorités au sein de l'organisme
A15: Art. 6 Planification
B16: 6.1 | C16: Action à mettre en œuvre façe aux risques et opportunités | D16: Ce paragraphe stipule l’identification des risques liés aux enjeux de l’organisme et de prendre les mesures nécessaires pour y remédier. Des objectifs qualité pertinents et cohérents avec la politique de l'organisme sont fixés et doivent être documentés, communiqués à l’ensemble des acteurs et mesurables afin de pouvoir évaluer la performance dans l’atteinte de ces objectifs. Le système de management de la qualité peut subir des modifications dont la réalisation doit être plannifiée, tout en mettant à disposition les ressources nécessaires à cette réalisation et en attribuant les responsabilités et les autorités correspondantes. | E16: Responsable Qualité et Direction Générale
B17: 6.2 | C17: Objectifs qualité et planification des actions pour les atteindre
B18: 6.3 | C18: Planification des modifications
A19: Art. 7 Support
B20: 7.1 | C20: Ressources | D20: Les ressources humaines et matérielles nécessaires sont mises à disposition pour la réalisation des processus du SMQ. Les compétences des personnes qui ont un impact direct sur la qualité des produits/services (conception et développement, production, service client...) sont contrôlées. D'autre part, sur le volet informationnel, l'organisme doit planifier des réunions périodiques et des entretiens avec l'ensemble des pilotes de processus. Ceci pour vérifier l'existence, la conformité et l'application sur le terrain des dispositions demandées. Les informations documentées doivent ainsi être créées, mises à jour, diffusées et utilisées par l'ensemble des parties prenantes. | E20: Responsable Qualité et pilotes de processus (RH, Système informatique, Gestion administrative, gestion financière, Maintenance et Infrastructures)
B21: 7.2 | C21: Compétences
B22: 7.3 | C22: Sensibilisation
B23: 7.4 | C23: Communication
B24: 7.5 | C24: Informations documentées
A25: Art. 8 Réalisation des activités opérationnelles
B26: 8.1 | C26: Planification et maîtrise opérationnelles | D26: L'organisme doit planifier, mettre en œuvre et maîtriser les processus nécessaires à la réalisation des activités opérationnelles, après avoir recensé les besoins du clients et receuilli les informations documentées explicitant ces besoins. Il est recommandé de définir avec la direction et l'ensemble des pilotes du processus, les exigences relatives aux produits et services et leur développement. Pour assurer la conformité de ces éléments, il est nécessaire de vérifier de façon continue, principalement après la mise à jour des processus, les informations relatives aux actions menées qui doivent être documentées et conservées. Il est également essentiel de verifier la conformité des produits et services fournis par les prestataires externes, aux exigences définis par l'organisme. | E26: Direction Générale, Responsable Qualité, pilotes des processus, Personnel
B27: 8.2 | C27: Exigences relatives aux produits et services
B28: 8.3 | C28: Conception et développement de produits et services
B29: 8.4 | C29: Maîtrise des processus, produits et services fournis par des prestataires externes
B30: 8.5 | C30: Production et prestation de service
B31: 8.6 | C31: Libération des produits et services
B32: 8.7 | C32: Maîtrise des éléments de sortie non conformes
A33: Art. 9 Évaluation des performances
B34: 9.1 | C34: Surveillance, mesure, analyse et évaluation | D34: La version ISO 9001:2015 renforce l'évaluation de la performance dans un système de management de la qualité. Cela requiert la mise en place de moyen de surveillance et de mesure des résultats obtenus. Ces résultats attendus, en interne comme en externe, peuvent concerner la qualité des produits ou services au regard des attentes des clients. Cela nécessite d’avoir une surveillance constante sur les processus afin de réagir en cas d'anomalie . Il est important de programmer des audits internes de façon périodique, en fournissant les moyens nécessaires (humains et matériels) afin d'entreprendre sans délai indu la correction et les actions correctives appropriées s'il y a écart. | E34: Direction Générale, Responsable Qualité, pilotes des processus, Personnel
B35: 9.2 | C35: Audit interne
B36: 9.3 | C36: Revue de direction
A37: Art. 10 Amélioration
B38: 10.1 | C38: Généralités | D38: Les besoins et attentes des parties intéressées doivent être prises en considération pour améliorer la performance de vos activités. Il est important d’étudier l’évolution des besoins des clients et du marché, des compétences, des exigences réglementaires ou tout autre facteur. L'organisme s'engage donc à améliorer en continu la qualité des produits et services qu'il propose aux clients pour augmenter leur satisfaction. Cela passe par la correction des anomalies et des non conformités , mais aussi par les actions préventives suite à l'étude et l'analyse des résultats d'évaluation de la performance du SMQ. L'organisme sera donc constamment dans une optique d'amélioration continue. | E38: Direction Générale, Responsable Qualité, pilotes des processus, Personnel
B39: 10.2 | C39: Non-conformité et action corrective
B40: 10.3 | C40: Amélioration continue

Sheet Plans d'action détaillés
A1: Autodiagnostic sur les exigences de l'ISO 9001:2015
C3: =COUNTBLANK(C6:C13)+COUNTBLANK(C15:C22)+COUNTBLANK(C25:C32)+COUNTBLANK(C34:C41)+COUNTBLANK(C43:C50) -> 40 | J3: AVANCEMENT
A4: Désignation du Problème | B4: N° | C4: Action | D4: Pilote | E4: Moyens | F4: Gain Estimé | G4: Gain Réalisé | H4: Debut (semaine) | I4: Durée (semaine) | J4: 0.25 | K4: 0.5 | L4: 0.75 | M4: 1 | N4: Commentaires
A5: ZONE / Processus….
B6: 1 | J6: 1 | K6: 1 | L6: 1 | M6: 1
B7: 2 | J7: 1 | K7: 0
B8: 1 | J8: 1 | K8: 1 | L8: 1 | M8: 1
B9: 2
B10: 1 | J10: 1 | K10: 1 | L10: 1 | M10: 1
B11: 2 | J11: 1 | K11: 1 | L11: 1 | M11: 1
B12: 1
B13: 2
A14: ZONE / Processus….
B15: 1 | J15: 1 | K15: 1 | L15: 1 | M15: 1
B16: 2
B17: 1
B18: 2
B19: 1
B20: 2
B21: 1
B22: 2
B23: 3
A24: ZONE / Processus….
B25: 1 | J25: 1 | K25: 1 | L25: 1
B26: 2 | J26: 1 | K26: 1 | L26: 1 | M26: 1
B27: 1 | J27: 1 | K27: 1
B28: 2
B29: 1 | J29: 1 | K29: 1
B30: 2
B31: 1
B32: 2
A33: ZONE / Processus….
B34: 1 | J34: 1
B35: 2 | J35: 1
B36: 1
B37: 2
B38: 1 | J38: 1 | K38: 1 | L38: 1 | M38: 1
B39: 2 | J39: 1 | K39: 1 | L39: 1 | M39: 1
B40: 1
B41: 2
A42: ZONE / Processus….
B43: 1 | J43: 1 | K43: 1 | M43: 1
B44: 2
B45: 1
B46: 2
B47: 1 | J47: 1 | K47: 1 | L47: 1 | M47: 1
B48: 2 | J48: 1 | K48: 1 | L48: 1 | M48: 1
B49: 1
B50: 2

Sheet Déclaration ISO 17050
A1: Fiche de déclaration de conformité par une première partie - norme ISO 17050 | F1: Enregistrement qualité : impression sur 1 page A4 100% en vertical
A2: Déclaration de conformité selon la norme NF EN ISO 17050 Partie 1 : Exigences générales
A3: Évaluation de la conformité - Déclaration de conformité du fournisseur (NF EN ISO/CEI 17050-1)
A4: Date limite de validité de la déclaration : | D4: Référence unique de la déclaration ISO 17050 :
A5: =IFERROR(A36+364,"Date de la déclaration + 1 an") -> Date de la déclaration + 1 an | D5: =IF(A36="","remplir la cellule de date de la déclaration (onglet ISO 17050)",IF(ISERROR(YEAR(A36)),"date de la déclaration invalide",CONCATENATE("Autodeclaration_ISO_17050_sur_la_NF_S99-170_en_",YEAR(A36),"_",MONTH(A36),"_",DAY(A36)))) -> date de la déclaration invalide
A7: Objet de la déclaration : Niveau de CONFORMITÉ aux EXIGENCES de la norme NF EN ISO 9001:2015
A8: Mode Emploi!
A9: Nous soussigés, déclarons sous notre propre responsabilité que les niveaux de conformité de nos pratiques professionnelles ont été mesurés d'après les exigences de la norme NF EN ISO 9001:2015.
A10: Nous avons appliqué la meilleure rigueur d'élaboration et d'analyse (évaluation par plusieurs personnes compétentes) et nous avons respecté les règles d'éthique professionnelle (absence de conflits d'intérêt, respect des opinions, liberté des choix) pour parvenir aux résultats ci-dessous.
A11: Tableau des résultats de CONFORMITÉ de nos activités selon les critères d'exigence tirés de la norme NF EN ISO 9001:2015 | E11: Taux moyen | F11: Niveaux de Conformité
A12: ='Résultats globaux'!B29 -> Niveau moyen sur l'ensemble des articles de la norme ISO 9001:2015 : | E12: ='Résultats globaux'!G29 -> 0 | F12: =IF('Résultats globaux'!$E$29='Mode Emploi'!$H$17,'Résultats globaux'!$E$29,"Non déclarable") -> Non déclarable
A13: ='Résultats globaux'!A30 -> Art. 4 | B13: =Exigences!D5 -> Contexte de l'organisme | E13: ='Résultats globaux'!G30 -> 0 | F13: =IF('Résultats globaux'!E30='Mode Emploi'!$H$17,'Résultats globaux'!E30,"Non déclarable") -> Non déclarable
A14: ='Résultats globaux'!A35 -> Art. 5 | B14: =Exigences!D27 -> Leadership | E14: ='Résultats globaux'!G35 -> 0 | F14: =IF('Résultats globaux'!E35='Mode Emploi'!$H$17,'Résultats globaux'!E35,"Non déclarable") -> Non déclarable
A15: ='Résultats globaux'!A39 -> Art. 6 | B15: =Exigences!D42 -> Planification | E15: ='Résultats globaux'!G39 -> 0 | F15: =IF('Résultats globaux'!E39='Mode Emploi'!$H$17,'Résultats globaux'!E39,"Non déclarable") -> Non déclarable
A16: ='Résultats globaux'!A43 -> Art. 7 | B16: =Exigences!D59 -> Support | E16: ='Résultats globaux'!G43 -> 0 | F16: =IF('Résultats globaux'!E43='Mode Emploi'!$H$17,'Résultats globaux'!E43,"Non déclarable") -> Non déclarable
A17: ='Résultats globaux'!A49 -> Art. 8 | B17: =Exigences!D96 -> Réalisation des activités opérationnelles | E17: ='Résultats globaux'!G49 -> 0 | F17: =IF('Résultats globaux'!E49='Mode Emploi'!$H$17,'Résultats globaux'!E49,"Non déclarable") -> Non déclarable
A18: ='Résultats globaux'!A57 -> Art. 9 | B18: =Exigences!D154 -> Évaluation des performances | E18: ='Résultats globaux'!G57 -> 0 | F18: =IF('Résultats globaux'!E57='Mode Emploi'!$H$17,'Résultats globaux'!E57,"Non déclarable") -> Non déclarable
A19: ='Résultats globaux'!A61 -> Art. 10 | B19: =Exigences!D172 -> Amélioration | E19: ='Résultats globaux'!G61 -> 0 | F19: =IF('Résultats globaux'!E61='Mode Emploi'!$H$17,'Résultats globaux'!E61,"Non déclarable") -> Non déclarable
A21: Documents d'appui consultables associés à la déclaration ISO 17050
A22: Déclaration de conformité selon l'ISO 17050 Partie 2 : Documentation d'appui (NF EN ISO/CEI 17050-2)
A23: Documents génériques | D23: Documents spécifiques
A24: Norme NF EN ISO 9001:2015 " Système de management de la qualité", édition Afnor, www.afnor.org, 15 octobre 2015 | D24: Modifier les contenus bleus et mettre ensuite en noir : Enregistrements qualité : indiquez ceux que vous mettrez à disposition d'un auditeur. Il peut s'agir des onglets imprimés et signés de ce fichier d'autodiagnostic
A25: Outil d'autodiagnostic : Fichier Excel® automatisé mis au point à l'Université de Technologie de Compiègne, France (www.utc.fr) - voir sa dénomination au bas de la feuille | D25: Autre document d'appui : Mettre ici, et en noir, tout autre document d'appui éventuel pour cette déclaration
A27: Signataires
A28: Personne indépendante à l'organisme : | D28: Personne responsable de l'organisme :
A29: Indiquer les NOM et Prénom de la personne indépendante
A30: Coordonnées professionnelles : | D30: Coordonnées professionnelles :
A31: Organisme de la personne indépendante
A32: Adresse complète de l'organisme de la personne indépendante | D32: Adresse complète de l'Exploitant
A33: Code postal - Ville - Pays de l'organisme de la personne indépendante | D33: Code postal - Ville - Pays de l'Exploitant
A34: Tél et email de la personne indépendante
A35: Date de la déclaration (jj/mm/aaaa) : | D35: Date de l'autodiagnostic (jj/mm/aaaa) :
A36: Mettre la date de signature par la personne compétente
A37: Signature : | D37: Signature :
